Body Name,Date Paid,Transaction Number,Amount,Supplier Name,Supplier Type,Expense Area,Cost Centre Description,Expense Type
Cambridgeshire County Council,26-Apr-16,20180913-13222238,-12732.01,Semi Independent House,Care Establishment,S&C,Placements - Social Care,Agency Placements - Out County
Cambridgeshire County Council,15-Apr-16,20480257-13177844,-5287.01,Northgate Public Services (Uk) Ltd,Trade Supplier,S&C,"IM & IT - Adults	",Computer software - annual licence agreement
Cambridgeshire County Council,29-Apr-16,20277818-13260994,-4269.54,Affinity Trust,Care Establishment,2 - Operations - Learning Disability,LDP South Cambs Locality - Care,Supported Living
Cambridgeshire County Council,25-Apr-16,20180973-13218137,-3333.96,Fosterplus Ltd,Care Establishment,S&C,Placements - Social Care,Agency Placements - Out County
Cambridgeshire County Council,29-Apr-16,20327600-13260996,-3146.19,Affinity Trust,Care Establishment,2 - Operations - Learning Disability,LDP South Cambs Locality - Care,Day and Domicillary Care Independent Sector
Cambridgeshire County Council,25-Apr-16,20432788-13218130,-3143.08,Guidant Group,Trade Supplier,CSC,Head of Children In Need,Pay - Agency Staff
Cambridgeshire County Council,20-Apr-16,20488546-13198878,-2970,Chs Group,Care Establishment,S&C,Placements - Social Care,Childrens Lodgings
Cambridgeshire County Council,20-Apr-16,20499713-13198981,-2958.62,E On Uk Plc,Company,Winter Maintenance,Local Infrastructure and Streets - Works,Drains
Cambridgeshire County Council,22-Apr-16,20529851-13216874,-2733,The Mary Hare Primary School,Charity,S&C,Placements - Education,Independent School Placements
Cambridgeshire County Council,04-Apr-16,20424053-13099753,-2521.94,Fostering Solutions Ltd,Care Establishment,S&C,Placements - Social Care,Agency Placements - In Cambs
Cambridgeshire County Council,06-Apr-16,20023565-13118019,-2358.25,Lex Autolease Ltd,Trade Supplier,LGSS,LGSS Property Trading Recharges,Leased Vehicle Costs
Cambridgeshire County Council,27-Apr-16,20540605-13227119,-2015.87,Cambridgeshire Community Services Nhs Trust,Trust (Other),S&C,Procurement - TA Therapy in Special Schools,Other Hired Contract Services
Cambridgeshire County Council,06-Apr-16,20424051-13127011,-1997.06,Rheola Healthcare,Care Establishment,4 - Commissioning - Mental Health & Supporting People,Dom Blocks,Respite Independent Sector
Cambridgeshire County Council,06-Apr-16,20029843-13128035,-1986.18,Redacted Personal Data,Individual,2 - Operations - Learning Disability,LDP Fenland Locality - Care,Direct Payments - Social Services
Cambridgeshire County Council,06-Apr-16,20029844-13128036,-1986.18,Redacted Personal Data,Individual,2 - Operations - Learning Disability,LDP Fenland Locality - Care,Direct Payments - Social Services
Cambridgeshire County Council,06-Apr-16,20029845-13128037,-1986.18,Redacted Personal Data,Individual,2 - Operations - Learning Disability,LDP Fenland Locality - Care,Direct Payments - Social Services
Cambridgeshire County Council,06-Apr-16,20029853-13128045,-1986.18,Redacted Personal Data,Individual,2 - Operations - Learning Disability,LDP Fenland Locality - Care,Direct Payments - Social Services
Cambridgeshire County Council,06-Apr-16,20029856-13128048,-1986.18,Redacted Personal Data,Individual,2 - Operations - Learning Disability,LDP Fenland Locality - Care,Direct Payments - Social Services
Cambridgeshire County Council,06-Apr-16,20029862-13128054,-1986.18,Redacted Personal Data,Individual,2 - Operations - Learning Disability,LDP Fenland Locality - Care,Direct Payments - Social Services
Cambridgeshire County Council,06-Apr-16,20032576-13128018,-1986.18,Redacted Personal Data,Individual,2 - Operations - Learning Disability,LDP Fenland Locality - Care,Direct Payments - Social Services
Cambridgeshire County Council,06-Apr-16,20032583-13128025,-1986.18,Redacted Personal Data,Individual,2 - Operations - Learning Disability,LDP Fenland Locality - Care,Direct Payments - Social Services
Cambridgeshire County Council,06-Apr-16,20032586-13128028,-1986.18,Redacted Personal Data,Individual,2 - Operations - Learning Disability,LDP Fenland Locality - Care,Direct Payments - Social Services
Cambridgeshire County Council,06-Apr-16,20032587-13128029,-1986.18,Redacted Personal Data,Individual,2 - Operations - Learning Disability,LDP Fenland Locality - Care,Direct Payments - Social Services
Cambridgeshire County Council,06-Apr-16,20032588-13128030,-1986.18,Redacted Personal Data,Individual,2 - Operations - Learning Disability,LDP Fenland Locality - Care,Direct Payments - Social Services
Cambridgeshire County Council,06-Apr-16,20032592-13127962,-1986.18,Redacted Personal Data,Individual,2 - Operations - Learning Disability,LDP Fenland Locality - Care,Direct Payments - Social Services
Cambridgeshire County Council,06-Apr-16,20032594-13127964,-1986.18,Redacted Personal Data,Individual,2 - Operations - Learning Disability,LDP Fenland Locality - Care,Direct Payments - Social Services
Cambridgeshire County Council,06-Apr-16,20032595-13127965,-1986.18,Redacted Personal Data,Individual,2 - Operations - Learning Disability,LDP Fenland Locality - Care,Direct Payments - Social Services
Cambridgeshire County Council,06-Apr-16,20032600-13127970,-1986.18,Redacted Personal Data,Individual,2 - Operations - Learning Disability,LDP Fenland Locality - Care,Direct Payments - Social Services
Cambridgeshire County Council,06-Apr-16,20032601-13127971,-1986.18,Redacted Personal Data,Individual,2 - Operations - Learning Disability,LDP Fenland Locality - Care,Direct Payments - Social Services
Cambridgeshire County Council,06-Apr-16,20032603-13127973,-1986.18,Redacted Personal Data,Individual,2 - Operations - Learning Disability,LDP Fenland Locality - Care,Direct Payments - Social Services
Cambridgeshire County Council,06-Apr-16,20032609-13127979,-1986.18,Redacted Personal Data,Individual,2 - Operations - Learning Disability,LDP Fenland Locality - Care,Direct Payments - Social Services
Cambridgeshire County Council,06-Apr-16,20032611-13127981,-1986.18,Redacted Personal Data,Individual,2 - Operations - Learning Disability,LDP Fenland Locality - Care,Direct Payments - Social Services
Cambridgeshire County Council,06-Apr-16,20032614-13127984,-1986.18,Redacted Personal Data,Individual,2 - Operations - Learning Disability,LDP Fenland Locality - Care,Direct Payments - Social Services
Cambridgeshire County Council,06-Apr-16,20032618-13127988,-1986.18,Redacted Personal Data,Individual,2 - Operations - Learning Disability,LDP Fenland Locality - Care,Direct Payments - Social Services
Cambridgeshire County Council,06-Apr-16,20032622-13127992,-1986.18,Redacted Personal Data,Individual,2 - Operations - Learning Disability,LDP Fenland Locality - Care,Direct Payments - Social Services
Cambridgeshire County Council,06-Apr-16,20032626-13127996,-1986.18,Redacted Personal Data,Individual,2 - Operations - Learning Disability,LDP Fenland Locality - Care,Direct Payments - Social Services
Cambridgeshire County Council,06-Apr-16,20032627-13127997,-1986.18,Redacted Personal Data,Individual,2 - Operations - Learning Disability,LDP Fenland Locality - Care,Direct Payments - Social Services
Cambridgeshire County Council,25-Apr-16,20180256-13218567,-1617.61,Huntingdonshire Regional College,Education,S&C,H to S Transport - HRC,Home to School - Contract
Cambridgeshire County Council,25-Apr-16,20180261-13218568,-1617.61,Huntingdonshire Regional College,Education,S&C,H to S Transport - HRC,Home to School - Contract
Cambridgeshire County Council,04-Apr-16,20261426-13099298,-1490.05,Dexter Brown Ltd,Trade Supplier,LGSS Managed,Ely Library,Rents and Leases
Cambridgeshire County Council,06-Apr-16,20032591-13128033,-1418.7,Redacted Personal Data,Individual,2 - Operations - Learning Disability,LDP Fenland Locality - Care,Direct Payments - Social Services
Cambridgeshire County Council,28-Apr-16,20482628-13256767,-1200,The Cambridge Nursing Centre,Care Establishment,2 - Commissioning - Older people Pool,Older People Mental Health City & South,Nursing Independent Sector
Cambridgeshire County Council,28-Apr-16,20482630-13256769,-1200,The Cambridge Nursing Centre,Care Establishment,2 - Commissioning - Older people Pool,Older People Mental Health City & South,Nursing Independent Sector
Cambridgeshire County Council,28-Apr-16,20482631-13256770,-1200,The Cambridge Nursing Centre,Care Establishment,2 - Commissioning - Older people Pool,Older People Mental Health City & South,Nursing Independent Sector
Cambridgeshire County Council,28-Apr-16,20482632-13256771,-1200,The Cambridge Nursing Centre,Care Establishment,2 - Commissioning - Older people Pool,Older People Mental Health City & South,Nursing Independent Sector
Cambridgeshire County Council,28-Apr-16,20482633-13256772,-1200,The Cambridge Nursing Centre,Care Establishment,2 - Commissioning - Older people Pool,Older People Mental Health City & South,Nursing Independent Sector
Cambridgeshire County Council,28-Apr-16,20554543-13246285,-1100,Woodlands Care Centre,Care Establishment,2 - Commissioning - Older people Pool,Older People Mental Health City & South,Nursing Independent Sector
Cambridgeshire County Council,28-Apr-16,20554547-13246287,-1100,Woodlands Care Centre,Care Establishment,2 - Commissioning - Older people Pool,Older People Mental Health City & South,Nursing Independent Sector
Cambridgeshire County Council,28-Apr-16,20554555-13246289,-1100,Woodlands Care Centre,Care Establishment,2 - Commissioning - Older people Pool,Older People Mental Health City & South,Nursing Independent Sector
Cambridgeshire County Council,08-Apr-16,20432787-13144934,-1028.9,Cambridge Smart Cars Ltd,Trade Supplier,LGSS,LGSS Property Trading Recharges,Leased Vehicle Costs
Cambridgeshire County Council,28-Apr-16,20547333-13256667,-1000,The Cambridge Nursing Centre,Care Establishment,2 - Commissioning - Older people Pool,Older People Mental Health City & South,Nursing Independent Sector
Cambridgeshire County Council,28-Apr-16,20554986-13256636,-1000,The Cambridge Nursing Centre,Care Establishment,2 - Commissioning - Older people Pool,Older People Mental Health City & South,Nursing Independent Sector
Cambridgeshire County Council,28-Apr-16,20554992-13256642,-1000,The Cambridge Nursing Centre,Care Establishment,2 - Commissioning - Older people Pool,Older People Mental Health City & South,Nursing Independent Sector
Cambridgeshire County Council,28-Apr-16,20554993-13256643,-1000,The Cambridge Nursing Centre,Care Establishment,2 - Commissioning - Older people Pool,Older People Mental Health City & South,Nursing Independent Sector
Cambridgeshire County Council,28-Apr-16,20554995-13256645,-1000,The Cambridge Nursing Centre,Care Establishment,2 - Commissioning - Older people Pool,Older People Mental Health City & South,Nursing Independent Sector
Cambridgeshire County Council,28-Apr-16,20555286-13247545,-1000,Barchester Healthcare Homes Ltd,Care Establishment,2 - Commissioning - Older people Pool,Older People - City & South,Nursing Independent Sector
Cambridgeshire County Council,28-Apr-16,20555290-13247549,-1000,Barchester Healthcare Homes Ltd,Care Establishment,2 - Commissioning - Older people Pool,Older People - City & South,Nursing Independent Sector
Cambridgeshire County Council,28-Apr-16,20555292-13247551,-1000,Barchester Healthcare Homes Ltd,Care Establishment,2 - Commissioning - Older people Pool,Older People - City & South,Nursing Independent Sector
Cambridgeshire County Council,28-Apr-16,20555293-13247552,-1000,Barchester Healthcare Homes Ltd,Care Establishment,2 - Commissioning - Older people Pool,Older People - City & South,Nursing Independent Sector
Cambridgeshire County Council,28-Apr-16,20555296-13247555,-1000,Barchester Healthcare Homes Ltd,Care Establishment,2 - Commissioning - Older people Pool,Older People - City & South,Nursing Independent Sector
Cambridgeshire County Council,08-Apr-16,20457808-13145063,-994.1,Advanced Learning,Trade Supplier,Corporate Services,Coroners General,Other Hired Contract Services
Cambridgeshire County Council,28-Apr-16,20550724-13234830,-950.24,Mencap (Cowley Road),Care Establishment,2 - Operations - Learning Disability,LDP Fenland Locality - Care,Supported Living
Cambridgeshire County Council,28-Apr-16,20550728-13234834,-950.24,Mencap (Cowley Road),Care Establishment,2 - Operations - Learning Disability,LDP Fenland Locality - Care,Supported Living
Cambridgeshire County Council,28-Apr-16,20556731-13234839,-950.24,Mencap (Cowley Road),Care Establishment,2 - Operations - Learning Disability,LDP Fenland Locality - Care,Supported Living
Cambridgeshire County Council,28-Apr-16,20556733-13234841,-950.24,Mencap (Cowley Road),Care Establishment,2 - Operations - Learning Disability,LDP Fenland Locality - Care,Supported Living
Cambridgeshire County Council,28-Apr-16,20556737-13234845,-950.24,Mencap (Cowley Road),Care Establishment,2 - Operations - Learning Disability,LDP Fenland Locality - Care,Supported Living
Cambridgeshire County Council,28-Apr-16,20556739-13234847,-950.24,Mencap (Cowley Road),Care Establishment,2 - Operations - Learning Disability,LDP Fenland Locality - Care,Supported Living
Cambridgeshire County Council,28-Apr-16,20556741-13234849,-950.24,Mencap (Cowley Road),Care Establishment,2 - Operations - Learning Disability,LDP Fenland Locality - Care,Supported Living
Cambridgeshire County Council,28-Apr-16,20556743-13234851,-950.24,Mencap (Cowley Road),Care Establishment,2 - Operations - Learning Disability,LDP Fenland Locality - Care,Supported Living
Cambridgeshire County Council,28-Apr-16,20556751-13234859,-950.24,Mencap (Cowley Road),Care Establishment,2 - Operations - Learning Disability,LDP Fenland Locality - Care,Supported Living
Cambridgeshire County Council,28-Apr-16,20556757-13234865,-950.24,Mencap (Cowley Road),Care Establishment,2 - Operations - Learning Disability,LDP Fenland Locality - Care,Supported Living
Cambridgeshire County Council,28-Apr-16,20556761-13234869,-950.24,Mencap (Cowley Road),Care Establishment,2 - Operations - Learning Disability,LDP Fenland Locality - Care,Supported Living
Cambridgeshire County Council,28-Apr-16,20556765-13234873,-950.24,Mencap (Cowley Road),Care Establishment,2 - Operations - Learning Disability,LDP Fenland Locality - Care,Supported Living
Cambridgeshire County Council,28-Apr-16,20557766-13234804,-950.24,Mencap (Cowley Road),Care Establishment,2 - Operations - Learning Disability,LDP Fenland Locality - Care,Supported Living
Cambridgeshire County Council,28-Apr-16,20557768-13234806,-950.24,Mencap (Cowley Road),Care Establishment,2 - Operations - Learning Disability,LDP Fenland Locality - Care,Supported Living
Cambridgeshire County Council,28-Apr-16,20557773-13234811,-950.24,Mencap (Cowley Road),Care Establishment,2 - Operations - Learning Disability,LDP Fenland Locality - Care,Supported Living
Cambridgeshire County Council,28-Apr-16,20557774-13234812,-950.24,Mencap (Cowley Road),Care Establishment,2 - Operations - Learning Disability,LDP Fenland Locality - Care,Supported Living
Cambridgeshire County Council,28-Apr-16,20551408-13246510,-950,Woodlands Care Centre,Care Establishment,2 - Commissioning - Older people Pool,Older People Mental Health City & South,Nursing Independent Sector
Cambridgeshire County Council,28-Apr-16,20551413-13246515,-950,Woodlands Care Centre,Care Establishment,2 - Commissioning - Older people Pool,Older People Mental Health City & South,Nursing Independent Sector
Cambridgeshire County Council,28-Apr-16,20551414-13246516,-950,Woodlands Care Centre,Care Establishment,2 - Commissioning - Older people Pool,Older People Mental Health City & South,Nursing Independent Sector
Cambridgeshire County Council,28-Apr-16,20551416-13246518,-950,Woodlands Care Centre,Care Establishment,2 - Commissioning - Older people Pool,Older People Mental Health City & South,Nursing Independent Sector
Cambridgeshire County Council,28-Apr-16,20551417-13246519,-950,Woodlands Care Centre,Care Establishment,2 - Commissioning - Older people Pool,Older People Mental Health City & South,Nursing Independent Sector
Cambridgeshire County Council,28-Apr-16,20551420-13246522,-950,Woodlands Care Centre,Care Establishment,2 - Commissioning - Older people Pool,Older People Mental Health City & South,Nursing Independent Sector
Cambridgeshire County Council,28-Apr-16,20555550-13246234,-950,Woodlands Care Centre,Care Establishment,2 - Commissioning - Older people Pool,Older People Mental Health City & South,Nursing Independent Sector
Cambridgeshire County Council,28-Apr-16,20555552-13246236,-950,Woodlands Care Centre,Care Establishment,2 - Commissioning - Older people Pool,Older People Mental Health City & South,Nursing Independent Sector
Cambridgeshire County Council,28-Apr-16,20555553-13246237,-950,Woodlands Care Centre,Care Establishment,2 - Commissioning - Older people Pool,Older People Mental Health City & South,Nursing Independent Sector
Cambridgeshire County Council,28-Apr-16,20555554-13246238,-950,Woodlands Care Centre,Care Establishment,2 - Commissioning - Older people Pool,Older People Mental Health City & South,Nursing Independent Sector
Cambridgeshire County Council,28-Apr-16,20555556-13246240,-950,Woodlands Care Centre,Care Establishment,2 - Commissioning - Older people Pool,Older People Mental Health City & South,Nursing Independent Sector
Cambridgeshire County Council,28-Apr-16,20567700-13246261,-950,Woodlands Care Centre,Care Establishment,2 - Commissioning - Older people Pool,East Cambs - O P Team,Residential Independent Sector
Cambridgeshire County Council,28-Apr-16,20567740-13246263,-950,Woodlands Care Centre,Care Establishment,2 - Commissioning - Older people Pool,East Cambs - O P Team,Residential Independent Sector
Cambridgeshire County Council,28-Apr-16,20567741-13246264,-950,Woodlands Care Centre,Care Establishment,2 - Commissioning - Older people Pool,East Cambs - O P Team,Residential Independent Sector
Cambridgeshire County Council,28-Apr-16,20567750-13246265,-950,Woodlands Care Centre,Care Establishment,2 - Commissioning - Older people Pool,East Cambs - O P Team,Residential Independent Sector
Cambridgeshire County Council,28-Apr-16,20567752-13246267,-950,Woodlands Care Centre,Care Establishment,2 - Commissioning - Older people Pool,East Cambs - O P Team,Residential Independent Sector
Cambridgeshire County Council,28-Apr-16,20567760-13246268,-950,Woodlands Care Centre,Care Establishment,2 - Commissioning - Older people Pool,East Cambs - O P Team,Residential Independent Sector
Cambridgeshire County Council,28-Apr-16,20570620-13246497,-950,Woodlands Care Centre,Care Establishment,2 - Commissioning - Older people Pool,Older People Mental Health City & South,Nursing Independent Sector
Cambridgeshire County Council,28-Apr-16,20570622-13246499,-950,Woodlands Care Centre,Care Establishment,2 - Commissioning - Older people Pool,Older People Mental Health City & South,Nursing Independent Sector
Cambridgeshire County Council,28-Apr-16,20570625-13246502,-950,Woodlands Care Centre,Care Establishment,2 - Commissioning - Older people Pool,Older People Mental Health City & South,Nursing Independent Sector
Cambridgeshire County Council,28-Apr-16,20570629-13246506,-950,Woodlands Care Centre,Care Establishment,2 - Commissioning - Older people Pool,Older People Mental Health City & South,Nursing Independent Sector
Cambridgeshire County Council,28-Apr-16,20570630-13246507,-950,Woodlands Care Centre,Care Establishment,2 - Commissioning - Older people Pool,Older People Mental Health City & South,Nursing Independent Sector
Cambridgeshire County Council,21-Apr-16,20523129-13203408,-939.42,Redacted Personal Data,Individual,2 - Operations - Learning Disability,LDP South Cambs Locality - Care,Direct Payments - Social Services
Cambridgeshire County Council,21-Apr-16,20523135-13203414,-939.42,Redacted Personal Data,Individual,2 - Operations - Learning Disability,LDP South Cambs Locality - Care,Direct Payments - Social Services
Cambridgeshire County Council,21-Apr-16,20523136-13203415,-939.42,Redacted Personal Data,Individual,2 - Operations - Learning Disability,LDP South Cambs Locality - Care,Direct Payments - Social Services
Cambridgeshire County Council,21-Apr-16,20526272-13203422,-939.42,Redacted Personal Data,Individual,2 - Operations - Learning Disability,LDP South Cambs Locality - Care,Direct Payments - Social Services
Cambridgeshire County Council,06-Apr-16,20381244-13121027,-926.11,Making Space#1,Care Establishment,3 - Operations - Countywide Services,Countywide PD Service - Care,Nursing Independent Sector
Cambridgeshire County Council,06-Apr-16,20381245-13121028,-926.11,Making Space#1,Care Establishment,3 - Operations - Countywide Services,Countywide PD Service - Care,Nursing Independent Sector
Cambridgeshire County Council,06-Apr-16,20381246-13121029,-926.11,Making Space#1,Care Establishment,3 - Operations - Countywide Services,Countywide PD Service - Care,Nursing Independent Sector
Cambridgeshire County Council,06-Apr-16,20381247-13121030,-926.11,Making Space#1,Care Establishment,3 - Operations - Countywide Services,Countywide PD Service - Care,Nursing Independent Sector
Cambridgeshire County Council,06-Apr-16,20381248-13121031,-926.11,Making Space#1,Care Establishment,3 - Operations - Countywide Services,Countywide PD Service - Care,Nursing Independent Sector
Cambridgeshire County Council,06-Apr-16,20382998-13121033,-926.11,Making Space#1,Care Establishment,3 - Operations - Countywide Services,Countywide PD Service - Care,Nursing Independent Sector
Cambridgeshire County Council,06-Apr-16,20382999-13121034,-926.11,Making Space#1,Care Establishment,3 - Operations - Countywide Services,Countywide PD Service - Care,Nursing Independent Sector
Cambridgeshire County Council,06-Apr-16,20383001-13121010,-926.11,Making Space#1,Care Establishment,3 - Operations - Countywide Services,Countywide PD Service - Care,Nursing Independent Sector
Cambridgeshire County Council,06-Apr-16,20383002-13121011,-926.11,Making Space#1,Care Establishment,3 - Operations - Countywide Services,Countywide PD Service - Care,Nursing Independent Sector
Cambridgeshire County Council,06-Apr-16,20383006-13121015,-926.11,Making Space#1,Care Establishment,3 - Operations - Countywide Services,Countywide PD Service - Care,Nursing Independent Sector
Cambridgeshire County Council,06-Apr-16,20383007-13121016,-926.11,Making Space#1,Care Establishment,3 - Operations - Countywide Services,Countywide PD Service - Care,Nursing Independent Sector
Cambridgeshire County Council,06-Apr-16,20383008-13121017,-926.11,Making Space#1,Care Establishment,3 - Operations - Countywide Services,Countywide PD Service - Care,Nursing Independent Sector
Cambridgeshire County Council,06-Apr-16,20383011-13121020,-926.11,Making Space#1,Care Establishment,3 - Operations - Countywide Services,Countywide PD Service - Care,Nursing Independent Sector
Cambridgeshire County Council,06-Apr-16,20383013-13121022,-926.11,Making Space#1,Care Establishment,3 - Operations - Countywide Services,Countywide PD Service - Care,Nursing Independent Sector
Cambridgeshire County Council,06-Apr-16,20383016-13121025,-926.11,Making Space#1,Care Establishment,3 - Operations - Countywide Services,Countywide PD Service - Care,Nursing Independent Sector
Cambridgeshire County Council,06-Apr-16,20383018-13120969,-926.11,Making Space#1,Care Establishment,3 - Operations - Countywide Services,Countywide PD Service - Care,Nursing Independent Sector
Cambridgeshire County Council,06-Apr-16,20383021-13120972,-926.11,Making Space#1,Care Establishment,3 - Operations - Countywide Services,Countywide PD Service - Care,Nursing Independent Sector
Cambridgeshire County Council,06-Apr-16,20383022-13120973,-926.11,Making Space#1,Care Establishment,3 - Operations - Countywide Services,Countywide PD Service - Care,Nursing Independent Sector
Cambridgeshire County Council,06-Apr-16,20394329-13120976,-926.11,Making Space#1,Care Establishment,3 - Operations - Countywide Services,Countywide PD Service - Care,Nursing Independent Sector
Cambridgeshire County Council,06-Apr-16,20394330-13120977,-926.11,Making Space#1,Care Establishment,3 - Operations - Countywide Services,Countywide PD Service - Care,Nursing Independent Sector
Cambridgeshire County Council,06-Apr-16,20394331-13120978,-926.11,Making Space#1,Care Establishment,3 - Operations - Countywide Services,Countywide PD Service - Care,Nursing Independent Sector
Cambridgeshire County Council,06-Apr-16,20394333-13120980,-926.11,Making Space#1,Care Establishment,3 - Operations - Countywide Services,Countywide PD Service - Care,Nursing Independent Sector
Cambridgeshire County Council,06-Apr-16,20394336-13120983,-926.11,Making Space#1,Care Establishment,3 - Operations - Countywide Services,Countywide PD Service - Care,Nursing Independent Sector
Cambridgeshire County Council,06-Apr-16,20394337-13120984,-926.11,Making Space#1,Care Establishment,3 - Operations - Countywide Services,Countywide PD Service - Care,Nursing Independent Sector
Cambridgeshire County Council,06-Apr-16,20394338-13120985,-926.11,Making Space#1,Care Establishment,3 - Operations - Countywide Services,Countywide PD Service - Care,Nursing Independent Sector
Cambridgeshire County Council,06-Apr-16,20394341-13120988,-926.11,Making Space#1,Care Establishment,3 - Operations - Countywide Services,Countywide PD Service - Care,Nursing Independent Sector
Cambridgeshire County Council,06-Apr-16,20394342-13120989,-926.11,Making Space#1,Care Establishment,3 - Operations - Countywide Services,Countywide PD Service - Care,Nursing Independent Sector
Cambridgeshire County Council,06-Apr-16,20394344-13120991,-926.11,Making Space#1,Care Establishment,3 - Operations - Countywide Services,Countywide PD Service - Care,Nursing Independent Sector
Cambridgeshire County Council,06-Apr-16,20394346-13120993,-926.11,Making Space#1,Care Establishment,3 - Operations - Countywide Services,Countywide PD Service - Care,Nursing Independent Sector
Cambridgeshire County Council,06-Apr-16,20394347-13120994,-926.11,Making Space#1,Care Establishment,3 - Operations - Countywide Services,Countywide PD Service - Care,Nursing Independent Sector
Cambridgeshire County Council,06-Apr-16,20394353-13121000,-926.11,Making Space#1,Care Establishment,3 - Operations - Countywide Services,Countywide PD Service - Care,Nursing Independent Sector
Cambridgeshire County Council,06-Apr-16,20394358-13121005,-926.11,Making Space#1,Care Establishment,3 - Operations - Countywide Services,Countywide PD Service - Care,Nursing Independent Sector
Cambridgeshire County Council,06-Apr-16,20436978-13120959,-926.11,Making Space#1,Care Establishment,3 - Operations - Countywide Services,Countywide PD Service - Care,Nursing Independent Sector
Cambridgeshire County Council,06-Apr-16,20436979-13120960,-926.11,Making Space#1,Care Establishment,3 - Operations - Countywide Services,Countywide PD Service - Care,Nursing Independent Sector
Cambridgeshire County Council,06-Apr-16,20436980-13120961,-926.11,Making Space#1,Care Establishment,3 - Operations - Countywide Services,Countywide PD Service - Care,Nursing Independent Sector
Cambridgeshire County Council,06-Apr-16,20436981-13120962,-926.11,Making Space#1,Care Establishment,3 - Operations - Countywide Services,Countywide PD Service - Care,Nursing Independent Sector
Cambridgeshire County Council,06-Apr-16,20436982-13120963,-926.11,Making Space#1,Care Establishment,3 - Operations - Countywide Services,Countywide PD Service - Care,Nursing Independent Sector
Cambridgeshire County Council,06-Apr-16,20436984-13120965,-926.11,Making Space#1,Care Establishment,3 - Operations - Countywide Services,Countywide PD Service - Care,Nursing Independent Sector
Cambridgeshire County Council,06-Apr-16,20436985-13120966,-926.11,Making Space#1,Care Establishment,3 - Operations - Countywide Services,Countywide PD Service - Care,Nursing Independent Sector
Cambridgeshire County Council,06-Apr-16,20436986-13120967,-926.11,Making Space#1,Care Establishment,3 - Operations - Countywide Services,Countywide PD Service - Care,Nursing Independent Sector
Cambridgeshire County Council,06-Apr-16,20436987-13120968,-926.11,Making Space#1,Care Establishment,3 - Operations - Countywide Services,Countywide PD Service - Care,Nursing Independent Sector
Cambridgeshire County Council,06-Apr-16,20445786-13121043,-926.11,Making Space#1,Care Establishment,3 - Operations - Countywide Services,Countywide PD Service - Care,Nursing Independent Sector
Cambridgeshire County Council,06-Apr-16,20445789-13121046,-926.11,Making Space#1,Care Establishment,3 - Operations - Countywide Services,Countywide PD Service - Care,Nursing Independent Sector
Cambridgeshire County Council,06-Apr-16,20445790-13121047,-926.11,Making Space#1,Care Establishment,3 - Operations - Countywide Services,Countywide PD Service - Care,Nursing Independent Sector
Cambridgeshire County Council,06-Apr-16,20445792-13121049,-926.11,Making Space#1,Care Establishment,3 - Operations - Countywide Services,Countywide PD Service - Care,Nursing Independent Sector
Cambridgeshire County Council,06-Apr-16,20445800-13121057,-926.11,Making Space#1,Care Establishment,3 - Operations - Countywide Services,Countywide PD Service - Care,Nursing Independent Sector
Cambridgeshire County Council,06-Apr-16,20445802-13121059,-926.11,Making Space#1,Care Establishment,3 - Operations - Countywide Services,Countywide PD Service - Care,Nursing Independent Sector
Cambridgeshire County Council,06-Apr-16,20445803-13121060,-926.11,Making Space#1,Care Establishment,3 - Operations - Countywide Services,Countywide PD Service - Care,Nursing Independent Sector
Cambridgeshire County Council,06-Apr-16,20445804-13121061,-926.11,Making Space#1,Care Establishment,3 - Operations - Countywide Services,Countywide PD Service - Care,Nursing Independent Sector
Cambridgeshire County Council,06-Apr-16,20445805-13121062,-926.11,Making Space#1,Care Establishment,3 - Operations - Countywide Services,Countywide PD Service - Care,Nursing Independent Sector
Cambridgeshire County Council,06-Apr-16,20445806-13121063,-926.11,Making Space#1,Care Establishment,3 - Operations - Countywide Services,Countywide PD Service - Care,Nursing Independent Sector
Cambridgeshire County Council,06-Apr-16,20445807-13121064,-926.11,Making Space#1,Care Establishment,3 - Operations - Countywide Services,Countywide PD Service - Care,Nursing Independent Sector
Cambridgeshire County Council,06-Apr-16,20445808-13121065,-926.11,Making Space#1,Care Establishment,3 - Operations - Countywide Services,Countywide PD Service - Care,Nursing Independent Sector
Cambridgeshire County Council,06-Apr-16,20445811-13121068,-926.11,Making Space#1,Care Establishment,3 - Operations - Countywide Services,Countywide PD Service - Care,Nursing Independent Sector
Cambridgeshire County Council,06-Apr-16,20445827-13121084,-926.11,Making Space#1,Care Establishment,3 - Operations - Countywide Services,Countywide PD Service - Care,Nursing Independent Sector
Cambridgeshire County Council,06-Apr-16,20445831-13121088,-926.11,Making Space#1,Care Establishment,3 - Operations - Countywide Services,Countywide PD Service - Care,Nursing Independent Sector
Cambridgeshire County Council,06-Apr-16,20445834-13121091,-926.11,Making Space#1,Care Establishment,3 - Operations - Countywide Services,Countywide PD Service - Care,Nursing Independent Sector
Cambridgeshire County Council,06-Apr-16,20445836-13121093,-926.11,Making Space#1,Care Establishment,3 - Operations - Countywide Services,Countywide PD Service - Care,Nursing Independent Sector
Cambridgeshire County Council,06-Apr-16,20445837-13121094,-926.11,Making Space#1,Care Establishment,3 - Operations - Countywide Services,Countywide PD Service - Care,Nursing Independent Sector
Cambridgeshire County Council,06-Apr-16,20445838-13121095,-926.11,Making Space#1,Care Establishment,3 - Operations - Countywide Services,Countywide PD Service - Care,Nursing Independent Sector
Cambridgeshire County Council,06-Apr-16,20445839-13121096,-926.11,Making Space#1,Care Establishment,3 - Operations - Countywide Services,Countywide PD Service - Care,Nursing Independent Sector
Cambridgeshire County Council,06-Apr-16,20445840-13121097,-926.11,Making Space#1,Care Establishment,3 - Operations - Countywide Services,Countywide PD Service - Care,Nursing Independent Sector
Cambridgeshire County Council,06-Apr-16,20445843-13121100,-926.11,Making Space#1,Care Establishment,3 - Operations - Countywide Services,Countywide PD Service - Care,Nursing Independent Sector
Cambridgeshire County Council,06-Apr-16,20445844-13121101,-926.11,Making Space#1,Care Establishment,3 - Operations - Countywide Services,Countywide PD Service - Care,Nursing Independent Sector
Cambridgeshire County Council,21-Apr-16,20480382-13205212,-926.11,Making Space#1,Care Establishment,3 - Operations - Countywide Services,Countywide PD Service - Care,Nursing Independent Sector
Cambridgeshire County Council,21-Apr-16,20480383-13205213,-926.11,Making Space#1,Care Establishment,3 - Operations - Countywide Services,Countywide PD Service - Care,Nursing Independent Sector
Cambridgeshire County Council,21-Apr-16,20480385-13205215,-926.11,Making Space#1,Care Establishment,3 - Operations - Countywide Services,Countywide PD Service - Care,Nursing Independent Sector
Cambridgeshire County Council,21-Apr-16,20480390-13205154,-926.11,Making Space#1,Care Establishment,3 - Operations - Countywide Services,Countywide PD Service - Care,Nursing Independent Sector
Cambridgeshire County Council,21-Apr-16,20480391-13205155,-926.11,Making Space#1,Care Establishment,3 - Operations - Countywide Services,Countywide PD Service - Care,Nursing Independent Sector
Cambridgeshire County Council,21-Apr-16,20480392-13205156,-926.11,Making Space#1,Care Establishment,3 - Operations - Countywide Services,Countywide PD Service - Care,Nursing Independent Sector
Cambridgeshire County Council,21-Apr-16,20480394-13205158,-926.11,Making Space#1,Care Establishment,3 - Operations - Countywide Services,Countywide PD Service - Care,Nursing Independent Sector
Cambridgeshire County Council,21-Apr-16,20480397-13205161,-926.11,Making Space#1,Care Establishment,3 - Operations - Countywide Services,Countywide PD Service - Care,Nursing Independent Sector
Cambridgeshire County Council,21-Apr-16,20480399-13205163,-926.11,Making Space#1,Care Establishment,3 - Operations - Countywide Services,Countywide PD Service - Care,Nursing Independent Sector
Cambridgeshire County Council,21-Apr-16,20480401-13205165,-926.11,Making Space#1,Care Establishment,3 - Operations - Countywide Services,Countywide PD Service - Care,Nursing Independent Sector
Cambridgeshire County Council,21-Apr-16,20480402-13205166,-926.11,Making Space#1,Care Establishment,3 - Operations - Countywide Services,Countywide PD Service - Care,Nursing Independent Sector
Cambridgeshire County Council,21-Apr-16,20480404-13205168,-926.11,Making Space#1,Care Establishment,3 - Operations - Countywide Services,Countywide PD Service - Care,Nursing Independent Sector
Cambridgeshire County Council,21-Apr-16,20480405-13205169,-926.11,Making Space#1,Care Establishment,3 - Operations - Countywide Services,Countywide PD Service - Care,Nursing Independent Sector
Cambridgeshire County Council,21-Apr-16,20480409-13205173,-926.11,Making Space#1,Care Establishment,3 - Operations - Countywide Services,Countywide PD Service - Care,Nursing Independent Sector
Cambridgeshire County Council,21-Apr-16,20480410-13205174,-926.11,Making Space#1,Care Establishment,3 - Operations - Countywide Services,Countywide PD Service - Care,Nursing Independent Sector
Cambridgeshire County Council,21-Apr-16,20480412-13205176,-926.11,Making Space#1,Care Establishment,3 - Operations - Countywide Services,Countywide PD Service - Care,Nursing Independent Sector
Cambridgeshire County Council,21-Apr-16,20480414-13205178,-926.11,Making Space#1,Care Establishment,3 - Operations - Countywide Services,Countywide PD Service - Care,Nursing Independent Sector
Cambridgeshire County Council,21-Apr-16,20480416-13205180,-926.11,Making Space#1,Care Establishment,3 - Operations - Countywide Services,Countywide PD Service - Care,Nursing Independent Sector
Cambridgeshire County Council,21-Apr-16,20480417-13205181,-926.11,Making Space#1,Care Establishment,3 - Operations - Countywide Services,Countywide PD Service - Care,Nursing Independent Sector
Cambridgeshire County Council,21-Apr-16,20480418-13205182,-926.11,Making Space#1,Care Establishment,3 - Operations - Countywide Services,Countywide PD Service - Care,Nursing Independent Sector
Cambridgeshire County Council,21-Apr-16,20480420-13205184,-926.11,Making Space#1,Care Establishment,3 - Operations - Countywide Services,Countywide PD Service - Care,Nursing Independent Sector
Cambridgeshire County Council,21-Apr-16,20480422-13205186,-926.11,Making Space#1,Care Establishment,3 - Operations - Countywide Services,Countywide PD Service - Care,Nursing Independent Sector
Cambridgeshire County Council,21-Apr-16,20480423-13205187,-926.11,Making Space#1,Care Establishment,3 - Operations - Countywide Services,Countywide PD Service - Care,Nursing Independent Sector
Cambridgeshire County Council,21-Apr-16,20480426-13205190,-926.11,Making Space#1,Care Establishment,3 - Operations - Countywide Services,Countywide PD Service - Care,Nursing Independent Sector
Cambridgeshire County Council,21-Apr-16,20480427-13205191,-926.11,Making Space#1,Care Establishment,3 - Operations - Countywide Services,Countywide PD Service - Care,Nursing Independent Sector
Cambridgeshire County Council,21-Apr-16,20480429-13205193,-926.11,Making Space#1,Care Establishment,3 - Operations - Countywide Services,Countywide PD Service - Care,Nursing Independent Sector
Cambridgeshire County Council,21-Apr-16,20480430-13205194,-926.11,Making Space#1,Care Establishment,3 - Operations - Countywide Services,Countywide PD Service - Care,Nursing Independent Sector
Cambridgeshire County Council,21-Apr-16,20480431-13205195,-926.11,Making Space#1,Care Establishment,3 - Operations - Countywide Services,Countywide PD Service - Care,Nursing Independent Sector
Cambridgeshire County Council,21-Apr-16,20480437-13205201,-926.11,Making Space#1,Care Establishment,3 - Operations - Countywide Services,Countywide PD Service - Care,Nursing Independent Sector
Cambridgeshire County Council,21-Apr-16,20480439-13205203,-926.11,Making Space#1,Care Establishment,3 - Operations - Countywide Services,Countywide PD Service - Care,Nursing Independent Sector
Cambridgeshire County Council,21-Apr-16,20480441-13205205,-926.11,Making Space#1,Care Establishment,3 - Operations - Countywide Services,Countywide PD Service - Care,Nursing Independent Sector
Cambridgeshire County Council,21-Apr-16,20480442-13205206,-926.11,Making Space#1,Care Establishment,3 - Operations - Countywide Services,Countywide PD Service - Care,Nursing Independent Sector
Cambridgeshire County Council,21-Apr-16,20526648-13205131,-926.11,Making Space#1,Care Establishment,3 - Operations - Countywide Services,Countywide PD Service - Care,Nursing Independent Sector
Cambridgeshire County Council,21-Apr-16,20526653-13205136,-926.11,Making Space#1,Care Establishment,3 - Operations - Countywide Services,Countywide PD Service - Care,Nursing Independent Sector
Cambridgeshire County Council,21-Apr-16,20526657-13205140,-926.11,Making Space#1,Care Establishment,3 - Operations - Countywide Services,Countywide PD Service - Care,Nursing Independent Sector
Cambridgeshire County Council,21-Apr-16,20526658-13205141,-926.11,Making Space#1,Care Establishment,3 - Operations - Countywide Services,Countywide PD Service - Care,Nursing Independent Sector
Cambridgeshire County Council,21-Apr-16,20526659-13205142,-926.11,Making Space#1,Care Establishment,3 - Operations - Countywide Services,Countywide PD Service - Care,Nursing Independent Sector
Cambridgeshire County Council,21-Apr-16,20526660-13205143,-926.11,Making Space#1,Care Establishment,3 - Operations - Countywide Services,Countywide PD Service - Care,Nursing Independent Sector
Cambridgeshire County Council,21-Apr-16,20526661-13205144,-926.11,Making Space#1,Care Establishment,3 - Operations - Countywide Services,Countywide PD Service - Care,Nursing Independent Sector
Cambridgeshire County Council,21-Apr-16,20526667-13205150,-926.11,Making Space#1,Care Establishment,3 - Operations - Countywide Services,Countywide PD Service - Care,Nursing Independent Sector
Cambridgeshire County Council,21-Apr-16,20526668-13205151,-926.11,Making Space#1,Care Establishment,3 - Operations - Countywide Services,Countywide PD Service - Care,Nursing Independent Sector
Cambridgeshire County Council,21-Apr-16,20526671-13205088,-926.11,Making Space#1,Care Establishment,3 - Operations - Countywide Services,Countywide PD Service - Care,Nursing Independent Sector
Cambridgeshire County Council,21-Apr-16,20526673-13205090,-926.11,Making Space#1,Care Establishment,3 - Operations - Countywide Services,Countywide PD Service - Care,Nursing Independent Sector
Cambridgeshire County Council,21-Apr-16,20526674-13205091,-926.11,Making Space#1,Care Establishment,3 - Operations - Countywide Services,Countywide PD Service - Care,Nursing Independent Sector
Cambridgeshire County Council,21-Apr-16,20526675-13205092,-926.11,Making Space#1,Care Establishment,3 - Operations - Countywide Services,Countywide PD Service - Care,Nursing Independent Sector
Cambridgeshire County Council,21-Apr-16,20526676-13205093,-926.11,Making Space#1,Care Establishment,3 - Operations - Countywide Services,Countywide PD Service - Care,Nursing Independent Sector
Cambridgeshire County Council,21-Apr-16,20526677-13205094,-926.11,Making Space#1,Care Establishment,3 - Operations - Countywide Services,Countywide PD Service - Care,Nursing Independent Sector
Cambridgeshire County Council,21-Apr-16,20526679-13205096,-926.11,Making Space#1,Care Establishment,3 - Operations - Countywide Services,Countywide PD Service - Care,Nursing Independent Sector
Cambridgeshire County Council,21-Apr-16,20526681-13205098,-926.11,Making Space#1,Care Establishment,3 - Operations - Countywide Services,Countywide PD Service - Care,Nursing Independent Sector
Cambridgeshire County Council,21-Apr-16,20526682-13205099,-926.11,Making Space#1,Care Establishment,3 - Operations - Countywide Services,Countywide PD Service - Care,Nursing Independent Sector
Cambridgeshire County Council,21-Apr-16,20526686-13205103,-926.11,Making Space#1,Care Establishment,3 - Operations - Countywide Services,Countywide PD Service - Care,Nursing Independent Sector
Cambridgeshire County Council,21-Apr-16,20526688-13205105,-926.11,Making Space#1,Care Establishment,3 - Operations - Countywide Services,Countywide PD Service - Care,Nursing Independent Sector
Cambridgeshire County Council,21-Apr-16,20526689-13205106,-926.11,Making Space#1,Care Establishment,3 - Operations - Countywide Services,Countywide PD Service - Care,Nursing Independent Sector
Cambridgeshire County Council,21-Apr-16,20526691-13205108,-926.11,Making Space#1,Care Establishment,3 - Operations - Countywide Services,Countywide PD Service - Care,Nursing Independent Sector
Cambridgeshire County Council,21-Apr-16,20526692-13205109,-926.11,Making Space#1,Care Establishment,3 - Operations - Countywide Services,Countywide PD Service - Care,Nursing Independent Sector
Cambridgeshire County Council,21-Apr-16,20526693-13205110,-926.11,Making Space#1,Care Establishment,3 - Operations - Countywide Services,Countywide PD Service - Care,Nursing Independent Sector
Cambridgeshire County Council,21-Apr-16,20526696-13205113,-926.11,Making Space#1,Care Establishment,3 - Operations - Countywide Services,Countywide PD Service - Care,Nursing Independent Sector
Cambridgeshire County Council,21-Apr-16,20526698-13205115,-926.11,Making Space#1,Care Establishment,3 - Operations - Countywide Services,Countywide PD Service - Care,Nursing Independent Sector
Cambridgeshire County Council,21-Apr-16,20526700-13205117,-926.11,Making Space#1,Care Establishment,3 - Operations - Countywide Services,Countywide PD Service - Care,Nursing Independent Sector
Cambridgeshire County Council,21-Apr-16,20526702-13205119,-926.11,Making Space#1,Care Establishment,3 - Operations - Countywide Services,Countywide PD Service - Care,Nursing Independent Sector
Cambridgeshire County Council,21-Apr-16,20526704-13205121,-926.11,Making Space#1,Care Establishment,3 - Operations - Countywide Services,Countywide PD Service - Care,Nursing Independent Sector
Cambridgeshire County Council,21-Apr-16,20526707-13205124,-926.11,Making Space#1,Care Establishment,3 - Operations - Countywide Services,Countywide PD Service - Care,Nursing Independent Sector
Cambridgeshire County Council,21-Apr-16,20526709-13205126,-926.11,Making Space#1,Care Establishment,3 - Operations - Countywide Services,Countywide PD Service - Care,Nursing Independent Sector
Cambridgeshire County Council,21-Apr-16,20526712-13205129,-926.11,Making Space#1,Care Establishment,3 - Operations - Countywide Services,Countywide PD Service - Care,Nursing Independent Sector
Cambridgeshire County Council,28-Apr-16,20567442-13246273,-917,Woodlands Care Centre,Care Establishment,3 - Operations - Countywide Services,Countywide PD Service - Care,Nursing Independent Sector
Cambridgeshire County Council,28-Apr-16,20567443-13246274,-917,Woodlands Care Centre,Care Establishment,3 - Operations - Countywide Services,Countywide PD Service - Care,Nursing Independent Sector
Cambridgeshire County Council,28-Apr-16,20567448-13246276,-917,Woodlands Care Centre,Care Establishment,3 - Operations - Countywide Services,Countywide PD Service - Care,Nursing Independent Sector
Cambridgeshire County Council,28-Apr-16,20567449-13246277,-917,Woodlands Care Centre,Care Establishment,3 - Operations - Countywide Services,Countywide PD Service - Care,Nursing Independent Sector
Cambridgeshire County Council,28-Apr-16,20567463-13246283,-917,Woodlands Care Centre,Care Establishment,3 - Operations - Countywide Services,Countywide PD Service - Care,Nursing Independent Sector
Cambridgeshire County Council,28-Apr-16,20549906-13247119,-904.5,Bramley Court,Care Establishment,2 - Commissioning - Older people Pool,Older People Mental Health City & South,Nursing Independent Sector
Cambridgeshire County Council,28-Apr-16,20549907-13247120,-904.5,Bramley Court,Care Establishment,2 - Commissioning - Older people Pool,Older People Mental Health City & South,Nursing Independent Sector
Cambridgeshire County Council,28-Apr-16,20550734-13247093,-904.5,Bramley Court,Care Establishment,2 - Commissioning - Older people Pool,Older People Mental Health City & South,Nursing Independent Sector
Cambridgeshire County Council,28-Apr-16,20550735-13247094,-904.5,Bramley Court,Care Establishment,2 - Commissioning - Older people Pool,Older People Mental Health City & South,Nursing Independent Sector
Cambridgeshire County Council,28-Apr-16,20550744-13247103,-904.5,Bramley Court,Care Establishment,2 - Commissioning - Older people Pool,Older People Mental Health City & South,Nursing Independent Sector
Cambridgeshire County Council,28-Apr-16,20557399-13247056,-904.5,Bramley Court,Care Establishment,2 - Commissioning - Older people Pool,Older People - City & South,Nursing Independent Sector
Cambridgeshire County Council,28-Apr-16,20557404-13247057,-904.5,Bramley Court,Care Establishment,2 - Commissioning - Older people Pool,Older People - City & South,Nursing Independent Sector
Cambridgeshire County Council,28-Apr-16,20557417-13247059,-904.5,Bramley Court,Care Establishment,2 - Commissioning - Older people Pool,Older People - City & South,Nursing Independent Sector
Cambridgeshire County Council,28-Apr-16,20557425-13247061,-904.5,Bramley Court,Care Establishment,2 - Commissioning - Older people Pool,Older People - City & South,Nursing Independent Sector
Cambridgeshire County Council,28-Apr-16,20557430-13247063,-904.5,Bramley Court,Care Establishment,2 - Commissioning - Older people Pool,Older People - City & South,Nursing Independent Sector
Cambridgeshire County Council,28-Apr-16,20552915-13246997,-900,Bramley Court,Care Establishment,2 - Commissioning - Older people Pool,Older People - City & South,Residential Independent Sector
Cambridgeshire County Council,28-Apr-16,20552917-13246998,-900,Bramley Court,Care Establishment,2 - Commissioning - Older people Pool,Older People - City & South,Residential Independent Sector
Cambridgeshire County Council,28-Apr-16,20552921-13247000,-900,Bramley Court,Care Establishment,2 - Commissioning - Older people Pool,Older People - City & South,Residential Independent Sector
Cambridgeshire County Council,28-Apr-16,20552925-13247002,-900,Bramley Court,Care Establishment,2 - Commissioning - Older people Pool,Older People - City & South,Residential Independent Sector
Cambridgeshire County Council,28-Apr-16,20552930-13247005,-900,Bramley Court,Care Establishment,2 - Commissioning - Older people Pool,Older People - City & South,Residential Independent Sector
Cambridgeshire County Council,28-Apr-16,20562685-13256858,-900,The Cambridge Nursing Centre,Care Establishment,2 - Commissioning - Older people Pool,Older People Mental Health E Cambs,Nursing Independent Sector
Cambridgeshire County Council,28-Apr-16,20562694-13256862,-900,The Cambridge Nursing Centre,Care Establishment,2 - Commissioning - Older people Pool,Older People Mental Health E Cambs,Nursing Independent Sector
Cambridgeshire County Council,28-Apr-16,20562702-13256864,-900,The Cambridge Nursing Centre,Care Establishment,2 - Commissioning - Older people Pool,Older People Mental Health E Cambs,Nursing Independent Sector
Cambridgeshire County Council,28-Apr-16,20566677-13256705,-900,The Cambridge Nursing Centre,Care Establishment,2 - Commissioning - Older people Pool,Older People Mental Health E Cambs,Nursing Independent Sector
Cambridgeshire County Council,28-Apr-16,20566685-13256706,-900,The Cambridge Nursing Centre,Care Establishment,2 - Commissioning - Older people Pool,Older People Mental Health E Cambs,Nursing Independent Sector
Cambridgeshire County Council,28-Apr-16,20571476-13245936,-890,Abbey Healthcare (Huntingdon) Ltd,Care Establishment,2 - Commissioning - Older people Pool,Older People Mental Health Hunts,Nursing Independent Sector
Cambridgeshire County Council,28-Apr-16,20571477-13245937,-890,Abbey Healthcare (Huntingdon) Ltd,Care Establishment,2 - Commissioning - Older people Pool,Older People Mental Health Hunts,Nursing Independent Sector
Cambridgeshire County Council,28-Apr-16,20571480-13245940,-890,Abbey Healthcare (Huntingdon) Ltd,Care Establishment,2 - Commissioning - Older people Pool,Older People Mental Health Hunts,Nursing Independent Sector
Cambridgeshire County Council,28-Apr-16,20571483-13245943,-890,Abbey Healthcare (Huntingdon) Ltd,Care Establishment,2 - Commissioning - Older people Pool,Older People Mental Health Hunts,Nursing Independent Sector
Cambridgeshire County Council,28-Apr-16,20571484-13245944,-890,Abbey Healthcare (Huntingdon) Ltd,Care Establishment,2 - Commissioning - Older people Pool,Older People Mental Health Hunts,Nursing Independent Sector
Cambridgeshire County Council,28-Apr-16,20572100-13245905,-890,Abbey Healthcare (Huntingdon) Ltd,Care Establishment,2 - Commissioning - Older people Pool,Older People Mental Health Hunts,Nursing Independent Sector
Cambridgeshire County Council,28-Apr-16,20572102-13245907,-890,Abbey Healthcare (Huntingdon) Ltd,Care Establishment,2 - Commissioning - Older people Pool,Older People Mental Health Hunts,Nursing Independent Sector
Cambridgeshire County Council,28-Apr-16,20572103-13245908,-890,Abbey Healthcare (Huntingdon) Ltd,Care Establishment,2 - Commissioning - Older people Pool,Older People Mental Health Hunts,Nursing Independent Sector
Cambridgeshire County Council,28-Apr-16,20572105-13245910,-890,Abbey Healthcare (Huntingdon) Ltd,Care Establishment,2 - Commissioning - Older people Pool,Older People Mental Health Hunts,Nursing Independent Sector
Cambridgeshire County Council,28-Apr-16,20572110-13245915,-890,Abbey Healthcare (Huntingdon) Ltd,Care Establishment,2 - Commissioning - Older people Pool,Older People Mental Health Hunts,Nursing Independent Sector
Cambridgeshire County Council,28-Apr-16,20554008-13246957,-883.82,Bramley Court,Care Establishment,2 - Commissioning - Older people Pool,Older People - City & South,Residential Independent Sector
Cambridgeshire County Council,28-Apr-16,20554018-13246958,-883.82,Bramley Court,Care Establishment,2 - Commissioning - Older people Pool,Older People - City & South,Residential Independent Sector
Cambridgeshire County Council,28-Apr-16,20554019-13246959,-883.82,Bramley Court,Care Establishment,2 - Commissioning - Older people Pool,Older People - City & South,Residential Independent Sector
Cambridgeshire County Council,28-Apr-16,20560047-13246970,-883.82,Bramley Court,Care Establishment,2 - Commissioning - Older people Pool,Older People - City & South,Residential Independent Sector
Cambridgeshire County Council,28-Apr-16,20560048-13246971,-883.82,Bramley Court,Care Establishment,2 - Commissioning - Older people Pool,Older People - City & South,Residential Independent Sector
Cambridgeshire County Council,28-Apr-16,20560051-13246972,-883.82,Bramley Court,Care Establishment,2 - Commissioning - Older people Pool,Older People - City & South,Residential Independent Sector
Cambridgeshire County Council,28-Apr-16,20556802-13243043,-881.6,Cherry Hinton Nursing Home,Care Establishment,2 - Commissioning - Older people Pool,Older People Mental Health City & South,Nursing Independent Sector
Cambridgeshire County Council,28-Apr-16,20556814-13243047,-881.6,Cherry Hinton Nursing Home,Care Establishment,2 - Commissioning - Older people Pool,Older People Mental Health City & South,Nursing Independent Sector
Cambridgeshire County Council,28-Apr-16,20556816-13243049,-881.6,Cherry Hinton Nursing Home,Care Establishment,2 - Commissioning - Older people Pool,Older People Mental Health City & South,Nursing Independent Sector
Cambridgeshire County Council,28-Apr-16,20556819-13243051,-881.6,Cherry Hinton Nursing Home,Care Establishment,2 - Commissioning - Older people Pool,Older People Mental Health City & South,Nursing Independent Sector
Cambridgeshire County Council,28-Apr-16,20557790-13243040,-881.6,Cherry Hinton Nursing Home,Care Establishment,2 - Commissioning - Older people Pool,Older People Mental Health City & South,Nursing Independent Sector
Cambridgeshire County Council,28-Apr-16,20555575-13244232,-880,Rose Lodge,Care Establishment,2 - Commissioning - Older people Pool,Older People Mental Health Fenland,Nursing Independent Sector
Cambridgeshire County Council,28-Apr-16,20555584-13244238,-880,Rose Lodge,Care Establishment,2 - Commissioning - Older people Pool,Older People Mental Health Fenland,Nursing Independent Sector
Cambridgeshire County Council,28-Apr-16,20555586-13244239,-880,Rose Lodge,Care Establishment,2 - Commissioning - Older people Pool,Older People Mental Health Fenland,Nursing Independent Sector
Cambridgeshire County Council,28-Apr-16,20555589-13244240,-880,Rose Lodge,Care Establishment,2 - Commissioning - Older people Pool,Older People Mental Health Fenland,Nursing Independent Sector
Cambridgeshire County Council,28-Apr-16,20555592-13244242,-880,Rose Lodge,Care Establishment,2 - Commissioning - Older people Pool,Older People Mental Health Fenland,Nursing Independent Sector
Cambridgeshire County Council,18-Apr-16,20381850-13190261,-862.5,Guidant Group,Trade Supplier,2 - Commissioning - Older people Pool,Older People - Fenland,Pay - Agency Staff
Cambridgeshire County Council,06-Apr-16,20389527-13125683,-861.13,The Cambridge Housing Society Ltd,Care Establishment,2 - Commissioning - Older people Pool,Older People - City & South,Residential Independent Sector
Cambridgeshire County Council,06-Apr-16,20389528-13125684,-861.13,The Cambridge Housing Society Ltd,Care Establishment,2 - Commissioning - Older people Pool,Older People - City & South,Residential Independent Sector
Cambridgeshire County Council,06-Apr-16,20389530-13125686,-861.13,The Cambridge Housing Society Ltd,Care Establishment,2 - Commissioning - Older people Pool,Older People - City & South,Residential Independent Sector
Cambridgeshire County Council,06-Apr-16,20389532-13125688,-861.13,The Cambridge Housing Society Ltd,Care Establishment,2 - Commissioning - Older people Pool,Older People - City & South,Residential Independent Sector
Cambridgeshire County Council,06-Apr-16,20389533-13125689,-861.13,The Cambridge Housing Society Ltd,Care Establishment,2 - Commissioning - Older people Pool,Older People - City & South,Residential Independent Sector
Cambridgeshire County Council,06-Apr-16,20389535-13125691,-861.13,The Cambridge Housing Society Ltd,Care Establishment,2 - Commissioning - Older people Pool,Older People - City & South,Residential Independent Sector
Cambridgeshire County Council,28-Apr-16,20549254-13235399,-861.13,Vera James House,Care Establishment,2 - Commissioning - Older people Pool,East Cambs - O P Team,Residential Independent Sector
Cambridgeshire County Council,28-Apr-16,20549273-13235402,-861.13,Vera James House,Care Establishment,2 - Commissioning - Older people Pool,East Cambs - O P Team,Residential Independent Sector
Cambridgeshire County Council,28-Apr-16,20556376-13235646,-861.13,Vera James House,Care Establishment,2 - Commissioning - Older people Pool,East Cambs - O P Team,Residential Independent Sector
Cambridgeshire County Council,28-Apr-16,20556420-13235649,-861.13,Vera James House,Care Establishment,2 - Commissioning - Older people Pool,East Cambs - O P Team,Residential Independent Sector
Cambridgeshire County Council,28-Apr-16,20556457-13235652,-861.13,Vera James House,Care Establishment,2 - Commissioning - Older people Pool,East Cambs - O P Team,Residential Independent Sector
Cambridgeshire County Council,28-Apr-16,20568787-13251104,-861.13,The Cambridge Housing Society Ltd,Care Establishment,2 - Commissioning - Older people Pool,Older People - City & South,Residential Independent Sector
Cambridgeshire County Council,28-Apr-16,20568788-13251105,-861.13,The Cambridge Housing Society Ltd,Care Establishment,2 - Commissioning - Older people Pool,Older People - City & South,Residential Independent Sector
Cambridgeshire County Council,28-Apr-16,20568789-13251106,-861.13,The Cambridge Housing Society Ltd,Care Establishment,2 - Commissioning - Older people Pool,Older People - City & South,Residential Independent Sector
Cambridgeshire County Council,28-Apr-16,20568790-13251107,-861.13,The Cambridge Housing Society Ltd,Care Establishment,2 - Commissioning - Older people Pool,Older People - City & South,Residential Independent Sector
Cambridgeshire County Council,28-Apr-16,20568800-13251117,-861.13,The Cambridge Housing Society Ltd,Care Establishment,2 - Commissioning - Older people Pool,Older People - City & South,Residential Independent Sector
Cambridgeshire County Council,28-Apr-16,20564199-13247740,-858.52,Barchester Healthcare Homes Ltd,Care Establishment,2 - Commissioning - Older people Pool,Older People Mental Health E Cambs,Nursing Independent Sector
Cambridgeshire County Council,28-Apr-16,20564223-13247739,-858.52,Barchester Healthcare Homes Ltd,Care Establishment,2 - Commissioning - Older people Pool,Older People Mental Health E Cambs,Nursing Independent Sector
Cambridgeshire County Council,28-Apr-16,20564230-13247701,-858.52,Barchester Healthcare Homes Ltd,Care Establishment,2 - Commissioning - Older people Pool,Older People Mental Health E Cambs,Nursing Independent Sector
Cambridgeshire County Council,28-Apr-16,20564269-13247705,-858.52,Barchester Healthcare Homes Ltd,Care Establishment,2 - Commissioning - Older people Pool,Older People Mental Health E Cambs,Nursing Independent Sector
Cambridgeshire County Council,28-Apr-16,20564288-13247708,-858.52,Barchester Healthcare Homes Ltd,Care Establishment,2 - Commissioning - Older people Pool,Older People Mental Health E Cambs,Nursing Independent Sector
Cambridgeshire County Council,28-Apr-16,20552971-13233852,-858.5,Hilton Park Care Centre,Care Establishment,2 - Operations - Learning Disability,LDP City Locality - Care,Nursing Independent Sector
Cambridgeshire County Council,28-Apr-16,20552974-13233854,-858.5,Hilton Park Care Centre,Care Establishment,2 - Operations - Learning Disability,LDP City Locality - Care,Nursing Independent Sector
Cambridgeshire County Council,28-Apr-16,20552977-13233855,-858.5,Hilton Park Care Centre,Care Establishment,2 - Operations - Learning Disability,LDP City Locality - Care,Nursing Independent Sector
Cambridgeshire County Council,28-Apr-16,20552978-13233856,-858.5,Hilton Park Care Centre,Care Establishment,2 - Operations - Learning Disability,LDP City Locality - Care,Nursing Independent Sector
Cambridgeshire County Council,28-Apr-16,20552980-13233858,-858.5,Hilton Park Care Centre,Care Establishment,2 - Operations - Learning Disability,LDP City Locality - Care,Nursing Independent Sector
Cambridgeshire County Council,28-Apr-16,20552982-13233860,-858.5,Hilton Park Care Centre,Care Establishment,2 - Operations - Learning Disability,LDP City Locality - Care,Nursing Independent Sector
Cambridgeshire County Council,28-Apr-16,20554987-13256637,-857.14,The Cambridge Nursing Centre,Care Establishment,2 - Commissioning - Older people Pool,Older People Mental Health City & South,Nursing Independent Sector
Cambridgeshire County Council,28-Apr-16,20555291-13247550,-857.14,Barchester Healthcare Homes Ltd,Care Establishment,2 - Commissioning - Older people Pool,Older People - City & South,Nursing Independent Sector
Cambridgeshire County Council,28-Apr-16,20566885-13256700,-857.14,The Cambridge Nursing Centre,Care Establishment,2 - Commissioning - Older people Pool,Older People Mental Health City & South,Nursing Independent Sector
Cambridgeshire County Council,28-Apr-16,20551467-13254346,-854.25,Gracefield Nursing And Residential Home,Care Establishment,2 - Commissioning - Older people Pool,Older People Mental Health City & South,Nursing Independent Sector
Cambridgeshire County Council,28-Apr-16,20551470-13254349,-854.25,Gracefield Nursing And Residential Home,Care Establishment,2 - Commissioning - Older people Pool,Older People Mental Health City & South,Nursing Independent Sector
Cambridgeshire County Council,28-Apr-16,20551472-13254351,-854.25,Gracefield Nursing And Residential Home,Care Establishment,2 - Commissioning - Older people Pool,Older People Mental Health City & South,Nursing Independent Sector
Cambridgeshire County Council,28-Apr-16,20551473-13254352,-854.25,Gracefield Nursing And Residential Home,Care Establishment,2 - Commissioning - Older people Pool,Older People Mental Health City & South,Nursing Independent Sector
Cambridgeshire County Council,28-Apr-16,20551475-13254354,-854.25,Gracefield Nursing And Residential Home,Care Establishment,2 - Commissioning - Older people Pool,Older People Mental Health City & South,Nursing Independent Sector
Cambridgeshire County Council,28-Apr-16,20553021-13245917,-854.25,Abbey Healthcare (Huntingdon) Ltd,Care Establishment,2 - Commissioning - Older people Pool,Hunts O P  Team,Nursing Independent Sector
Cambridgeshire County Council,28-Apr-16,20553027-13245923,-854.25,Abbey Healthcare (Huntingdon) Ltd,Care Establishment,2 - Commissioning - Older people Pool,Hunts O P  Team,Nursing Independent Sector
Cambridgeshire County Council,28-Apr-16,20553029-13245925,-854.25,Abbey Healthcare (Huntingdon) Ltd,Care Establishment,2 - Commissioning - Older people Pool,Hunts O P  Team,Nursing Independent Sector
Cambridgeshire County Council,28-Apr-16,20553033-13245929,-854.25,Abbey Healthcare (Huntingdon) Ltd,Care Establishment,2 - Commissioning - Older people Pool,Hunts O P  Team,Nursing Independent Sector
Cambridgeshire County Council,28-Apr-16,20553034-13245930,-854.25,Abbey Healthcare (Huntingdon) Ltd,Care Establishment,2 - Commissioning - Older people Pool,Hunts O P  Team,Nursing Independent Sector
Cambridgeshire County Council,28-Apr-16,20562194-13247539,-854.25,Barchester Healthcare Homes Ltd,Care Establishment,2 - Commissioning - Older people Pool,Older People Mental Health City & South,Nursing Independent Sector
Cambridgeshire County Council,28-Apr-16,20562196-13247541,-854.25,Barchester Healthcare Homes Ltd,Care Establishment,2 - Commissioning - Older people Pool,Older People Mental Health City & South,Nursing Independent Sector
Cambridgeshire County Council,28-Apr-16,20562198-13247528,-854.25,Barchester Healthcare Homes Ltd,Care Establishment,2 - Commissioning - Older people Pool,Older People Mental Health City & South,Nursing Independent Sector
Cambridgeshire County Council,28-Apr-16,20562199-13247529,-854.25,Barchester Healthcare Homes Ltd,Care Establishment,2 - Commissioning - Older people Pool,Older People Mental Health City & South,Nursing Independent Sector
Cambridgeshire County Council,28-Apr-16,20562202-13247531,-854.25,Barchester Healthcare Homes Ltd,Care Establishment,2 - Commissioning - Older people Pool,Older People Mental Health City & South,Nursing Independent Sector
Cambridgeshire County Council,28-Apr-16,20565352-13246405,-854.25,Woodlands Care Centre,Care Establishment,2 - Commissioning - Older people Pool,Older People - City & South,Residential Independent Sector
Cambridgeshire County Council,28-Apr-16,20565354-13246407,-854.25,Woodlands Care Centre,Care Establishment,2 - Commissioning - Older people Pool,Older People - City & South,Residential Independent Sector
Cambridgeshire County Council,28-Apr-16,20565357-13246410,-854.25,Woodlands Care Centre,Care Establishment,2 - Commissioning - Older people Pool,Older People - City & South,Residential Independent Sector
Cambridgeshire County Council,28-Apr-16,20565361-13246414,-854.25,Woodlands Care Centre,Care Establishment,2 - Commissioning - Older people Pool,Older People - City & South,Residential Independent Sector
Cambridgeshire County Council,28-Apr-16,20565362-13246415,-854.25,Woodlands Care Centre,Care Establishment,2 - Commissioning - Older people Pool,Older People - City & South,Residential Independent Sector
Cambridgeshire County Council,28-Apr-16,20569250-13246038,-854.25,Abbey Healthcare (Huntingdon) Ltd,Care Establishment,2 - Commissioning - Older people Pool,Older People Mental Health Hunts,Nursing Independent Sector
Cambridgeshire County Council,28-Apr-16,20569261-13246043,-854.25,Abbey Healthcare (Huntingdon) Ltd,Care Establishment,2 - Commissioning - Older people Pool,Older People Mental Health Hunts,Nursing Independent Sector
Cambridgeshire County Council,28-Apr-16,20569263-13246045,-854.25,Abbey Healthcare (Huntingdon) Ltd,Care Establishment,2 - Commissioning - Older people Pool,Older People Mental Health Hunts,Nursing Independent Sector
Cambridgeshire County Council,28-Apr-16,20569266-13246047,-854.25,Abbey Healthcare (Huntingdon) Ltd,Care Establishment,2 - Commissioning - Older people Pool,Older People Mental Health Hunts,Nursing Independent Sector
Cambridgeshire County Council,28-Apr-16,20569271-13246050,-854.25,Abbey Healthcare (Huntingdon) Ltd,Care Establishment,2 - Commissioning - Older people Pool,Older People Mental Health Hunts,Nursing Independent Sector
Cambridgeshire County Council,28-Apr-16,20549957-13247781,-850,Barchester Healthcare Homes Ltd,Care Establishment,2 - Commissioning - Older people Pool,Older People - City & South,Nursing Independent Sector
Cambridgeshire County Council,28-Apr-16,20549963-13247782,-850,Barchester Healthcare Homes Ltd,Care Establishment,2 - Commissioning - Older people Pool,Older People - City & South,Nursing Independent Sector
Cambridgeshire County Council,28-Apr-16,20549964-13247783,-850,Barchester Healthcare Homes Ltd,Care Establishment,2 - Commissioning - Older people Pool,Older People - City & South,Nursing Independent Sector
Cambridgeshire County Council,28-Apr-16,20549974-13247788,-850,Barchester Healthcare Homes Ltd,Care Establishment,2 - Commissioning - Older people Pool,Older People - City & South,Nursing Independent Sector
Cambridgeshire County Council,28-Apr-16,20549978-13247791,-850,Barchester Healthcare Homes Ltd,Care Establishment,2 - Commissioning - Older people Pool,Older People - City & South,Nursing Independent Sector
Cambridgeshire County Council,28-Apr-16,20564773-13246454,-850,Woodlands Care Centre,Care Establishment,2 - Commissioning - Older people Pool,Older People - City & South,Nursing Independent Sector
Cambridgeshire County Council,28-Apr-16,20564776-13246457,-850,Woodlands Care Centre,Care Establishment,2 - Commissioning - Older people Pool,Older People - City & South,Nursing Independent Sector
Cambridgeshire County Council,28-Apr-16,20564778-13246459,-850,Woodlands Care Centre,Care Establishment,2 - Commissioning - Older people Pool,Older People - City & South,Nursing Independent Sector
Cambridgeshire County Council,28-Apr-16,20564782-13246463,-850,Woodlands Care Centre,Care Establishment,2 - Commissioning - Older people Pool,Older People - City & South,Nursing Independent Sector
Cambridgeshire County Council,28-Apr-16,20565942-13246367,-850,Woodlands Care Centre,Care Establishment,2 - Commissioning - Older people Pool,Older People - City & South,Nursing Independent Sector
Cambridgeshire County Council,28-Apr-16,20566130-13246332,-845.75,Woodlands Care Centre,Care Establishment,2 - Commissioning - Older people Pool,Older People Mental Health E Cambs,Residential Independent Sector
Cambridgeshire County Council,28-Apr-16,20566137-13246339,-845.75,Woodlands Care Centre,Care Establishment,2 - Commissioning - Older people Pool,Older People Mental Health E Cambs,Residential Independent Sector
Cambridgeshire County Council,28-Apr-16,20566140-13246342,-845.75,Woodlands Care Centre,Care Establishment,2 - Commissioning - Older people Pool,Older People Mental Health E Cambs,Residential Independent Sector
Cambridgeshire County Council,28-Apr-16,20566141-13246343,-845.75,Woodlands Care Centre,Care Establishment,2 - Commissioning - Older people Pool,Older People Mental Health E Cambs,Residential Independent Sector
Cambridgeshire County Council,28-Apr-16,20566143-13246345,-845.75,Woodlands Care Centre,Care Establishment,2 - Commissioning - Older people Pool,Older People Mental Health E Cambs,Residential Independent Sector
Cambridgeshire County Council,28-Apr-16,19751199-13242732,-841,Cedar Court Care Ltd,Care Establishment,2 - Commissioning - Older people Pool,Older People Mental Health Fenland,Nursing Independent Sector
Cambridgeshire County Council,28-Apr-16,19751200-13242733,-841,Cedar Court Care Ltd,Care Establishment,2 - Commissioning - Older people Pool,Older People Mental Health Fenland,Nursing Independent Sector
Cambridgeshire County Council,28-Apr-16,19751201-13242734,-841,Cedar Court Care Ltd,Care Establishment,2 - Commissioning - Older people Pool,Older People Mental Health Fenland,Nursing Independent Sector
Cambridgeshire County Council,28-Apr-16,19751202-13242735,-841,Cedar Court Care Ltd,Care Establishment,2 - Commissioning - Older people Pool,Older People Mental Health Fenland,Nursing Independent Sector
Cambridgeshire County Council,28-Apr-16,19751203-13242736,-841,Cedar Court Care Ltd,Care Establishment,2 - Commissioning - Older people Pool,Older People Mental Health Fenland,Nursing Independent Sector
Cambridgeshire County Council,28-Apr-16,19751204-13242737,-841,Cedar Court Care Ltd,Care Establishment,2 - Commissioning - Older people Pool,Older People Mental Health Fenland,Nursing Independent Sector
Cambridgeshire County Council,28-Apr-16,19751205-13242738,-841,Cedar Court Care Ltd,Care Establishment,2 - Commissioning - Older people Pool,Older People Mental Health Fenland,Nursing Independent Sector
Cambridgeshire County Council,28-Apr-16,19751206-13242739,-841,Cedar Court Care Ltd,Care Establishment,2 - Commissioning - Older people Pool,Older People Mental Health Fenland,Nursing Independent Sector
Cambridgeshire County Council,28-Apr-16,19751207-13242740,-841,Cedar Court Care Ltd,Care Establishment,2 - Commissioning - Older people Pool,Older People Mental Health Fenland,Nursing Independent Sector
Cambridgeshire County Council,28-Apr-16,19751208-13242741,-841,Cedar Court Care Ltd,Care Establishment,2 - Commissioning - Older people Pool,Older People Mental Health Fenland,Nursing Independent Sector
Cambridgeshire County Council,28-Apr-16,19751209-13242742,-841,Cedar Court Care Ltd,Care Establishment,2 - Commissioning - Older people Pool,Older People Mental Health Fenland,Nursing Independent Sector
Cambridgeshire County Council,28-Apr-16,19751210-13242715,-841,Cedar Court Care Ltd,Care Establishment,2 - Commissioning - Older people Pool,Older People Mental Health Fenland,Nursing Independent Sector
Cambridgeshire County Council,28-Apr-16,19751211-13242716,-841,Cedar Court Care Ltd,Care Establishment,2 - Commissioning - Older people Pool,Older People Mental Health Fenland,Nursing Independent Sector
Cambridgeshire County Council,28-Apr-16,19751212-13242717,-841,Cedar Court Care Ltd,Care Establishment,2 - Commissioning - Older people Pool,Older People Mental Health Fenland,Nursing Independent Sector
Cambridgeshire County Council,28-Apr-16,19751213-13242718,-841,Cedar Court Care Ltd,Care Establishment,2 - Commissioning - Older people Pool,Older People Mental Health Fenland,Nursing Independent Sector
Cambridgeshire County Council,28-Apr-16,19751214-13242719,-841,Cedar Court Care Ltd,Care Establishment,2 - Commissioning - Older people Pool,Older People Mental Health Fenland,Nursing Independent Sector
Cambridgeshire County Council,28-Apr-16,19751215-13242720,-841,Cedar Court Care Ltd,Care Establishment,2 - Commissioning - Older people Pool,Older People Mental Health Fenland,Nursing Independent Sector
Cambridgeshire County Council,28-Apr-16,19751216-13242721,-841,Cedar Court Care Ltd,Care Establishment,2 - Commissioning - Older people Pool,Older People Mental Health Fenland,Nursing Independent Sector
Cambridgeshire County Council,28-Apr-16,19751217-13242722,-841,Cedar Court Care Ltd,Care Establishment,2 - Commissioning - Older people Pool,Older People Mental Health Fenland,Nursing Independent Sector
Cambridgeshire County Council,28-Apr-16,19751218-13242723,-841,Cedar Court Care Ltd,Care Establishment,2 - Commissioning - Older people Pool,Older People Mental Health Fenland,Nursing Independent Sector
Cambridgeshire County Council,28-Apr-16,19752249-13242725,-841,Cedar Court Care Ltd,Care Establishment,2 - Commissioning - Older people Pool,Older People Mental Health Fenland,Nursing Independent Sector
Cambridgeshire County Council,28-Apr-16,19752250-13242726,-841,Cedar Court Care Ltd,Care Establishment,2 - Commissioning - Older people Pool,Older People Mental Health Fenland,Nursing Independent Sector
Cambridgeshire County Council,28-Apr-16,19752251-13242727,-841,Cedar Court Care Ltd,Care Establishment,2 - Commissioning - Older people Pool,Older People Mental Health Fenland,Nursing Independent Sector
Cambridgeshire County Council,28-Apr-16,19752252-13242728,-841,Cedar Court Care Ltd,Care Establishment,2 - Commissioning - Older people Pool,Older People Mental Health Fenland,Nursing Independent Sector
Cambridgeshire County Council,28-Apr-16,19752253-13242729,-841,Cedar Court Care Ltd,Care Establishment,2 - Commissioning - Older people Pool,Older People Mental Health Fenland,Nursing Independent Sector
Cambridgeshire County Council,28-Apr-16,19752254-13242730,-841,Cedar Court Care Ltd,Care Establishment,2 - Commissioning - Older people Pool,Older People Mental Health Fenland,Nursing Independent Sector
Cambridgeshire County Council,28-Apr-16,19752255-13242731,-841,Cedar Court Care Ltd,Care Establishment,2 - Commissioning - Older people Pool,Older People Mental Health Fenland,Nursing Independent Sector
Cambridgeshire County Council,21-Apr-16,20522344-13207295,-835.28,Redacted Personal Data,Individual,2 - Commissioning - Older people Pool,Older People - City & South,Direct Payments - Social Services
Cambridgeshire County Council,21-Apr-16,20522348-13207299,-835.28,Redacted Personal Data,Individual,2 - Commissioning - Older people Pool,Older People - City & South,Direct Payments - Social Services
Cambridgeshire County Council,21-Apr-16,20522353-13207304,-835.28,Redacted Personal Data,Individual,2 - Commissioning - Older people Pool,Older People - City & South,Direct Payments - Social Services
Cambridgeshire County Council,21-Apr-16,20522357-13207308,-835.28,Redacted Personal Data,Individual,2 - Commissioning - Older people Pool,Older People - City & South,Direct Payments - Social Services
Cambridgeshire County Council,21-Apr-16,20522362-13207313,-835.28,Redacted Personal Data,Individual,2 - Commissioning - Older people Pool,Older People - City & South,Direct Payments - Social Services
Cambridgeshire County Council,21-Apr-16,20522364-13207315,-835.28,Redacted Personal Data,Individual,2 - Commissioning - Older people Pool,Older People - City & South,Direct Payments - Social Services
Cambridgeshire County Council,21-Apr-16,20522368-13207319,-835.28,Redacted Personal Data,Individual,2 - Commissioning - Older people Pool,Older People - City & South,Direct Payments - Social Services
Cambridgeshire County Council,21-Apr-16,20522369-13207320,-835.28,Redacted Personal Data,Individual,2 - Commissioning - Older people Pool,Older People - City & South,Direct Payments - Social Services
Cambridgeshire County Council,21-Apr-16,20522382-13207286,-835.28,Redacted Personal Data,Individual,2 - Commissioning - Older people Pool,Older People - City & South,Direct Payments - Social Services
Cambridgeshire County Council,21-Apr-16,20522383-13207287,-835.28,Redacted Personal Data,Individual,2 - Commissioning - Older people Pool,Older People - City & South,Direct Payments - Social Services
Cambridgeshire County Council,21-Apr-16,20522388-13207292,-835.28,Redacted Personal Data,Individual,2 - Commissioning - Older people Pool,Older People - City & South,Direct Payments - Social Services
Cambridgeshire County Council,21-Apr-16,20526076-13207321,-835.28,Redacted Personal Data,Individual,2 - Commissioning - Older people Pool,Older People - City & South,Direct Payments - Social Services
Cambridgeshire County Council,21-Apr-16,20526082-13207327,-835.28,Redacted Personal Data,Individual,2 - Commissioning - Older people Pool,Older People - City & South,Direct Payments - Social Services
Cambridgeshire County Council,21-Apr-16,20526086-13207331,-835.28,Redacted Personal Data,Individual,2 - Commissioning - Older people Pool,Older People - City & South,Direct Payments - Social Services
Cambridgeshire County Council,06-Apr-16,20277036-13123575,-835,Longueville Court,Care Establishment,2 - Commissioning - Older people Pool,Hunts O P  Team,Nursing Independent Sector
Cambridgeshire County Council,06-Apr-16,20277038-13123577,-835,Longueville Court,Care Establishment,2 - Commissioning - Older people Pool,Older People Mental Health Hunts,Nursing Independent Sector
Cambridgeshire County Council,06-Apr-16,20277053-13123586,-835,Longueville Court,Care Establishment,2 - Commissioning - Older people Pool,Older People Mental Health Hunts,Nursing Independent Sector
Cambridgeshire County Council,06-Apr-16,20277054-13123587,-835,Longueville Court,Care Establishment,2 - Commissioning - Older people Pool,Older People Mental Health Hunts,Nursing Independent Sector
Cambridgeshire County Council,06-Apr-16,20277055-13123588,-835,Longueville Court,Care Establishment,2 - Commissioning - Older people Pool,Older People Mental Health Hunts,Nursing Independent Sector
Cambridgeshire County Council,06-Apr-16,20277057-13123590,-835,Longueville Court,Care Establishment,2 - Commissioning - Older people Pool,Older People Mental Health Hunts,Nursing Independent Sector
Cambridgeshire County Council,06-Apr-16,20277059-13123592,-835,Longueville Court,Care Establishment,2 - Commissioning - Older people Pool,Hunts O P  Team,Nursing Independent Sector
Cambridgeshire County Council,06-Apr-16,20277064-13123595,-835,Longueville Court,Care Establishment,2 - Commissioning - Older people Pool,Older People Mental Health Hunts,Nursing Independent Sector
Cambridgeshire County Council,06-Apr-16,20277068-13123599,-835,Longueville Court,Care Establishment,2 - Commissioning - Older people Pool,Hunts O P  Team,Nursing Independent Sector
Cambridgeshire County Council,06-Apr-16,20277069-13123600,-835,Longueville Court,Care Establishment,2 - Commissioning - Older people Pool,Hunts O P  Team,Nursing Independent Sector
Cambridgeshire County Council,06-Apr-16,20277074-13123602,-835,Longueville Court,Care Establishment,2 - Commissioning - Older people Pool,Older People Mental Health Hunts,Nursing Independent Sector
Cambridgeshire County Council,06-Apr-16,20277076-13123604,-835,Longueville Court,Care Establishment,2 - Commissioning - Older people Pool,Older People Mental Health Hunts,Nursing Independent Sector
Cambridgeshire County Council,06-Apr-16,20277078-13123606,-835,Longueville Court,Care Establishment,2 - Commissioning - Older people Pool,Hunts O P  Team,Nursing Independent Sector
Cambridgeshire County Council,06-Apr-16,20277080-13123607,-835,Longueville Court,Care Establishment,2 - Commissioning - Older people Pool,Older People Mental Health Hunts,Nursing Independent Sector
Cambridgeshire County Council,06-Apr-16,20277081-13123608,-835,Longueville Court,Care Establishment,2 - Commissioning - Older people Pool,Hunts O P  Team,Nursing Independent Sector
Cambridgeshire County Council,06-Apr-16,20277085-13123609,-835,Longueville Court,Care Establishment,2 - Commissioning - Older people Pool,Hunts O P  Team,Nursing Independent Sector
Cambridgeshire County Council,06-Apr-16,20277087-13123611,-835,Longueville Court,Care Establishment,2 - Commissioning - Older people Pool,Hunts O P  Team,Nursing Independent Sector
Cambridgeshire County Council,06-Apr-16,20277088-13123612,-835,Longueville Court,Care Establishment,2 - Commissioning - Older people Pool,Older People Mental Health Hunts,Nursing Independent Sector
Cambridgeshire County Council,06-Apr-16,20277091-13123614,-835,Longueville Court,Care Establishment,2 - Commissioning - Older people Pool,Older People Mental Health Hunts,Nursing Independent Sector
Cambridgeshire County Council,06-Apr-16,20277096-13123617,-835,Longueville Court,Care Establishment,2 - Commissioning - Older people Pool,Hunts O P  Team,Nursing Independent Sector
Cambridgeshire County Council,06-Apr-16,20277100-13123619,-835,Longueville Court,Care Establishment,2 - Commissioning - Older people Pool,Older People Mental Health Hunts,Nursing Independent Sector
Cambridgeshire County Council,06-Apr-16,20277103-13123620,-835,Longueville Court,Care Establishment,2 - Commissioning - Older people Pool,Hunts O P  Team,Nursing Independent Sector
Cambridgeshire County Council,06-Apr-16,20277106-13123622,-835,Longueville Court,Care Establishment,2 - Commissioning - Older people Pool,Older People Mental Health Hunts,Nursing Independent Sector
Cambridgeshire County Council,06-Apr-16,20277108-13123624,-835,Longueville Court,Care Establishment,2 - Commissioning - Older people Pool,Older People Mental Health Hunts,Nursing Independent Sector
Cambridgeshire County Council,06-Apr-16,20277109-13123625,-835,Longueville Court,Care Establishment,2 - Commissioning - Older people Pool,Hunts O P  Team,Nursing Independent Sector
Cambridgeshire County Council,06-Apr-16,20403125-13123502,-835,Longueville Court,Care Establishment,2 - Commissioning - Older people Pool,Hunts O P  Team,Nursing Independent Sector
Cambridgeshire County Council,06-Apr-16,20403127-13123504,-835,Longueville Court,Care Establishment,2 - Commissioning - Older people Pool,Older People Mental Health Hunts,Nursing Independent Sector
Cambridgeshire County Council,06-Apr-16,20403130-13123505,-835,Longueville Court,Care Establishment,2 - Commissioning - Older people Pool,Older People Mental Health Hunts,Nursing Independent Sector
Cambridgeshire County Council,06-Apr-16,20403134-13123508,-835,Longueville Court,Care Establishment,2 - Commissioning - Older people Pool,Hunts O P  Team,Nursing Independent Sector
Cambridgeshire County Council,06-Apr-16,20403136-13123510,-835,Longueville Court,Care Establishment,2 - Commissioning - Older people Pool,Older People Mental Health Hunts,Nursing Independent Sector
Cambridgeshire County Council,06-Apr-16,20403142-13123512,-835,Longueville Court,Care Establishment,2 - Commissioning - Older people Pool,Older People Mental Health Hunts,Nursing Independent Sector
Cambridgeshire County Council,06-Apr-16,20403146-13123515,-835,Longueville Court,Care Establishment,2 - Commissioning - Older people Pool,Older People Mental Health Hunts,Nursing Independent Sector
Cambridgeshire County Council,06-Apr-16,20403147-13123516,-835,Longueville Court,Care Establishment,2 - Commissioning - Older people Pool,Hunts O P  Team,Nursing Independent Sector
Cambridgeshire County Council,06-Apr-16,20403149-13123518,-835,Longueville Court,Care Establishment,2 - Commissioning - Older people Pool,Hunts O P  Team,Nursing Independent Sector
Cambridgeshire County Council,06-Apr-16,20403155-13123519,-835,Longueville Court,Care Establishment,2 - Commissioning - Older people Pool,Older People Mental Health Hunts,Nursing Independent Sector
Cambridgeshire County Council,06-Apr-16,20403156-13123520,-835,Longueville Court,Care Establishment,2 - Commissioning - Older people Pool,Older People Mental Health Hunts,Nursing Independent Sector
Cambridgeshire County Council,06-Apr-16,20403157-13123521,-835,Longueville Court,Care Establishment,2 - Commissioning - Older people Pool,Older People Mental Health Hunts,Nursing Independent Sector
Cambridgeshire County Council,06-Apr-16,20403165-13123525,-835,Longueville Court,Care Establishment,2 - Commissioning - Older people Pool,Older People Mental Health Hunts,Nursing Independent Sector
Cambridgeshire County Council,06-Apr-16,20403178-13123532,-835,Longueville Court,Care Establishment,2 - Commissioning - Older people Pool,Older People Mental Health Hunts,Nursing Independent Sector
Cambridgeshire County Council,06-Apr-16,20403182-13123534,-835,Longueville Court,Care Establishment,2 - Commissioning - Older people Pool,Hunts O P  Team,Nursing Independent Sector
Cambridgeshire County Council,06-Apr-16,20403184-13123535,-835,Longueville Court,Care Establishment,2 - Commissioning - Older people Pool,Older People Mental Health Hunts,Nursing Independent Sector
Cambridgeshire County Council,06-Apr-16,20403193-13123538,-835,Longueville Court,Care Establishment,2 - Commissioning - Older people Pool,Hunts O P  Team,Nursing Independent Sector
Cambridgeshire County Council,06-Apr-16,20403194-13123539,-835,Longueville Court,Care Establishment,2 - Commissioning - Older people Pool,Older People Mental Health Hunts,Nursing Independent Sector
Cambridgeshire County Council,06-Apr-16,20403197-13123540,-835,Longueville Court,Care Establishment,2 - Commissioning - Older people Pool,Hunts O P  Team,Nursing Independent Sector
Cambridgeshire County Council,06-Apr-16,20403198-13123541,-835,Longueville Court,Care Establishment,2 - Commissioning - Older people Pool,Older People Mental Health Hunts,Nursing Independent Sector
Cambridgeshire County Council,06-Apr-16,20403203-13123545,-835,Longueville Court,Care Establishment,2 - Commissioning - Older people Pool,Older People Mental Health Hunts,Nursing Independent Sector
Cambridgeshire County Council,06-Apr-16,20403207-13123548,-835,Longueville Court,Care Establishment,2 - Commissioning - Older people Pool,Older People Mental Health Hunts,Nursing Independent Sector
Cambridgeshire County Council,06-Apr-16,20403208-13123549,-835,Longueville Court,Care Establishment,2 - Commissioning - Older people Pool,Hunts O P  Team,Nursing Independent Sector
Cambridgeshire County Council,06-Apr-16,20403209-13123550,-835,Longueville Court,Care Establishment,2 - Commissioning - Older people Pool,Hunts O P  Team,Nursing Independent Sector
Cambridgeshire County Council,06-Apr-16,20403210-13123551,-835,Longueville Court,Care Establishment,2 - Commissioning - Older people Pool,Hunts O P  Team,Nursing Independent Sector
Cambridgeshire County Council,06-Apr-16,20442945-13123554,-835,Longueville Court,Care Establishment,2 - Commissioning - Older people Pool,Hunts O P  Team,Nursing Independent Sector
Cambridgeshire County Council,06-Apr-16,20442949-13123556,-835,Longueville Court,Care Establishment,2 - Commissioning - Older people Pool,Hunts O P  Team,Nursing Independent Sector
Cambridgeshire County Council,06-Apr-16,20442950-13123557,-835,Longueville Court,Care Establishment,2 - Commissioning - Older people Pool,Older People Mental Health Hunts,Nursing Independent Sector
Cambridgeshire County Council,06-Apr-16,20442951-13123558,-835,Longueville Court,Care Establishment,2 - Commissioning - Older people Pool,Hunts O P  Team,Nursing Independent Sector
Cambridgeshire County Council,06-Apr-16,20442952-13123559,-835,Longueville Court,Care Establishment,2 - Commissioning - Older people Pool,Older People Mental Health Hunts,Nursing Independent Sector
Cambridgeshire County Council,06-Apr-16,20442958-13123563,-835,Longueville Court,Care Establishment,2 - Commissioning - Older people Pool,Hunts O P  Team,Nursing Independent Sector
Cambridgeshire County Council,06-Apr-16,20442959-13123564,-835,Longueville Court,Care Establishment,2 - Commissioning - Older people Pool,Older People Mental Health Hunts,Nursing Independent Sector
Cambridgeshire County Council,06-Apr-16,20442964-13123568,-835,Longueville Court,Care Establishment,2 - Commissioning - Older people Pool,Hunts O P  Team,Nursing Independent Sector
Cambridgeshire County Council,06-Apr-16,20442965-13123569,-835,Longueville Court,Care Establishment,2 - Commissioning - Older people Pool,Hunts O P  Team,Nursing Independent Sector
Cambridgeshire County Council,06-Apr-16,20442966-13123570,-835,Longueville Court,Care Establishment,2 - Commissioning - Older people Pool,Older People Mental Health Hunts,Nursing Independent Sector
Cambridgeshire County Council,06-Apr-16,20442969-13123571,-835,Longueville Court,Care Establishment,2 - Commissioning - Older people Pool,Older People Mental Health Hunts,Nursing Independent Sector
Cambridgeshire County Council,06-Apr-16,20450010-13123469,-835,Longueville Court,Care Establishment,2 - Commissioning - Older people Pool,Older People Mental Health Hunts,Nursing Independent Sector
Cambridgeshire County Council,06-Apr-16,20450011-13123470,-835,Longueville Court,Care Establishment,2 - Commissioning - Older people Pool,Older People Mental Health Hunts,Nursing Independent Sector
Cambridgeshire County Council,06-Apr-16,20450015-13123472,-835,Longueville Court,Care Establishment,2 - Commissioning - Older people Pool,Hunts O P  Team,Nursing Independent Sector
Cambridgeshire County Council,06-Apr-16,20450022-13123477,-835,Longueville Court,Care Establishment,2 - Commissioning - Older people Pool,Hunts O P  Team,Nursing Independent Sector
Cambridgeshire County Council,06-Apr-16,20450026-13123480,-835,Longueville Court,Care Establishment,2 - Commissioning - Older people Pool,Older People Mental Health Hunts,Nursing Independent Sector
Cambridgeshire County Council,06-Apr-16,20450028-13123481,-835,Longueville Court,Care Establishment,2 - Commissioning - Older people Pool,Older People Mental Health Hunts,Nursing Independent Sector
Cambridgeshire County Council,06-Apr-16,20450032-13123482,-835,Longueville Court,Care Establishment,2 - Commissioning - Older people Pool,Older People Mental Health Hunts,Nursing Independent Sector
Cambridgeshire County Council,06-Apr-16,20450039-13123487,-835,Longueville Court,Care Establishment,2 - Commissioning - Older people Pool,Hunts O P  Team,Nursing Independent Sector
Cambridgeshire County Council,06-Apr-16,20450040-13123488,-835,Longueville Court,Care Establishment,2 - Commissioning - Older people Pool,Older People Mental Health Hunts,Nursing Independent Sector
Cambridgeshire County Council,06-Apr-16,20450046-13123492,-835,Longueville Court,Care Establishment,2 - Commissioning - Older people Pool,Hunts O P  Team,Nursing Independent Sector
Cambridgeshire County Council,06-Apr-16,20450047-13123493,-835,Longueville Court,Care Establishment,2 - Commissioning - Older people Pool,Older People Mental Health Hunts,Nursing Independent Sector
Cambridgeshire County Council,06-Apr-16,20450048-13123494,-835,Longueville Court,Care Establishment,2 - Commissioning - Older people Pool,Hunts O P  Team,Nursing Independent Sector
Cambridgeshire County Council,06-Apr-16,20450053-13123497,-835,Longueville Court,Care Establishment,2 - Commissioning - Older people Pool,Hunts O P  Team,Nursing Independent Sector
Cambridgeshire County Council,06-Apr-16,20450056-13123500,-835,Longueville Court,Care Establishment,2 - Commissioning - Older people Pool,Older People Mental Health Hunts,Nursing Independent Sector
Cambridgeshire County Council,28-Apr-16,20553827-13235282,-832.42,The Gables (Nursing Care Only),Care Establishment,2 - Commissioning - Older people Pool,Older People - City & South,Nursing Independent Sector
Cambridgeshire County Council,28-Apr-16,20553845-13235286,-832.42,The Gables (Nursing Care Only),Care Establishment,2 - Commissioning - Older people Pool,Older People - City & South,Nursing Independent Sector
Cambridgeshire County Council,28-Apr-16,20553853-13235288,-832.42,The Gables (Nursing Care Only),Care Establishment,2 - Commissioning - Older people Pool,Older People - City & South,Nursing Independent Sector
Cambridgeshire County Council,28-Apr-16,20559932-13235289,-832.42,The Gables (Nursing Care Only),Care Establishment,2 - Commissioning - Older people Pool,Older People - City & South,Nursing Independent Sector
Cambridgeshire County Council,28-Apr-16,20559955-13235293,-832.42,The Gables (Nursing Care Only),Care Establishment,2 - Commissioning - Older people Pool,Older People - City & South,Nursing Independent Sector
Cambridgeshire County Council,06-Apr-16,20443599-13130704,-823.9,Westminster Homecare Limited,Care Establishment,2 - Operations - Learning Disability,LDP E Cambs Locality - Care,Day and Domicillary Care Independent Sector
Cambridgeshire County Council,06-Apr-16,20443600-13130705,-823.9,Westminster Homecare Limited,Care Establishment,2 - Operations - Learning Disability,LDP E Cambs Locality - Care,Day and Domicillary Care Independent Sector
Cambridgeshire County Council,06-Apr-16,20443620-13130712,-823.9,Westminster Homecare Limited,Care Establishment,2 - Operations - Learning Disability,LDP E Cambs Locality - Care,Day and Domicillary Care Independent Sector
Cambridgeshire County Council,06-Apr-16,20443621-13130713,-823.9,Westminster Homecare Limited,Care Establishment,2 - Operations - Learning Disability,LDP E Cambs Locality - Care,Day and Domicillary Care Independent Sector
Cambridgeshire County Council,06-Apr-16,20443639-13130719,-823.9,Westminster Homecare Limited,Care Establishment,2 - Operations - Learning Disability,LDP E Cambs Locality - Care,Day and Domicillary Care Independent Sector
Cambridgeshire County Council,06-Apr-16,20443649-13130726,-823.9,Westminster Homecare Limited,Care Establishment,2 - Operations - Learning Disability,LDP E Cambs Locality - Care,Day and Domicillary Care Independent Sector
Cambridgeshire County Council,06-Apr-16,20443671-13130736,-823.9,Westminster Homecare Limited,Care Establishment,2 - Operations - Learning Disability,LDP E Cambs Locality - Care,Day and Domicillary Care Independent Sector
Cambridgeshire County Council,21-Apr-16,20523637-13209814,-817.49,Royal Mencap Society,Care Establishment,2 - Operations - Learning Disability,LDP South Cambs Locality - Care,Residential Independent Sector
Cambridgeshire County Council,28-Apr-16,20563033-13251546,-816.07,The Cambridge Housing Society Ltd,Care Establishment,2 - Commissioning - Older people Pool,Older People Mental Health City & South,Residential Independent Sector
Cambridgeshire County Council,28-Apr-16,20563038-13251551,-816.07,The Cambridge Housing Society Ltd,Care Establishment,2 - Commissioning - Older people Pool,Older People Mental Health City & South,Residential Independent Sector
Cambridgeshire County Council,28-Apr-16,20563039-13251552,-816.07,The Cambridge Housing Society Ltd,Care Establishment,2 - Commissioning - Older people Pool,Older People Mental Health City & South,Residential Independent Sector
Cambridgeshire County Council,28-Apr-16,20563043-13251556,-816.07,The Cambridge Housing Society Ltd,Care Establishment,2 - Commissioning - Older people Pool,Older People Mental Health City & South,Residential Independent Sector
Cambridgeshire County Council,28-Apr-16,20563046-13251559,-816.07,The Cambridge Housing Society Ltd,Care Establishment,2 - Commissioning - Older people Pool,Older People Mental Health City & South,Residential Independent Sector
Cambridgeshire County Council,28-Apr-16,20551410-13246512,-814.29,Woodlands Care Centre,Care Establishment,2 - Commissioning - Older people Pool,Older People Mental Health City & South,Nursing Independent Sector
Cambridgeshire County Council,28-Apr-16,20555544-13246228,-814.29,Woodlands Care Centre,Care Establishment,2 - Commissioning - Older people Pool,Older People Mental Health City & South,Nursing Independent Sector
Cambridgeshire County Council,28-Apr-16,20567765-13246269,-814.29,Woodlands Care Centre,Care Establishment,2 - Commissioning - Older people Pool,East Cambs - O P Team,Residential Independent Sector
Cambridgeshire County Council,28-Apr-16,20570623-13246500,-814.29,Woodlands Care Centre,Care Establishment,2 - Commissioning - Older people Pool,Older People Mental Health City & South,Nursing Independent Sector
Cambridgeshire County Council,28-Apr-16,20555032-13247581,-814.05,Barchester Healthcare Homes Ltd,Care Establishment,2 - Commissioning - Older people Pool,Older People Mental Health City & South,Nursing Independent Sector
Cambridgeshire County Council,28-Apr-16,20555035-13247584,-814.05,Barchester Healthcare Homes Ltd,Care Establishment,2 - Commissioning - Older people Pool,Older People Mental Health City & South,Nursing Independent Sector
Cambridgeshire County Council,28-Apr-16,20555045-13247589,-814.05,Barchester Healthcare Homes Ltd,Care Establishment,2 - Commissioning - Older people Pool,Older People Mental Health City & South,Nursing Independent Sector
Cambridgeshire County Council,28-Apr-16,20555052-13247568,-814.05,Barchester Healthcare Homes Ltd,Care Establishment,2 - Commissioning - Older people Pool,Older People Mental Health City & South,Nursing Independent Sector
Cambridgeshire County Council,28-Apr-16,20555053-13247569,-814.05,Barchester Healthcare Homes Ltd,Care Establishment,2 - Commissioning - Older people Pool,Older People Mental Health City & South,Nursing Independent Sector
Cambridgeshire County Council,28-Apr-16,20562409-13247514,-814.05,Barchester Healthcare Homes Ltd,Care Establishment,2 - Commissioning - Older people Pool,Older People Mental Health City & South,Nursing Independent Sector
Cambridgeshire County Council,28-Apr-16,20562410-13247515,-814.05,Barchester Healthcare Homes Ltd,Care Establishment,2 - Commissioning - Older people Pool,Older People Mental Health City & South,Nursing Independent Sector
Cambridgeshire County Council,28-Apr-16,20562411-13247516,-814.05,Barchester Healthcare Homes Ltd,Care Establishment,2 - Commissioning - Older people Pool,Older People Mental Health City & South,Nursing Independent Sector
Cambridgeshire County Council,28-Apr-16,20562414-13247519,-814.05,Barchester Healthcare Homes Ltd,Care Establishment,2 - Commissioning - Older people Pool,Older People Mental Health City & South,Nursing Independent Sector
Cambridgeshire County Council,28-Apr-16,20562415-13247520,-814.05,Barchester Healthcare Homes Ltd,Care Establishment,2 - Commissioning - Older people Pool,Older People Mental Health City & South,Nursing Independent Sector
Cambridgeshire County Council,28-Apr-16,20564688-13247684,-814.05,Barchester Healthcare Homes Ltd,Care Establishment,2 - Commissioning - Older people Pool,Older People Mental Health City & South,Nursing Independent Sector
Cambridgeshire County Council,28-Apr-16,20564689-13247685,-814.05,Barchester Healthcare Homes Ltd,Care Establishment,2 - Commissioning - Older people Pool,Older People Mental Health City & South,Nursing Independent Sector
Cambridgeshire County Council,28-Apr-16,20565728-13247662,-814.05,Barchester Healthcare Homes Ltd,Care Establishment,2 - Commissioning - Older people Pool,Older People Mental Health City & South,Nursing Independent Sector
Cambridgeshire County Council,28-Apr-16,20567714-13247559,-814.05,Barchester Healthcare Homes Ltd,Care Establishment,2 - Commissioning - Older people Pool,Older People Mental Health City & South,Nursing Independent Sector
Cambridgeshire County Council,28-Apr-16,20567720-13247560,-814.05,Barchester Healthcare Homes Ltd,Care Establishment,2 - Commissioning - Older people Pool,Older People Mental Health City & South,Nursing Independent Sector
Cambridgeshire County Council,28-Apr-16,20570830-13247712,-814.05,Barchester Healthcare Homes Ltd,Care Establishment,2 - Commissioning - Older people Pool,Older People Mental Health City & South,Nursing Independent Sector
Cambridgeshire County Council,28-Apr-16,20570833-13247715,-814.05,Barchester Healthcare Homes Ltd,Care Establishment,2 - Commissioning - Older people Pool,Older People Mental Health City & South,Nursing Independent Sector
Cambridgeshire County Council,28-Apr-16,20570836-13247718,-814.05,Barchester Healthcare Homes Ltd,Care Establishment,2 - Commissioning - Older people Pool,Older People Mental Health City & South,Nursing Independent Sector
Cambridgeshire County Council,28-Apr-16,20570837-13247719,-814.05,Barchester Healthcare Homes Ltd,Care Establishment,2 - Commissioning - Older people Pool,Older People Mental Health City & South,Nursing Independent Sector
Cambridgeshire County Council,28-Apr-16,20570838-13247720,-814.05,Barchester Healthcare Homes Ltd,Care Establishment,2 - Commissioning - Older people Pool,Older People Mental Health City & South,Nursing Independent Sector
Cambridgeshire County Council,28-Apr-16,20567362-13235269,-810.12,The Gables (Nursing Care Only),Care Establishment,3 - Operations - Countywide Services,Countywide PD Service - Care,Nursing Independent Sector
Cambridgeshire County Council,28-Apr-16,20567364-13235271,-810.12,The Gables (Nursing Care Only),Care Establishment,3 - Operations - Countywide Services,Countywide PD Service - Care,Nursing Independent Sector
Cambridgeshire County Council,28-Apr-16,20567370-13235277,-810.12,The Gables (Nursing Care Only),Care Establishment,3 - Operations - Countywide Services,Countywide PD Service - Care,Nursing Independent Sector
Cambridgeshire County Council,28-Apr-16,20567371-13235278,-810.12,The Gables (Nursing Care Only),Care Establishment,3 - Operations - Countywide Services,Countywide PD Service - Care,Nursing Independent Sector
Cambridgeshire County Council,28-Apr-16,20567372-13235279,-810.12,The Gables (Nursing Care Only),Care Establishment,3 - Operations - Countywide Services,Countywide PD Service - Care,Nursing Independent Sector
Cambridgeshire County Council,28-Apr-16,20552009-13247035,-804,Bramley Court,Care Establishment,2 - Commissioning - Older people Pool,Older People Mental Health City & South,Nursing Independent Sector
Cambridgeshire County Council,28-Apr-16,20552011-13247036,-804,Bramley Court,Care Establishment,2 - Commissioning - Older people Pool,Older People Mental Health City & South,Nursing Independent Sector
Cambridgeshire County Council,28-Apr-16,20552017-13247038,-804,Bramley Court,Care Establishment,2 - Commissioning - Older people Pool,Older People Mental Health City & South,Nursing Independent Sector
Cambridgeshire County Council,28-Apr-16,20552031-13247043,-804,Bramley Court,Care Establishment,2 - Commissioning - Older people Pool,Older People Mental Health City & South,Nursing Independent Sector
Cambridgeshire County Council,28-Apr-16,20552034-13247046,-804,Bramley Court,Care Establishment,2 - Commissioning - Older people Pool,Older People Mental Health City & South,Nursing Independent Sector
Cambridgeshire County Council,06-Apr-16,20383005-13121014,-793.81,Making Space#1,Care Establishment,3 - Operations - Countywide Services,Countywide PD Service - Care,Nursing Independent Sector
Cambridgeshire County Council,06-Apr-16,20445832-13121089,-793.81,Making Space#1,Care Establishment,3 - Operations - Countywide Services,Countywide PD Service - Care,Nursing Independent Sector
Cambridgeshire County Council,21-Apr-16,20480432-13205196,-793.81,Making Space#1,Care Establishment,3 - Operations - Countywide Services,Countywide PD Service - Care,Nursing Independent Sector
Cambridgeshire County Council,21-Apr-16,20526683-13205100,-793.81,Making Space#1,Care Establishment,3 - Operations - Countywide Services,Countywide PD Service - Care,Nursing Independent Sector
Cambridgeshire County Council,28-Apr-16,20568475-13254292,-787.82,Gracefield Nursing And Residential Home,Care Establishment,2 - Commissioning - Older people Pool,Older People Mental Health City & South,Nursing Independent Sector
Cambridgeshire County Council,28-Apr-16,20568480-13254293,-787.82,Gracefield Nursing And Residential Home,Care Establishment,2 - Commissioning - Older people Pool,Older People Mental Health City & South,Nursing Independent Sector
Cambridgeshire County Council,28-Apr-16,20568483-13254296,-787.82,Gracefield Nursing And Residential Home,Care Establishment,2 - Commissioning - Older people Pool,Older People Mental Health City & South,Nursing Independent Sector
Cambridgeshire County Council,28-Apr-16,20568485-13254297,-787.82,Gracefield Nursing And Residential Home,Care Establishment,2 - Commissioning - Older people Pool,Older People Mental Health City & South,Nursing Independent Sector
Cambridgeshire County Council,28-Apr-16,20568492-13254300,-787.82,Gracefield Nursing And Residential Home,Care Establishment,2 - Commissioning - Older people Pool,Older People Mental Health City & South,Nursing Independent Sector
Cambridgeshire County Council,28-Apr-16,20567462-13246282,-786,Woodlands Care Centre,Care Establishment,3 - Operations - Countywide Services,Countywide PD Service - Care,Nursing Independent Sector
Cambridgeshire County Council,08-Apr-16,20457821-13144999,-775.42,Advanced Legal Solutions,Trade Supplier,Corporate Services,Coroners General,Other Hired Contract Services
Cambridgeshire County Council,28-Apr-16,20550743-13247102,-775.29,Bramley Court,Care Establishment,2 - Commissioning - Older people Pool,Older People Mental Health City & South,Nursing Independent Sector
Cambridgeshire County Council,28-Apr-16,20557441-13247065,-775.29,Bramley Court,Care Establishment,2 - Commissioning - Older people Pool,Older People - City & South,Nursing Independent Sector
Cambridgeshire County Council,28-Apr-16,20552926-13247003,-771.43,Bramley Court,Care Establishment,2 - Commissioning - Older people Pool,Older People - City & South,Residential Independent Sector
Cambridgeshire County Council,28-Apr-16,20566667-13256703,-771.43,The Cambridge Nursing Centre,Care Establishment,2 - Commissioning - Older people Pool,Older People Mental Health E Cambs,Nursing Independent Sector
Cambridgeshire County Council,21-Apr-16,20523127-13203406,-767.89,Redacted Personal Data,Individual,2 - Operations - Learning Disability,LDP South Cambs Locality - Care,Direct Payments - Social Services
Cambridgeshire County Council,21-Apr-16,20526269-13203419,-767.89,Redacted Personal Data,Individual,2 - Operations - Learning Disability,LDP South Cambs Locality - Care,Direct Payments - Social Services
Cambridgeshire County Council,21-Apr-16,20526277-13203427,-767.89,Redacted Personal Data,Individual,2 - Operations - Learning Disability,LDP South Cambs Locality - Care,Direct Payments - Social Services
Cambridgeshire County Council,21-Apr-16,20526289-13203439,-767.89,Redacted Personal Data,Individual,2 - Operations - Learning Disability,LDP South Cambs Locality - Care,Direct Payments - Social Services
Cambridgeshire County Council,28-Apr-16,20571481-13245941,-762.86,Abbey Healthcare (Huntingdon) Ltd,Care Establishment,2 - Commissioning - Older people Pool,Older People Mental Health Hunts,Nursing Independent Sector
Cambridgeshire County Council,28-Apr-16,20572098-13245903,-762.86,Abbey Healthcare (Huntingdon) Ltd,Care Establishment,2 - Commissioning - Older people Pool,Older People Mental Health Hunts,Nursing Independent Sector
Cambridgeshire County Council,06-Apr-16,20442834-13122149,-758.99,Gr Gibbs,Care Establishment,2 - Operations - Learning Disability,LDP Huntingdonshire Locality - Care,Residential Independent Sector
Cambridgeshire County Council,06-Apr-16,20442835-13122150,-758.99,Gr Gibbs,Care Establishment,2 - Operations - Learning Disability,LDP Huntingdonshire Locality - Care,Residential Independent Sector
Cambridgeshire County Council,06-Apr-16,20442841-13122156,-758.99,Gr Gibbs,Care Establishment,2 - Operations - Learning Disability,LDP Huntingdonshire Locality - Care,Residential Independent Sector
Cambridgeshire County Council,06-Apr-16,20442842-13122157,-758.99,Gr Gibbs,Care Establishment,2 - Operations - Learning Disability,LDP Huntingdonshire Locality - Care,Residential Independent Sector
Cambridgeshire County Council,06-Apr-16,20442848-13122163,-758.99,Gr Gibbs,Care Establishment,2 - Operations - Learning Disability,LDP Huntingdonshire Locality - Care,Residential Independent Sector
Cambridgeshire County Council,06-Apr-16,20442850-13122165,-758.99,Gr Gibbs,Care Establishment,2 - Operations - Learning Disability,LDP Huntingdonshire Locality - Care,Residential Independent Sector
Cambridgeshire County Council,06-Apr-16,20449913-13122133,-758.99,Gr Gibbs,Care Establishment,2 - Operations - Learning Disability,LDP Huntingdonshire Locality - Care,Residential Independent Sector
Cambridgeshire County Council,28-Apr-16,20560045-13246968,-757.56,Bramley Court,Care Establishment,2 - Commissioning - Older people Pool,Older People - City & South,Residential Independent Sector
Cambridgeshire County Council,28-Apr-16,20556812-13243046,-755.66,Cherry Hinton Nursing Home,Care Establishment,2 - Commissioning - Older people Pool,Older People Mental Health City & South,Nursing Independent Sector
Cambridgeshire County Council,28-Apr-16,20555597-13244244,-754.29,Rose Lodge,Care Establishment,2 - Commissioning - Older people Pool,Older People Mental Health Fenland,Nursing Independent Sector
Cambridgeshire County Council,28-Apr-16,20547334-13245893,-753.75,Abbey Healthcare (Huntingdon) Ltd,Care Establishment,2 - Commissioning - Older people Pool,Hunts O P  Team,Nursing Independent Sector
Cambridgeshire County Council,28-Apr-16,20547353-13245901,-753.75,Abbey Healthcare (Huntingdon) Ltd,Care Establishment,2 - Commissioning - Older people Pool,Hunts O P  Team,Nursing Independent Sector
Cambridgeshire County Council,28-Apr-16,20555055-13245875,-753.75,Abbey Healthcare (Huntingdon) Ltd,Care Establishment,2 - Commissioning - Older people Pool,Hunts O P  Team,Nursing Independent Sector
Cambridgeshire County Council,28-Apr-16,20555056-13245876,-753.75,Abbey Healthcare (Huntingdon) Ltd,Care Establishment,2 - Commissioning - Older people Pool,Hunts O P  Team,Nursing Independent Sector
Cambridgeshire County Council,28-Apr-16,20555058-13245878,-753.75,Abbey Healthcare (Huntingdon) Ltd,Care Establishment,2 - Commissioning - Older people Pool,Hunts O P  Team,Nursing Independent Sector
Cambridgeshire County Council,28-Apr-16,20555750-13246944,-753.75,Bramley Court,Care Establishment,2 - Commissioning - Older people Pool,Older People - City & South,Residential Independent Sector
Cambridgeshire County Council,28-Apr-16,20555751-13246945,-753.75,Bramley Court,Care Establishment,2 - Commissioning - Older people Pool,Older People - City & South,Residential Independent Sector
Cambridgeshire County Council,28-Apr-16,20555752-13246946,-753.75,Bramley Court,Care Establishment,2 - Commissioning - Older people Pool,Older People - City & South,Residential Independent Sector
Cambridgeshire County Council,28-Apr-16,20555757-13246951,-753.75,Bramley Court,Care Establishment,2 - Commissioning - Older people Pool,Older People - City & South,Residential Independent Sector
Cambridgeshire County Council,28-Apr-16,20555759-13246953,-753.75,Bramley Court,Care Establishment,2 - Commissioning - Older people Pool,Older People - City & South,Residential Independent Sector
Cambridgeshire County Council,28-Apr-16,20058339-13242701,-750,Cedar Court Care Ltd,Care Establishment,2 - Commissioning - Older people Pool,Older People Mental Health Fenland,Nursing Independent Sector
Cambridgeshire County Council,28-Apr-16,20058340-13242702,-750,Cedar Court Care Ltd,Care Establishment,2 - Commissioning - Older people Pool,Older People Mental Health Fenland,Nursing Independent Sector
Cambridgeshire County Council,28-Apr-16,20058341-13242703,-750,Cedar Court Care Ltd,Care Establishment,2 - Commissioning - Older people Pool,Older People Mental Health Fenland,Nursing Independent Sector
Cambridgeshire County Council,28-Apr-16,20388302-13240691,-750,Care By Us Ltd,Care Establishment,3 - Operations - Countywide Services,Countywide PD Service - Care,Day and Domicillary Care Independent Sector
Cambridgeshire County Council,28-Apr-16,20388303-13240692,-750,Care By Us Ltd,Care Establishment,3 - Operations - Countywide Services,Countywide PD Service - Care,Day and Domicillary Care Independent Sector
Cambridgeshire County Council,28-Apr-16,20388305-13240623,-750,Care By Us Ltd,Care Establishment,3 - Operations - Countywide Services,Countywide PD Service - Care,Day and Domicillary Care Independent Sector
Cambridgeshire County Council,28-Apr-16,20388306-13240624,-750,Care By Us Ltd,Care Establishment,3 - Operations - Countywide Services,Countywide PD Service - Care,Day and Domicillary Care Independent Sector
Cambridgeshire County Council,28-Apr-16,20388308-13240626,-750,Care By Us Ltd,Care Establishment,3 - Operations - Countywide Services,Countywide PD Service - Care,Day and Domicillary Care Independent Sector
Cambridgeshire County Council,28-Apr-16,20388311-13240627,-750,Care By Us Ltd,Care Establishment,3 - Operations - Countywide Services,Countywide PD Service - Care,Day and Domicillary Care Independent Sector
Cambridgeshire County Council,28-Apr-16,20388312-13240628,-750,Care By Us Ltd,Care Establishment,3 - Operations - Countywide Services,Countywide PD Service - Care,Day and Domicillary Care Independent Sector
Cambridgeshire County Council,28-Apr-16,20388313-13240629,-750,Care By Us Ltd,Care Establishment,3 - Operations - Countywide Services,Countywide PD Service - Care,Day and Domicillary Care Independent Sector
Cambridgeshire County Council,28-Apr-16,20388314-13240630,-750,Care By Us Ltd,Care Establishment,3 - Operations - Countywide Services,Countywide PD Service - Care,Day and Domicillary Care Independent Sector
Cambridgeshire County Council,28-Apr-16,20388315-13240631,-750,Care By Us Ltd,Care Establishment,3 - Operations - Countywide Services,Countywide PD Service - Care,Day and Domicillary Care Independent Sector
Cambridgeshire County Council,28-Apr-16,20388317-13240632,-750,Care By Us Ltd,Care Establishment,3 - Operations - Countywide Services,Countywide PD Service - Care,Day and Domicillary Care Independent Sector
Cambridgeshire County Council,28-Apr-16,20388319-13240633,-750,Care By Us Ltd,Care Establishment,3 - Operations - Countywide Services,Countywide PD Service - Care,Day and Domicillary Care Independent Sector
Cambridgeshire County Council,28-Apr-16,20388320-13240634,-750,Care By Us Ltd,Care Establishment,3 - Operations - Countywide Services,Countywide PD Service - Care,Day and Domicillary Care Independent Sector
Cambridgeshire County Council,28-Apr-16,20388321-13240635,-750,Care By Us Ltd,Care Establishment,3 - Operations - Countywide Services,Countywide PD Service - Care,Day and Domicillary Care Independent Sector
Cambridgeshire County Council,28-Apr-16,20388322-13240636,-750,Care By Us Ltd,Care Establishment,3 - Operations - Countywide Services,Countywide PD Service - Care,Day and Domicillary Care Independent Sector
Cambridgeshire County Council,28-Apr-16,20388323-13240637,-750,Care By Us Ltd,Care Establishment,3 - Operations - Countywide Services,Countywide PD Service - Care,Day and Domicillary Care Independent Sector
Cambridgeshire County Council,28-Apr-16,20388326-13240640,-750,Care By Us Ltd,Care Establishment,3 - Operations - Countywide Services,Countywide PD Service - Care,Day and Domicillary Care Independent Sector
Cambridgeshire County Council,28-Apr-16,20388328-13240641,-750,Care By Us Ltd,Care Establishment,3 - Operations - Countywide Services,Countywide PD Service - Care,Day and Domicillary Care Independent Sector
Cambridgeshire County Council,28-Apr-16,20388329-13240642,-750,Care By Us Ltd,Care Establishment,3 - Operations - Countywide Services,Countywide PD Service - Care,Day and Domicillary Care Independent Sector
Cambridgeshire County Council,28-Apr-16,20388330-13240643,-750,Care By Us Ltd,Care Establishment,3 - Operations - Countywide Services,Countywide PD Service - Care,Day and Domicillary Care Independent Sector
Cambridgeshire County Council,28-Apr-16,20399398-13240648,-750,Care By Us Ltd,Care Establishment,3 - Operations - Countywide Services,Countywide PD Service - Care,Day and Domicillary Care Independent Sector
Cambridgeshire County Council,28-Apr-16,20399401-13240649,-750,Care By Us Ltd,Care Establishment,3 - Operations - Countywide Services,Countywide PD Service - Care,Day and Domicillary Care Independent Sector
Cambridgeshire County Council,28-Apr-16,20399402-13240650,-750,Care By Us Ltd,Care Establishment,3 - Operations - Countywide Services,Countywide PD Service - Care,Day and Domicillary Care Independent Sector
Cambridgeshire County Council,28-Apr-16,20399403-13240651,-750,Care By Us Ltd,Care Establishment,3 - Operations - Countywide Services,Countywide PD Service - Care,Day and Domicillary Care Independent Sector
Cambridgeshire County Council,28-Apr-16,20399405-13240652,-750,Care By Us Ltd,Care Establishment,3 - Operations - Countywide Services,Countywide PD Service - Care,Day and Domicillary Care Independent Sector
Cambridgeshire County Council,28-Apr-16,20399407-13240654,-750,Care By Us Ltd,Care Establishment,3 - Operations - Countywide Services,Countywide PD Service - Care,Day and Domicillary Care Independent Sector
Cambridgeshire County Council,28-Apr-16,20399408-13240655,-750,Care By Us Ltd,Care Establishment,3 - Operations - Countywide Services,Countywide PD Service - Care,Day and Domicillary Care Independent Sector
Cambridgeshire County Council,28-Apr-16,20399409-13240656,-750,Care By Us Ltd,Care Establishment,3 - Operations - Countywide Services,Countywide PD Service - Care,Day and Domicillary Care Independent Sector
Cambridgeshire County Council,28-Apr-16,20399410-13240657,-750,Care By Us Ltd,Care Establishment,3 - Operations - Countywide Services,Countywide PD Service - Care,Day and Domicillary Care Independent Sector
Cambridgeshire County Council,28-Apr-16,20399411-13240658,-750,Care By Us Ltd,Care Establishment,3 - Operations - Countywide Services,Countywide PD Service - Care,Day and Domicillary Care Independent Sector
Cambridgeshire County Council,28-Apr-16,20399417-13240660,-750,Care By Us Ltd,Care Establishment,3 - Operations - Countywide Services,Countywide PD Service - Care,Day and Domicillary Care Independent Sector
Cambridgeshire County Council,28-Apr-16,20399418-13240661,-750,Care By Us Ltd,Care Establishment,3 - Operations - Countywide Services,Countywide PD Service - Care,Day and Domicillary Care Independent Sector
Cambridgeshire County Council,28-Apr-16,20399419-13240662,-750,Care By Us Ltd,Care Establishment,3 - Operations - Countywide Services,Countywide PD Service - Care,Day and Domicillary Care Independent Sector
Cambridgeshire County Council,28-Apr-16,20399420-13240663,-750,Care By Us Ltd,Care Establishment,3 - Operations - Countywide Services,Countywide PD Service - Care,Day and Domicillary Care Independent Sector
Cambridgeshire County Council,28-Apr-16,20399423-13240664,-750,Care By Us Ltd,Care Establishment,3 - Operations - Countywide Services,Countywide PD Service - Care,Day and Domicillary Care Independent Sector
Cambridgeshire County Council,28-Apr-16,20548597-13245862,-750,Abbey Healthcare (Huntingdon) Ltd,Care Establishment,2 - Commissioning - Older people Pool,Hunts O P  Team,Nursing Independent Sector
Cambridgeshire County Council,28-Apr-16,20548600-13245865,-750,Abbey Healthcare (Huntingdon) Ltd,Care Establishment,2 - Commissioning - Older people Pool,Hunts O P  Team,Nursing Independent Sector
Cambridgeshire County Council,28-Apr-16,20548602-13245867,-750,Abbey Healthcare (Huntingdon) Ltd,Care Establishment,2 - Commissioning - Older people Pool,Hunts O P  Team,Nursing Independent Sector
Cambridgeshire County Council,28-Apr-16,20548603-13245868,-750,Abbey Healthcare (Huntingdon) Ltd,Care Establishment,2 - Commissioning - Older people Pool,Hunts O P  Team,Nursing Independent Sector
Cambridgeshire County Council,28-Apr-16,20548609-13245874,-750,Abbey Healthcare (Huntingdon) Ltd,Care Establishment,2 - Commissioning - Older people Pool,Hunts O P  Team,Nursing Independent Sector
Cambridgeshire County Council,28-Apr-16,20549075-13244214,-750,Rose Lodge,Care Establishment,2 - Commissioning - Older people Pool,Older People Mental Health Fenland,Nursing Independent Sector
Cambridgeshire County Council,28-Apr-16,20549077-13244216,-750,Rose Lodge,Care Establishment,2 - Commissioning - Older people Pool,Older People Mental Health Fenland,Nursing Independent Sector
Cambridgeshire County Council,28-Apr-16,20549079-13244217,-750,Rose Lodge,Care Establishment,2 - Commissioning - Older people Pool,Older People Mental Health Fenland,Nursing Independent Sector
Cambridgeshire County Council,28-Apr-16,20549095-13244221,-750,Rose Lodge,Care Establishment,2 - Commissioning - Older people Pool,Older People Mental Health Fenland,Nursing Independent Sector
Cambridgeshire County Council,28-Apr-16,20549099-13244223,-750,Rose Lodge,Care Establishment,2 - Commissioning - Older people Pool,Older People Mental Health Fenland,Nursing Independent Sector
Cambridgeshire County Council,28-Apr-16,20549255-13247542,-750,Barchester Healthcare Homes Ltd,Care Establishment,2 - Commissioning - Older people Pool,Older People - City & South,Nursing Independent Sector
Cambridgeshire County Council,28-Apr-16,20549279-13247543,-750,Barchester Healthcare Homes Ltd,Care Establishment,2 - Commissioning - Older people Pool,Older People - City & South,Nursing Independent Sector
Cambridgeshire County Council,28-Apr-16,20550460-13247778,-750,Barchester Healthcare Homes Ltd,Care Establishment,2 - Commissioning - Older people Pool,Older People - City & South,Nursing Independent Sector
Cambridgeshire County Council,28-Apr-16,20550486-13247757,-750,Barchester Healthcare Homes Ltd,Care Establishment,2 - Commissioning - Older people Pool,Older People - City & South,Nursing Independent Sector
Cambridgeshire County Council,28-Apr-16,20550501-13247760,-750,Barchester Healthcare Homes Ltd,Care Establishment,2 - Commissioning - Older people Pool,Older People - City & South,Nursing Independent Sector
Cambridgeshire County Council,28-Apr-16,20556199-13244213,-750,Rose Lodge,Care Establishment,2 - Commissioning - Older people Pool,Older People Mental Health Fenland,Nursing Independent Sector
Cambridgeshire County Council,28-Apr-16,20556459-13247797,-750,Barchester Healthcare Homes Ltd,Care Establishment,2 - Commissioning - Older people Pool,Older People - City & South,Nursing Independent Sector
Cambridgeshire County Council,28-Apr-16,20560955-13256678,-750,The Cambridge Nursing Centre,Care Establishment,2 - Commissioning - Older people Pool,Older People Mental Health E Cambs,Nursing Independent Sector
Cambridgeshire County Council,28-Apr-16,20560959-13256682,-750,The Cambridge Nursing Centre,Care Establishment,2 - Commissioning - Older people Pool,Older People Mental Health E Cambs,Nursing Independent Sector
Cambridgeshire County Council,28-Apr-16,20560963-13256686,-750,The Cambridge Nursing Centre,Care Establishment,2 - Commissioning - Older people Pool,Older People Mental Health E Cambs,Nursing Independent Sector
Cambridgeshire County Council,28-Apr-16,20560964-13256687,-750,The Cambridge Nursing Centre,Care Establishment,2 - Commissioning - Older people Pool,Older People Mental Health E Cambs,Nursing Independent Sector
Cambridgeshire County Council,28-Apr-16,20560965-13256688,-750,The Cambridge Nursing Centre,Care Establishment,2 - Commissioning - Older people Pool,Older People Mental Health E Cambs,Nursing Independent Sector
Cambridgeshire County Council,28-Apr-16,20564624-13251411,-750,The Cambridge Housing Society Ltd,Care Establishment,2 - Commissioning - Older people Pool,Older People - City & South,Residential Independent Sector
Cambridgeshire County Council,28-Apr-16,20564625-13251412,-750,The Cambridge Housing Society Ltd,Care Establishment,2 - Commissioning - Older people Pool,Older People - City & South,Residential Independent Sector
Cambridgeshire County Council,28-Apr-16,20564627-13251413,-750,The Cambridge Housing Society Ltd,Care Establishment,2 - Commissioning - Older people Pool,Older People - City & South,Residential Independent Sector
Cambridgeshire County Council,28-Apr-16,20564631-13251416,-750,The Cambridge Housing Society Ltd,Care Establishment,2 - Commissioning - Older people Pool,Older People - City & South,Residential Independent Sector
Cambridgeshire County Council,28-Apr-16,20564650-13251423,-750,The Cambridge Housing Society Ltd,Care Establishment,2 - Commissioning - Older people Pool,Older People - City & South,Residential Independent Sector
Cambridgeshire County Council,28-Apr-16,20564651-13251424,-750,The Cambridge Housing Society Ltd,Care Establishment,2 - Commissioning - Older people Pool,Older People - City & South,Residential Independent Sector
Cambridgeshire County Council,28-Apr-16,20565414-13246191,-750,St Georges Nursing Home,Care Establishment,2 - Commissioning - Older people Pool,Older People - City & South,Nursing Independent Sector
Cambridgeshire County Council,28-Apr-16,20565415-13246192,-750,St Georges Nursing Home,Care Establishment,2 - Commissioning - Older people Pool,Older People - City & South,Nursing Independent Sector
Cambridgeshire County Council,28-Apr-16,20565416-13246193,-750,St Georges Nursing Home,Care Establishment,2 - Commissioning - Older people Pool,Older People - City & South,Nursing Independent Sector
Cambridgeshire County Council,28-Apr-16,20565421-13246198,-750,St Georges Nursing Home,Care Establishment,2 - Commissioning - Older people Pool,Older People - City & South,Nursing Independent Sector
Cambridgeshire County Council,28-Apr-16,20565425-13246202,-750,St Georges Nursing Home,Care Establishment,2 - Commissioning - Older people Pool,Older People - City & South,Nursing Independent Sector
Cambridgeshire County Council,06-Apr-16,20402506-13121702,-749,Redacted Personal Data,Parent/Guardian,3 - Operations - Countywide Services,Countywide PD Service - Care,SDS - Care and support Services
Cambridgeshire County Council,06-Apr-16,20402869-13121705,-749,Redacted Personal Data,Parent/Guardian,3 - Operations - Countywide Services,Countywide PD Service - Care,SDS - Care and support Services
Cambridgeshire County Council,06-Apr-16,20402874-13121708,-749,Redacted Personal Data,Parent/Guardian,3 - Operations - Countywide Services,Countywide PD Service - Care,SDS - Care and support Services
Cambridgeshire County Council,06-Apr-16,20402893-13121713,-749,Redacted Personal Data,Parent/Guardian,3 - Operations - Countywide Services,Countywide PD Service - Care,SDS - Care and support Services
Cambridgeshire County Council,15-Apr-16,20276267-13178164,-740.83,Redacted Personal Data,Individual,2 - Operations - Learning Disability,LDP South Cambs Locality - Care,SDS - Care and support Services
Cambridgeshire County Council,28-Apr-16,20556427-13235650,-738.11,Vera James House,Care Establishment,2 - Commissioning - Older people Pool,East Cambs - O P Team,Residential Independent Sector
Cambridgeshire County Council,28-Apr-16,20568793-13251110,-738.11,The Cambridge Housing Society Ltd,Care Establishment,2 - Commissioning - Older people Pool,Older People - City & South,Residential Independent Sector
Cambridgeshire County Council,28-Apr-16,20564203-13247742,-735.87,Barchester Healthcare Homes Ltd,Care Establishment,2 - Commissioning - Older people Pool,Older People Mental Health E Cambs,Nursing Independent Sector
Cambridgeshire County Council,28-Apr-16,20552984-13233861,-735.86,Hilton Park Care Centre,Care Establishment,2 - Operations - Learning Disability,LDP City Locality - Care,Nursing Independent Sector
Cambridgeshire County Council,28-Apr-16,20551465-13254344,-732.21,Gracefield Nursing And Residential Home,Care Establishment,2 - Commissioning - Older people Pool,Older People Mental Health City & South,Nursing Independent Sector
Cambridgeshire County Council,28-Apr-16,20553028-13245924,-732.21,Abbey Healthcare (Huntingdon) Ltd,Care Establishment,2 - Commissioning - Older people Pool,Hunts O P  Team,Nursing Independent Sector
Cambridgeshire County Council,28-Apr-16,20562203-13247532,-732.21,Barchester Healthcare Homes Ltd,Care Establishment,2 - Commissioning - Older people Pool,Older People Mental Health City & South,Nursing Independent Sector
Cambridgeshire County Council,28-Apr-16,20565363-13246416,-732.21,Woodlands Care Centre,Care Establishment,2 - Commissioning - Older people Pool,Older People - City & South,Residential Independent Sector
Cambridgeshire County Council,28-Apr-16,20569265-13246046,-732.21,Abbey Healthcare (Huntingdon) Ltd,Care Establishment,2 - Commissioning - Older people Pool,Older People Mental Health Hunts,Nursing Independent Sector
Cambridgeshire County Council,28-Apr-16,20482521-13232538,-728.87,Caerus Care Ltd,Care Establishment,2 - Operations - Learning Disability,LDP Fenland Locality - Care,Day and Domicillary Care Independent Sector
Cambridgeshire County Council,28-Apr-16,20549977-13247790,-728.57,Barchester Healthcare Homes Ltd,Care Establishment,2 - Commissioning - Older people Pool,Older People - City & South,Nursing Independent Sector
Cambridgeshire County Council,28-Apr-16,20564779-13246460,-728.57,Woodlands Care Centre,Care Establishment,2 - Commissioning - Older people Pool,Older People - City & South,Nursing Independent Sector
Cambridgeshire County Council,06-Apr-16,19793795-13131378,-728.14,Redacted Personal Data,Individual,2 - Operations - Learning Disability,LDP City Locality - Care,SDS - Live Independently
Cambridgeshire County Council,06-Apr-16,19793796-13131379,-728.14,Redacted Personal Data,Individual,2 - Operations - Learning Disability,LDP City Locality - Care,SDS - Live Independently
Cambridgeshire County Council,06-Apr-16,19793798-13131381,-728.14,Redacted Personal Data,Individual,2 - Operations - Learning Disability,LDP City Locality - Care,SDS - Live Independently
Cambridgeshire County Council,06-Apr-16,19793799-13131382,-728.14,Redacted Personal Data,Individual,2 - Operations - Learning Disability,LDP City Locality - Care,SDS - Live Independently
Cambridgeshire County Council,06-Apr-16,19793800-13131383,-728.14,Redacted Personal Data,Individual,2 - Operations - Learning Disability,LDP City Locality - Care,SDS - Live Independently
Cambridgeshire County Council,28-Apr-16,20548707-13253266,-728.12,Midfield Lodge Care Centre,Care Establishment,2 - Commissioning - Older people Pool,Hunts O P  Team,Nursing Independent Sector
Cambridgeshire County Council,28-Apr-16,20548708-13253267,-728.12,Midfield Lodge Care Centre,Care Establishment,2 - Commissioning - Older people Pool,Hunts O P  Team,Nursing Independent Sector
Cambridgeshire County Council,28-Apr-16,20548725-13253274,-728.12,Midfield Lodge Care Centre,Care Establishment,2 - Commissioning - Older people Pool,Hunts O P  Team,Nursing Independent Sector
Cambridgeshire County Council,28-Apr-16,20548726-13253275,-728.12,Midfield Lodge Care Centre,Care Establishment,2 - Commissioning - Older people Pool,Hunts O P  Team,Nursing Independent Sector
Cambridgeshire County Council,28-Apr-16,20548730-13253278,-728.12,Midfield Lodge Care Centre,Care Establishment,2 - Commissioning - Older people Pool,Hunts O P  Team,Nursing Independent Sector
Cambridgeshire County Council,06-Apr-16,20130175-13117991,-725,Redacted Personal Data,Individual,3 - Operations - Countywide Services,Countywide PD Service - Care,SDS - Care and support Services
Cambridgeshire County Council,06-Apr-16,20130176-13117992,-725,Redacted Personal Data,Individual,3 - Operations - Countywide Services,Countywide PD Service - Care,SDS - Care and support Services
Cambridgeshire County Council,06-Apr-16,20130182-13117998,-725,Redacted Personal Data,Individual,3 - Operations - Countywide Services,Countywide PD Service - Care,SDS - Care and support Services
Cambridgeshire County Council,06-Apr-16,20130187-13118003,-725,Redacted Personal Data,Individual,3 - Operations - Countywide Services,Countywide PD Service - Care,SDS - Care and support Services
Cambridgeshire County Council,06-Apr-16,20130188-13118004,-725,Redacted Personal Data,Individual,3 - Operations - Countywide Services,Countywide PD Service - Care,SDS - Care and support Services
Cambridgeshire County Council,21-Apr-16,20521987-13203940,-725,Redacted Personal Data,Individual,3 - Operations - Countywide Services,Countywide PD Service - Care,Direct Payments - Social Services
Cambridgeshire County Council,21-Apr-16,20521990-13203943,-725,Redacted Personal Data,Individual,3 - Operations - Countywide Services,Countywide PD Service - Care,Direct Payments - Social Services
Cambridgeshire County Council,21-Apr-16,20521993-13203946,-725,Redacted Personal Data,Individual,3 - Operations - Countywide Services,Countywide PD Service - Care,Direct Payments - Social Services
Cambridgeshire County Council,21-Apr-16,20521996-13203949,-725,Redacted Personal Data,Individual,3 - Operations - Countywide Services,Countywide PD Service - Care,Direct Payments - Social Services
Cambridgeshire County Council,21-Apr-16,20521997-13203950,-725,Redacted Personal Data,Individual,3 - Operations - Countywide Services,Countywide PD Service - Care,Direct Payments - Social Services
Cambridgeshire County Council,21-Apr-16,20522000-13203953,-725,Redacted Personal Data,Individual,3 - Operations - Countywide Services,Countywide PD Service - Care,Direct Payments - Social Services
Cambridgeshire County Council,28-Apr-16,20567849-13257342,-725,Maycroft Care Home Ltd,Care Establishment,2 - Commissioning - Older people Pool,Older People - City & South,Residential Independent Sector
Cambridgeshire County Council,28-Apr-16,20567860-13257348,-725,Maycroft Care Home Ltd,Care Establishment,2 - Commissioning - Older people Pool,Older People - City & South,Residential Independent Sector
Cambridgeshire County Council,28-Apr-16,20567861-13257349,-725,Maycroft Care Home Ltd,Care Establishment,2 - Commissioning - Older people Pool,Older People - City & South,Residential Independent Sector
Cambridgeshire County Council,28-Apr-16,20567872-13257354,-725,Maycroft Care Home Ltd,Care Establishment,2 - Commissioning - Older people Pool,Older People - City & South,Residential Independent Sector
Cambridgeshire County Council,28-Apr-16,20567874-13257355,-725,Maycroft Care Home Ltd,Care Establishment,2 - Commissioning - Older people Pool,Older People - City & South,Residential Independent Sector
Cambridgeshire County Council,28-Apr-16,20566135-13246337,-724.93,Woodlands Care Centre,Care Establishment,2 - Commissioning - Older people Pool,Older People Mental Health E Cambs,Residential Independent Sector
Cambridgeshire County Council,28-Apr-16,20480517-13232653,-722.82,Caerus Care Ltd,Care Establishment,2 - Operations - Learning Disability,LDP Fenland Locality - Care,Day and Domicillary Care Independent Sector
Cambridgeshire County Council,28-Apr-16,20480527-13232663,-722.82,Caerus Care Ltd,Care Establishment,2 - Operations - Learning Disability,LDP Fenland Locality - Care,Day and Domicillary Care Independent Sector
Cambridgeshire County Council,28-Apr-16,20480539-13232675,-722.82,Caerus Care Ltd,Care Establishment,2 - Operations - Learning Disability,LDP Fenland Locality - Care,Day and Domicillary Care Independent Sector
Cambridgeshire County Council,28-Apr-16,20482533-13232550,-722.82,Caerus Care Ltd,Care Establishment,2 - Operations - Learning Disability,LDP Fenland Locality - Care,Day and Domicillary Care Independent Sector
Cambridgeshire County Council,28-Apr-16,20482534-13232551,-722.82,Caerus Care Ltd,Care Establishment,2 - Operations - Learning Disability,LDP Fenland Locality - Care,Day and Domicillary Care Independent Sector
Cambridgeshire County Council,28-Apr-16,20482544-13232561,-722.82,Caerus Care Ltd,Care Establishment,2 - Operations - Learning Disability,LDP Fenland Locality - Care,Day and Domicillary Care Independent Sector
Cambridgeshire County Council,28-Apr-16,20482610-13232627,-722.82,Caerus Care Ltd,Care Establishment,2 - Operations - Learning Disability,LDP Fenland Locality - Care,Day and Domicillary Care Independent Sector
Cambridgeshire County Council,28-Apr-16,20482618-13232635,-722.82,Caerus Care Ltd,Care Establishment,2 - Operations - Learning Disability,LDP Fenland Locality - Care,Day and Domicillary Care Independent Sector
Cambridgeshire County Council,28-Apr-16,20559938-13235290,-713.5,The Gables (Nursing Care Only),Care Establishment,2 - Commissioning - Older people Pool,Older People - City & South,Nursing Independent Sector
Cambridgeshire County Council,28-Apr-16,20551009-13247067,-713,Bramley Court,Care Establishment,2 - Commissioning - Older people Pool,Older People Mental Health City & South,Nursing Independent Sector
Cambridgeshire County Council,28-Apr-16,20551012-13247070,-713,Bramley Court,Care Establishment,2 - Commissioning - Older people Pool,Older People Mental Health City & South,Nursing Independent Sector
Cambridgeshire County Council,28-Apr-16,20551013-13247071,-713,Bramley Court,Care Establishment,2 - Commissioning - Older people Pool,Older People Mental Health City & South,Nursing Independent Sector
Cambridgeshire County Council,28-Apr-16,20551015-13247073,-713,Bramley Court,Care Establishment,2 - Commissioning - Older people Pool,Older People Mental Health City & South,Nursing Independent Sector
Cambridgeshire County Council,28-Apr-16,20551019-13247077,-713,Bramley Court,Care Establishment,2 - Commissioning - Older people Pool,Older People Mental Health City & South,Nursing Independent Sector
Cambridgeshire County Council,28-Apr-16,20551020-13247078,-713,Bramley Court,Care Establishment,2 - Commissioning - Older people Pool,Older People Mental Health City & South,Nursing Independent Sector
Cambridgeshire County Council,06-Apr-16,20445983-13127841,-700,Barchester Healthcare Homes Ltd,Care Establishment,2 - Commissioning - Older people Pool,East Cambs - O P Team,Nursing Independent Sector
Cambridgeshire County Council,06-Apr-16,20445984-13127842,-700,Barchester Healthcare Homes Ltd,Care Establishment,2 - Commissioning - Older people Pool,East Cambs - O P Team,Nursing Independent Sector
Cambridgeshire County Council,21-Apr-16,20521459-13209696,-700,Midfield Lodge Care Centre,Care Establishment,2 - Commissioning - Older people Pool,East Cambs - O P Team,Nursing Independent Sector
Cambridgeshire County Council,21-Apr-16,20522835-13209690,-700,Midfield Lodge Care Centre,Care Establishment,2 - Commissioning - Older people Pool,East Cambs - O P Team,Nursing Independent Sector
Cambridgeshire County Council,21-Apr-16,20522842-13209693,-700,Midfield Lodge Care Centre,Care Establishment,2 - Commissioning - Older people Pool,East Cambs - O P Team,Nursing Independent Sector
Cambridgeshire County Council,21-Apr-16,20522848-13209688,-700,Midfield Lodge Care Centre,Care Establishment,2 - Commissioning - Older people Pool,East Cambs - O P Team,Nursing Independent Sector
Cambridgeshire County Council,21-Apr-16,20526725-13208180,-700,Barchester Healthcare Homes Ltd,Care Establishment,2 - Commissioning - Older people Pool,East Cambs - O P Team,Nursing Independent Sector
Cambridgeshire County Council,21-Apr-16,20526726-13208181,-700,Barchester Healthcare Homes Ltd,Care Establishment,2 - Commissioning - Older people Pool,East Cambs - O P Team,Nursing Independent Sector
Cambridgeshire County Council,21-Apr-16,20526728-13208183,-700,Barchester Healthcare Homes Ltd,Care Establishment,2 - Commissioning - Older people Pool,East Cambs - O P Team,Nursing Independent Sector
Cambridgeshire County Council,28-Apr-16,20549119-13244226,-700,Rose Lodge,Care Establishment,2 - Commissioning - Older people Pool,Older People Mental Health Fenland,Nursing Independent Sector
Cambridgeshire County Council,28-Apr-16,20549127-13244228,-700,Rose Lodge,Care Establishment,2 - Commissioning - Older people Pool,Older People Mental Health Fenland,Nursing Independent Sector
Cambridgeshire County Council,28-Apr-16,20549268-13238326,-700,Manor House Residential And Nursing,Care Establishment,2 - Commissioning - Older people Pool,Hunts O P  Team,Nursing Independent Sector
Cambridgeshire County Council,28-Apr-16,20549369-13245842,-700,Abbey Healthcare (Huntingdon) Ltd,Care Establishment,2 - Commissioning - Older people Pool,Hunts O P  Team,Nursing Independent Sector
Cambridgeshire County Council,28-Apr-16,20549380-13245843,-700,Abbey Healthcare (Huntingdon) Ltd,Care Establishment,2 - Commissioning - Older people Pool,Hunts O P  Team,Nursing Independent Sector
Cambridgeshire County Council,28-Apr-16,20549385-13245846,-700,Abbey Healthcare (Huntingdon) Ltd,Care Establishment,2 - Commissioning - Older people Pool,Hunts O P  Team,Nursing Independent Sector
Cambridgeshire County Council,28-Apr-16,20550464-13238404,-700,Manor House Residential And Nursing,Care Establishment,2 - Commissioning - Older people Pool,Hunts O P  Team,Nursing Independent Sector
Cambridgeshire County Council,28-Apr-16,20550490-13238400,-700,Manor House Residential And Nursing,Care Establishment,2 - Commissioning - Older people Pool,Hunts O P  Team,Nursing Independent Sector
Cambridgeshire County Council,28-Apr-16,20550500-13238402,-700,Manor House Residential And Nursing,Care Establishment,2 - Commissioning - Older people Pool,Hunts O P  Team,Nursing Independent Sector
Cambridgeshire County Council,28-Apr-16,20551169-13244878,-700,Hardwick Dene,Care Establishment,2 - Commissioning - Older people Pool,Older People Mental Health Hunts,Residential Independent Sector
Cambridgeshire County Council,28-Apr-16,20551186-13244880,-700,Hardwick Dene,Care Establishment,2 - Commissioning - Older people Pool,Older People Mental Health Hunts,Residential Independent Sector
Cambridgeshire County Council,28-Apr-16,20551287-13244882,-700,Hardwick Dene,Care Establishment,2 - Commissioning - Older people Pool,Older People Mental Health Hunts,Residential Independent Sector
Cambridgeshire County Council,28-Apr-16,20551305-13244885,-700,Hardwick Dene,Care Establishment,2 - Commissioning - Older people Pool,Older People Mental Health Hunts,Residential Independent Sector
Cambridgeshire County Council,28-Apr-16,20553004-13247668,-700,Barchester Healthcare Homes Ltd,Care Establishment,2 - Commissioning - Older people Pool,East Cambs - O P Team,Nursing Independent Sector
Cambridgeshire County Council,28-Apr-16,20556214-13244208,-700,Rose Lodge,Care Establishment,2 - Commissioning - Older people Pool,Older People Mental Health Fenland,Nursing Independent Sector
Cambridgeshire County Council,28-Apr-16,20556226-13244350,-700,Rose Lodge,Care Establishment,2 - Commissioning - Older people Pool,Older People Mental Health Fenland,Nursing Independent Sector
Cambridgeshire County Council,28-Apr-16,20556236-13244353,-700,Rose Lodge,Care Establishment,2 - Commissioning - Older people Pool,Older People Mental Health Fenland,Nursing Independent Sector
Cambridgeshire County Council,28-Apr-16,20556409-13238412,-700,Manor House Residential And Nursing,Care Establishment,2 - Commissioning - Older people Pool,Hunts O P  Team,Nursing Independent Sector
Cambridgeshire County Council,28-Apr-16,20557283-13245977,-700,Abbey Healthcare (Huntingdon) Ltd,Care Establishment,2 - Commissioning - Older people Pool,Hunts O P  Team,Nursing Independent Sector
Cambridgeshire County Council,28-Apr-16,20557290-13245979,-700,Abbey Healthcare (Huntingdon) Ltd,Care Establishment,2 - Commissioning - Older people Pool,Hunts O P  Team,Nursing Independent Sector
Cambridgeshire County Council,28-Apr-16,20557887-13244873,-700,Hardwick Dene,Care Establishment,2 - Commissioning - Older people Pool,Older People Mental Health Hunts,Residential Independent Sector
Cambridgeshire County Council,28-Apr-16,20561120-13245881,-700,Abbey Healthcare (Huntingdon) Ltd,Care Establishment,2 - Commissioning - Older people Pool,Older People Mental Health Hunts,Nursing Independent Sector
Cambridgeshire County Council,28-Apr-16,20561132-13245887,-700,Abbey Healthcare (Huntingdon) Ltd,Care Establishment,2 - Commissioning - Older people Pool,Older People Mental Health Hunts,Nursing Independent Sector
Cambridgeshire County Council,28-Apr-16,20561134-13245888,-700,Abbey Healthcare (Huntingdon) Ltd,Care Establishment,2 - Commissioning - Older people Pool,Older People Mental Health Hunts,Nursing Independent Sector
Cambridgeshire County Council,28-Apr-16,20561135-13245889,-700,Abbey Healthcare (Huntingdon) Ltd,Care Establishment,2 - Commissioning - Older people Pool,Older People Mental Health Hunts,Nursing Independent Sector
Cambridgeshire County Council,28-Apr-16,20561137-13245890,-700,Abbey Healthcare (Huntingdon) Ltd,Care Establishment,2 - Commissioning - Older people Pool,Older People Mental Health Hunts,Nursing Independent Sector
Cambridgeshire County Council,28-Apr-16,20569041-13246205,-700,St Georges Nursing Home,Care Establishment,2 - Commissioning - Older people Pool,Older People - City & South,Nursing Independent Sector
Cambridgeshire County Council,28-Apr-16,20569045-13246209,-700,St Georges Nursing Home,Care Establishment,2 - Commissioning - Older people Pool,Older People - City & South,Nursing Independent Sector
Cambridgeshire County Council,28-Apr-16,20569051-13246215,-700,St Georges Nursing Home,Care Establishment,2 - Commissioning - Older people Pool,Older People - City & South,Nursing Independent Sector
Cambridgeshire County Council,28-Apr-16,20569052-13246216,-700,St Georges Nursing Home,Care Establishment,2 - Commissioning - Older people Pool,Older People - City & South,Nursing Independent Sector
Cambridgeshire County Council,28-Apr-16,20569053-13246217,-700,St Georges Nursing Home,Care Establishment,2 - Commissioning - Older people Pool,Older People - City & South,Nursing Independent Sector
Cambridgeshire County Council,28-Apr-16,20563045-13251558,-699.49,The Cambridge Housing Society Ltd,Care Establishment,2 - Commissioning - Older people Pool,Older People Mental Health City & South,Residential Independent Sector
Cambridgeshire County Council,28-Apr-16,20568248-13251758,-698.26,Redacted Personal Data,Individual,3 - Operations - Countywide Services,Countywide PD Service - Care,Direct Payments - Social Services
Cambridgeshire County Council,28-Apr-16,20568254-13251764,-698.26,Redacted Personal Data,Individual,3 - Operations - Countywide Services,Countywide PD Service - Care,Direct Payments - Social Services
Cambridgeshire County Council,28-Apr-16,20568255-13251765,-698.26,Redacted Personal Data,Individual,3 - Operations - Countywide Services,Countywide PD Service - Care,Direct Payments - Social Services
Cambridgeshire County Council,28-Apr-16,20568256-13251766,-698.26,Redacted Personal Data,Individual,3 - Operations - Countywide Services,Countywide PD Service - Care,Direct Payments - Social Services
Cambridgeshire County Council,28-Apr-16,20568257-13251767,-698.26,Redacted Personal Data,Individual,3 - Operations - Countywide Services,Countywide PD Service - Care,Direct Payments - Social Services
Cambridgeshire County Council,28-Apr-16,20568258-13251768,-698.26,Redacted Personal Data,Individual,3 - Operations - Countywide Services,Countywide PD Service - Care,Direct Payments - Social Services
Cambridgeshire County Council,28-Apr-16,20568261-13251769,-698.26,Redacted Personal Data,Individual,3 - Operations - Countywide Services,Countywide PD Service - Care,Direct Payments - Social Services
Cambridgeshire County Council,28-Apr-16,20568263-13251771,-698.26,Redacted Personal Data,Individual,3 - Operations - Countywide Services,Countywide PD Service - Care,Direct Payments - Social Services
Cambridgeshire County Council,28-Apr-16,20568265-13251773,-698.26,Redacted Personal Data,Individual,3 - Operations - Countywide Services,Countywide PD Service - Care,Direct Payments - Social Services
Cambridgeshire County Council,28-Apr-16,20568271-13251778,-698.26,Redacted Personal Data,Individual,3 - Operations - Countywide Services,Countywide PD Service - Care,Direct Payments - Social Services
Cambridgeshire County Council,28-Apr-16,20568973-13251801,-698.26,Redacted Personal Data,Individual,3 - Operations - Countywide Services,Countywide PD Service - Care,Direct Payments - Social Services
Cambridgeshire County Council,28-Apr-16,20568974-13251802,-698.26,Redacted Personal Data,Individual,3 - Operations - Countywide Services,Countywide PD Service - Care,Direct Payments - Social Services
Cambridgeshire County Council,28-Apr-16,20568976-13251803,-698.26,Redacted Personal Data,Individual,3 - Operations - Countywide Services,Countywide PD Service - Care,Direct Payments - Social Services
Cambridgeshire County Council,28-Apr-16,20555038-13247585,-697.76,Barchester Healthcare Homes Ltd,Care Establishment,2 - Commissioning - Older people Pool,Older People Mental Health City & South,Nursing Independent Sector
Cambridgeshire County Council,28-Apr-16,20562421-13247526,-697.76,Barchester Healthcare Homes Ltd,Care Establishment,2 - Commissioning - Older people Pool,Older People Mental Health City & South,Nursing Independent Sector
Cambridgeshire County Council,28-Apr-16,20565701-13247661,-697.76,Barchester Healthcare Homes Ltd,Care Establishment,2 - Commissioning - Older people Pool,Older People Mental Health City & South,Nursing Independent Sector
Cambridgeshire County Council,28-Apr-16,20570842-13247710,-697.76,Barchester Healthcare Homes Ltd,Care Establishment,2 - Commissioning - Older people Pool,Older People Mental Health City & South,Nursing Independent Sector
Cambridgeshire County Council,28-Apr-16,20567363-13235270,-694.39,The Gables (Nursing Care Only),Care Establishment,3 - Operations - Countywide Services,Countywide PD Service - Care,Nursing Independent Sector
Cambridgeshire County Council,28-Apr-16,20561103-13251030,-693.45,Kelam Health Care Ltd T/A Paxton Hall Care Home,Care Establishment,2 - Commissioning - Older people Pool,Hunts O P  Team,Residential Independent Sector
Cambridgeshire County Council,28-Apr-16,20562883-13251066,-693.45,Kelam Health Care Ltd T/A Paxton Hall Care Home,Care Establishment,2 - Commissioning - Older people Pool,Hunts O P  Team,Residential Independent Sector
Cambridgeshire County Council,28-Apr-16,20562886-13251069,-693.45,Kelam Health Care Ltd T/A Paxton Hall Care Home,Care Establishment,2 - Commissioning - Older people Pool,Hunts O P  Team,Residential Independent Sector
Cambridgeshire County Council,28-Apr-16,20562888-13251071,-693.45,Kelam Health Care Ltd T/A Paxton Hall Care Home,Care Establishment,2 - Commissioning - Older people Pool,Hunts O P  Team,Residential Independent Sector
Cambridgeshire County Council,28-Apr-16,20562890-13251073,-693.45,Kelam Health Care Ltd T/A Paxton Hall Care Home,Care Establishment,2 - Commissioning - Older people Pool,Hunts O P  Team,Residential Independent Sector
Cambridgeshire County Council,28-Apr-16,20552033-13247045,-689.14,Bramley Court,Care Establishment,2 - Commissioning - Older people Pool,Older People Mental Health City & South,Nursing Independent Sector
Cambridgeshire County Council,28-Apr-16,20572071-13246371,-687.5,Woodlands Care Centre,Care Establishment,2 - Commissioning - Older people Pool,Older People Mental Health E Cambs,Residential Independent Sector
Cambridgeshire County Council,28-Apr-16,20572073-13246373,-687.5,Woodlands Care Centre,Care Establishment,2 - Commissioning - Older people Pool,Older People Mental Health E Cambs,Residential Independent Sector
Cambridgeshire County Council,28-Apr-16,20572081-13246377,-687.5,Woodlands Care Centre,Care Establishment,2 - Commissioning - Older people Pool,Older People Mental Health E Cambs,Residential Independent Sector
Cambridgeshire County Council,28-Apr-16,20572086-13246379,-687.5,Woodlands Care Centre,Care Establishment,2 - Commissioning - Older people Pool,Older People Mental Health E Cambs,Residential Independent Sector
Cambridgeshire County Council,28-Apr-16,20572087-13246380,-687.5,Woodlands Care Centre,Care Establishment,2 - Commissioning - Older people Pool,Older People Mental Health E Cambs,Residential Independent Sector
Cambridgeshire County Council,28-Apr-16,20571168-13254328,-683.4,Gracefield Nursing And Residential Home,Care Establishment,2 - Commissioning - Older people Pool,Older People Mental Health City & South,Nursing Independent Sector
Cambridgeshire County Council,28-Apr-16,20571202-13254331,-683.4,Gracefield Nursing And Residential Home,Care Establishment,2 - Commissioning - Older people Pool,Older People Mental Health City & South,Nursing Independent Sector
Cambridgeshire County Council,28-Apr-16,20571211-13254332,-683.4,Gracefield Nursing And Residential Home,Care Establishment,2 - Commissioning - Older people Pool,Older People Mental Health City & South,Nursing Independent Sector
Cambridgeshire County Council,28-Apr-16,20571234-13254338,-683.4,Gracefield Nursing And Residential Home,Care Establishment,2 - Commissioning - Older people Pool,Older People Mental Health City & South,Nursing Independent Sector
Cambridgeshire County Council,28-Apr-16,20571259-13254341,-683.4,Gracefield Nursing And Residential Home,Care Establishment,2 - Commissioning - Older people Pool,Older People Mental Health City & South,Nursing Independent Sector
Cambridgeshire County Council,06-Apr-16,20449245-13119859,-680.93,Broad Oaks (Mencap),Care Establishment,2 - Commissioning - Older people Pool,Older People - Fenland,Residential Independent Sector
Cambridgeshire County Council,06-Apr-16,20449246-13119860,-680.93,Broad Oaks (Mencap),Care Establishment,2 - Commissioning - Older people Pool,Older People - Fenland,Residential Independent Sector
Cambridgeshire County Council,28-Apr-16,20559535-13242984,-680,Cherry Hinton Nursing Home,Care Establishment,2 - Commissioning - Older people Pool,Older People - City & South,Nursing Independent Sector
Cambridgeshire County Council,28-Apr-16,20559536-13242985,-680,Cherry Hinton Nursing Home,Care Establishment,2 - Commissioning - Older people Pool,Older People - City & South,Nursing Independent Sector
Cambridgeshire County Council,28-Apr-16,20559542-13242991,-680,Cherry Hinton Nursing Home,Care Establishment,2 - Commissioning - Older people Pool,Older People - City & South,Nursing Independent Sector
Cambridgeshire County Council,28-Apr-16,20559544-13242993,-680,Cherry Hinton Nursing Home,Care Establishment,2 - Commissioning - Older people Pool,Older People - City & South,Nursing Independent Sector
Cambridgeshire County Council,28-Apr-16,20559545-13242994,-680,Cherry Hinton Nursing Home,Care Establishment,2 - Commissioning - Older people Pool,Older People - City & South,Nursing Independent Sector
Cambridgeshire County Council,15-Apr-16,20480902-13177666,-679,Redacted Personal Data,Individual,3 - Operations - Countywide Services,Countywide PD Service - Care,Direct Payments - Social Services
Cambridgeshire County Council,15-Apr-16,20480903-13177667,-679,Redacted Personal Data,Individual,3 - Operations - Countywide Services,Countywide PD Service - Care,Direct Payments - Social Services
Cambridgeshire County Council,15-Apr-16,20480904-13177668,-679,Redacted Personal Data,Individual,3 - Operations - Countywide Services,Countywide PD Service - Care,Direct Payments - Social Services
Cambridgeshire County Council,15-Apr-16,20480913-13177677,-679,Redacted Personal Data,Individual,3 - Operations - Countywide Services,Countywide PD Service - Care,Direct Payments - Social Services
Cambridgeshire County Council,15-Apr-16,20480915-13177679,-679,Redacted Personal Data,Individual,3 - Operations - Countywide Services,Countywide PD Service - Care,Direct Payments - Social Services
Cambridgeshire County Council,15-Apr-16,20480918-13177682,-679,Redacted Personal Data,Individual,3 - Operations - Countywide Services,Countywide PD Service - Care,Direct Payments - Social Services
Cambridgeshire County Council,28-Apr-16,20556758-13234866,-678.74,Mencap (Cowley Road),Care Establishment,2 - Operations - Learning Disability,LDP Fenland Locality - Care,Supported Living
Cambridgeshire County Council,06-Apr-16,20450716-13126670,-675.84,Dell Residential Home,Care Establishment,2 - Commissioning - Older people Pool,East Cambs - O P Team,Residential Independent Sector
Cambridgeshire County Council,06-Apr-16,20450717-13126671,-675.84,Dell Residential Home,Care Establishment,2 - Commissioning - Older people Pool,East Cambs - O P Team,Residential Independent Sector
Cambridgeshire County Council,28-Apr-16,20568490-13254299,-675.27,Gracefield Nursing And Residential Home,Care Establishment,2 - Commissioning - Older people Pool,Older People Mental Health City & South,Nursing Independent Sector
Cambridgeshire County Council,28-Apr-16,20555836-13253201,-672.75,Midfield Lodge Care Centre,Care Establishment,2 - Commissioning - Older people Pool,Older People - City & South,Nursing Independent Sector
Cambridgeshire County Council,28-Apr-16,20555837-13253202,-672.75,Midfield Lodge Care Centre,Care Establishment,2 - Commissioning - Older people Pool,Older People - City & South,Nursing Independent Sector
Cambridgeshire County Council,28-Apr-16,20555838-13253203,-672.75,Midfield Lodge Care Centre,Care Establishment,2 - Commissioning - Older people Pool,Older People - City & South,Nursing Independent Sector
Cambridgeshire County Council,28-Apr-16,20555844-13253209,-672.75,Midfield Lodge Care Centre,Care Establishment,2 - Commissioning - Older people Pool,Older People - City & South,Nursing Independent Sector
Cambridgeshire County Council,28-Apr-16,20555845-13253210,-672.75,Midfield Lodge Care Centre,Care Establishment,2 - Commissioning - Older people Pool,Older People - City & South,Nursing Independent Sector
Cambridgeshire County Council,28-Apr-16,20565714-13238242,-659.2,The Elms Nursing Home,Care Establishment,2 - Commissioning - Older people Pool,Older People - Fenland,Nursing Independent Sector
Cambridgeshire County Council,28-Apr-16,20565721-13238243,-659.2,The Elms Nursing Home,Care Establishment,2 - Commissioning - Older people Pool,Older People - Fenland,Nursing Independent Sector
Cambridgeshire County Council,28-Apr-16,20565722-13238244,-659.2,The Elms Nursing Home,Care Establishment,2 - Commissioning - Older people Pool,Older People - Fenland,Nursing Independent Sector
Cambridgeshire County Council,28-Apr-16,20566719-13238210,-659.2,The Elms Nursing Home,Care Establishment,2 - Commissioning - Older people Pool,Older People - Fenland,Nursing Independent Sector
Cambridgeshire County Council,28-Apr-16,20567738-13238177,-659.2,The Elms Nursing Home,Care Establishment,2 - Commissioning - Older people Pool,Older People - Fenland,Nursing Independent Sector
Cambridgeshire County Council,28-Apr-16,20561743-13242924,-653.25,Cherry Hinton Nursing Home,Care Establishment,2 - Commissioning - Older people Pool,Older People Mental Health City & South,Nursing Independent Sector
Cambridgeshire County Council,28-Apr-16,20561744-13242925,-653.25,Cherry Hinton Nursing Home,Care Establishment,2 - Commissioning - Older people Pool,Older People Mental Health City & South,Nursing Independent Sector
Cambridgeshire County Council,28-Apr-16,20561745-13242926,-653.25,Cherry Hinton Nursing Home,Care Establishment,2 - Commissioning - Older people Pool,Older People Mental Health City & South,Nursing Independent Sector
Cambridgeshire County Council,28-Apr-16,20561747-13242928,-653.25,Cherry Hinton Nursing Home,Care Establishment,2 - Commissioning - Older people Pool,Older People Mental Health City & South,Nursing Independent Sector
Cambridgeshire County Council,28-Apr-16,20561749-13242929,-653.25,Cherry Hinton Nursing Home,Care Establishment,2 - Commissioning - Older people Pool,Older People Mental Health City & South,Nursing Independent Sector
Cambridgeshire County Council,28-Apr-16,20561754-13242932,-653.25,Cherry Hinton Nursing Home,Care Establishment,2 - Commissioning - Older people Pool,Older People Mental Health City & South,Nursing Independent Sector
Cambridgeshire County Council,28-Apr-16,20562552-13254364,-652.5,Gracefield Nursing And Residential Home,Care Establishment,2 - Commissioning - Older people Pool,Older People Mental Health City & South,Nursing Independent Sector
Cambridgeshire County Council,28-Apr-16,20562557-13254366,-652.5,Gracefield Nursing And Residential Home,Care Establishment,2 - Commissioning - Older people Pool,Older People Mental Health City & South,Nursing Independent Sector
Cambridgeshire County Council,28-Apr-16,20563280-13254356,-652.5,Gracefield Nursing And Residential Home,Care Establishment,2 - Commissioning - Older people Pool,Older People Mental Health City & South,Nursing Independent Sector
Cambridgeshire County Council,28-Apr-16,20563283-13254357,-652.5,Gracefield Nursing And Residential Home,Care Establishment,2 - Commissioning - Older people Pool,Older People Mental Health City & South,Nursing Independent Sector
Cambridgeshire County Council,28-Apr-16,20563285-13254359,-652.5,Gracefield Nursing And Residential Home,Care Establishment,2 - Commissioning - Older people Pool,Older People Mental Health City & South,Nursing Independent Sector
Cambridgeshire County Council,28-Apr-16,20483650-13242651,-650,Cedar Court Care Ltd,Care Establishment,2 - Commissioning - Older people Pool,Older People - Fenland,Nursing Independent Sector
Cambridgeshire County Council,28-Apr-16,20483651-13242652,-650,Cedar Court Care Ltd,Care Establishment,2 - Commissioning - Older people Pool,Older People - Fenland,Nursing Independent Sector
Cambridgeshire County Council,28-Apr-16,20483652-13242653,-650,Cedar Court Care Ltd,Care Establishment,2 - Commissioning - Older people Pool,Older People - Fenland,Nursing Independent Sector
Cambridgeshire County Council,28-Apr-16,20483653-13242654,-650,Cedar Court Care Ltd,Care Establishment,2 - Commissioning - Older people Pool,Older People - Fenland,Nursing Independent Sector
Cambridgeshire County Council,28-Apr-16,20483656-13242655,-650,Cedar Court Care Ltd,Care Establishment,2 - Commissioning - Older people Pool,Older People - Fenland,Nursing Independent Sector
Cambridgeshire County Council,28-Apr-16,20483657-13242656,-650,Cedar Court Care Ltd,Care Establishment,2 - Commissioning - Older people Pool,Older People - Fenland,Nursing Independent Sector
Cambridgeshire County Council,28-Apr-16,20483664-13242661,-650,Cedar Court Care Ltd,Care Establishment,2 - Commissioning - Older people Pool,Older People - Fenland,Nursing Independent Sector
Cambridgeshire County Council,28-Apr-16,20483672-13242667,-650,Cedar Court Care Ltd,Care Establishment,2 - Commissioning - Older people Pool,Older People - Fenland,Nursing Independent Sector
Cambridgeshire County Council,28-Apr-16,20483675-13242670,-650,Cedar Court Care Ltd,Care Establishment,2 - Commissioning - Older people Pool,Older People - Fenland,Nursing Independent Sector
Cambridgeshire County Council,28-Apr-16,20483686-13242638,-650,Cedar Court Care Ltd,Care Establishment,2 - Commissioning - Older people Pool,Older People - Fenland,Nursing Independent Sector
Cambridgeshire County Council,28-Apr-16,20483687-13242639,-650,Cedar Court Care Ltd,Care Establishment,2 - Commissioning - Older people Pool,Older People - Fenland,Nursing Independent Sector
Cambridgeshire County Council,28-Apr-16,20483688-13242640,-650,Cedar Court Care Ltd,Care Establishment,2 - Commissioning - Older people Pool,Older People - Fenland,Nursing Independent Sector
Cambridgeshire County Council,28-Apr-16,20483691-13242641,-650,Cedar Court Care Ltd,Care Establishment,2 - Commissioning - Older people Pool,Older People - Fenland,Nursing Independent Sector
Cambridgeshire County Council,28-Apr-16,20483693-13242643,-650,Cedar Court Care Ltd,Care Establishment,2 - Commissioning - Older people Pool,Older People - Fenland,Nursing Independent Sector
Cambridgeshire County Council,28-Apr-16,20483700-13242647,-650,Cedar Court Care Ltd,Care Establishment,2 - Commissioning - Older people Pool,Older People - Fenland,Nursing Independent Sector
Cambridgeshire County Council,28-Apr-16,20483701-13242648,-650,Cedar Court Care Ltd,Care Establishment,2 - Commissioning - Older people Pool,Older People - Fenland,Nursing Independent Sector
Cambridgeshire County Council,28-Apr-16,20483713-13242572,-650,Cedar Court Care Ltd,Care Establishment,2 - Commissioning - Older people Pool,Older People - Fenland,Nursing Independent Sector
Cambridgeshire County Council,28-Apr-16,20483714-13242573,-650,Cedar Court Care Ltd,Care Establishment,2 - Commissioning - Older people Pool,Older People - Fenland,Nursing Independent Sector
Cambridgeshire County Council,28-Apr-16,20483721-13242575,-650,Cedar Court Care Ltd,Care Establishment,2 - Commissioning - Older people Pool,Older People - Fenland,Nursing Independent Sector
Cambridgeshire County Council,28-Apr-16,20483722-13242576,-650,Cedar Court Care Ltd,Care Establishment,2 - Commissioning - Older people Pool,Older People - Fenland,Nursing Independent Sector
Cambridgeshire County Council,28-Apr-16,20483724-13242578,-650,Cedar Court Care Ltd,Care Establishment,2 - Commissioning - Older people Pool,Older People - Fenland,Nursing Independent Sector
Cambridgeshire County Council,28-Apr-16,20483731-13242579,-650,Cedar Court Care Ltd,Care Establishment,2 - Commissioning - Older people Pool,Older People - Fenland,Nursing Independent Sector
Cambridgeshire County Council,28-Apr-16,20483733-13242581,-650,Cedar Court Care Ltd,Care Establishment,2 - Commissioning - Older people Pool,Older People - Fenland,Nursing Independent Sector
Cambridgeshire County Council,28-Apr-16,20483735-13242583,-650,Cedar Court Care Ltd,Care Establishment,2 - Commissioning - Older people Pool,Older People - Fenland,Nursing Independent Sector
Cambridgeshire County Council,28-Apr-16,20483737-13242584,-650,Cedar Court Care Ltd,Care Establishment,2 - Commissioning - Older people Pool,Older People - Fenland,Nursing Independent Sector
Cambridgeshire County Council,28-Apr-16,20483738-13242585,-650,Cedar Court Care Ltd,Care Establishment,2 - Commissioning - Older people Pool,Older People - Fenland,Nursing Independent Sector
Cambridgeshire County Council,28-Apr-16,20483742-13242586,-650,Cedar Court Care Ltd,Care Establishment,2 - Commissioning - Older people Pool,Older People - Fenland,Nursing Independent Sector
Cambridgeshire County Council,28-Apr-16,20483743-13242587,-650,Cedar Court Care Ltd,Care Establishment,2 - Commissioning - Older people Pool,Older People - Fenland,Nursing Independent Sector
Cambridgeshire County Council,28-Apr-16,20483745-13242589,-650,Cedar Court Care Ltd,Care Establishment,2 - Commissioning - Older people Pool,Older People - Fenland,Nursing Independent Sector
Cambridgeshire County Council,28-Apr-16,20483748-13242590,-650,Cedar Court Care Ltd,Care Establishment,2 - Commissioning - Older people Pool,Older People - Fenland,Nursing Independent Sector
Cambridgeshire County Council,28-Apr-16,20483751-13242593,-650,Cedar Court Care Ltd,Care Establishment,2 - Commissioning - Older people Pool,Older People - Fenland,Nursing Independent Sector
Cambridgeshire County Council,28-Apr-16,20483752-13242594,-650,Cedar Court Care Ltd,Care Establishment,2 - Commissioning - Older people Pool,Older People - Fenland,Nursing Independent Sector
Cambridgeshire County Council,28-Apr-16,20483765-13242600,-650,Cedar Court Care Ltd,Care Establishment,2 - Commissioning - Older people Pool,Older People - Fenland,Nursing Independent Sector
Cambridgeshire County Council,28-Apr-16,20483775-13242606,-650,Cedar Court Care Ltd,Care Establishment,2 - Commissioning - Older people Pool,Older People - Fenland,Nursing Independent Sector
Cambridgeshire County Council,28-Apr-16,20483777-13242608,-650,Cedar Court Care Ltd,Care Establishment,2 - Commissioning - Older people Pool,Older People - Fenland,Nursing Independent Sector
Cambridgeshire County Council,28-Apr-16,20483780-13242611,-650,Cedar Court Care Ltd,Care Establishment,2 - Commissioning - Older people Pool,Older People - Fenland,Nursing Independent Sector
Cambridgeshire County Council,28-Apr-16,20483784-13242612,-650,Cedar Court Care Ltd,Care Establishment,2 - Commissioning - Older people Pool,Older People - Fenland,Nursing Independent Sector
Cambridgeshire County Council,28-Apr-16,20483786-13242614,-650,Cedar Court Care Ltd,Care Establishment,2 - Commissioning - Older people Pool,Older People - Fenland,Nursing Independent Sector
Cambridgeshire County Council,28-Apr-16,20483787-13242615,-650,Cedar Court Care Ltd,Care Establishment,2 - Commissioning - Older people Pool,Older People - Fenland,Nursing Independent Sector
Cambridgeshire County Council,28-Apr-16,20483789-13242617,-650,Cedar Court Care Ltd,Care Establishment,2 - Commissioning - Older people Pool,Older People - Fenland,Nursing Independent Sector
Cambridgeshire County Council,28-Apr-16,20483792-13242619,-650,Cedar Court Care Ltd,Care Establishment,2 - Commissioning - Older people Pool,Older People - Fenland,Nursing Independent Sector
Cambridgeshire County Council,28-Apr-16,20483796-13242623,-650,Cedar Court Care Ltd,Care Establishment,2 - Commissioning - Older people Pool,Older People - Fenland,Nursing Independent Sector
Cambridgeshire County Council,28-Apr-16,20483803-13242625,-650,Cedar Court Care Ltd,Care Establishment,2 - Commissioning - Older people Pool,Older People - Fenland,Nursing Independent Sector
Cambridgeshire County Council,28-Apr-16,20483805-13242627,-650,Cedar Court Care Ltd,Care Establishment,2 - Commissioning - Older people Pool,Older People - Fenland,Nursing Independent Sector
Cambridgeshire County Council,28-Apr-16,20483807-13242629,-650,Cedar Court Care Ltd,Care Establishment,2 - Commissioning - Older people Pool,Older People - Fenland,Nursing Independent Sector
Cambridgeshire County Council,28-Apr-16,20483809-13242631,-650,Cedar Court Care Ltd,Care Establishment,2 - Commissioning - Older people Pool,Older People - Fenland,Nursing Independent Sector
Cambridgeshire County Council,28-Apr-16,20483810-13242632,-650,Cedar Court Care Ltd,Care Establishment,2 - Commissioning - Older people Pool,Older People - Fenland,Nursing Independent Sector
Cambridgeshire County Council,28-Apr-16,20483815-13242633,-650,Cedar Court Care Ltd,Care Establishment,2 - Commissioning - Older people Pool,Older People - Fenland,Nursing Independent Sector
Cambridgeshire County Council,28-Apr-16,20483816-13242634,-650,Cedar Court Care Ltd,Care Establishment,2 - Commissioning - Older people Pool,Older People - Fenland,Nursing Independent Sector
Cambridgeshire County Council,28-Apr-16,20484631-13242567,-650,Cedar Court Care Ltd,Care Establishment,2 - Commissioning - Older people Pool,Older People - Fenland,Nursing Independent Sector
Cambridgeshire County Council,28-Apr-16,20549525-13254281,-650,Gracefield Nursing And Residential Home,Care Establishment,2 - Commissioning - Older people Pool,Older People Mental Health E Cambs,Nursing Independent Sector
Cambridgeshire County Council,28-Apr-16,20549528-13254284,-650,Gracefield Nursing And Residential Home,Care Establishment,2 - Commissioning - Older people Pool,Older People Mental Health E Cambs,Nursing Independent Sector
Cambridgeshire County Council,28-Apr-16,20549529-13254285,-650,Gracefield Nursing And Residential Home,Care Establishment,2 - Commissioning - Older people Pool,Older People Mental Health E Cambs,Nursing Independent Sector
Cambridgeshire County Council,28-Apr-16,20549532-13254287,-650,Gracefield Nursing And Residential Home,Care Establishment,2 - Commissioning - Older people Pool,Older People Mental Health E Cambs,Nursing Independent Sector
Cambridgeshire County Council,28-Apr-16,20549533-13254288,-650,Gracefield Nursing And Residential Home,Care Establishment,2 - Commissioning - Older people Pool,Older People Mental Health E Cambs,Nursing Independent Sector
Cambridgeshire County Council,28-Apr-16,20549535-13254290,-650,Gracefield Nursing And Residential Home,Care Establishment,2 - Commissioning - Older people Pool,Older People Mental Health E Cambs,Nursing Independent Sector
Cambridgeshire County Council,28-Apr-16,20550295-13247105,-650,Bramley Court,Care Establishment,2 - Commissioning - Older people Pool,Older People - City & South,Residential Independent Sector
Cambridgeshire County Council,28-Apr-16,20550296-13247106,-650,Bramley Court,Care Establishment,2 - Commissioning - Older people Pool,Older People - City & South,Residential Independent Sector
Cambridgeshire County Council,28-Apr-16,20550298-13247108,-650,Bramley Court,Care Establishment,2 - Commissioning - Older people Pool,Older People - City & South,Residential Independent Sector
Cambridgeshire County Council,28-Apr-16,20550303-13247113,-650,Bramley Court,Care Establishment,2 - Commissioning - Older people Pool,Older People - City & South,Residential Independent Sector
Cambridgeshire County Council,28-Apr-16,20550305-13247115,-650,Bramley Court,Care Establishment,2 - Commissioning - Older people Pool,Older People - City & South,Residential Independent Sector
Cambridgeshire County Council,28-Apr-16,20550306-13247116,-650,Bramley Court,Care Establishment,2 - Commissioning - Older people Pool,Older People - City & South,Residential Independent Sector
Cambridgeshire County Council,28-Apr-16,20547359-13245902,-646.07,Abbey Healthcare (Huntingdon) Ltd,Care Establishment,2 - Commissioning - Older people Pool,Hunts O P  Team,Nursing Independent Sector
Cambridgeshire County Council,28-Apr-16,20555747-13246941,-646.07,Bramley Court,Care Establishment,2 - Commissioning - Older people Pool,Older People - City & South,Residential Independent Sector
Cambridgeshire County Council,28-Apr-16,20557979-13256773,-644.61,The Cambridge Nursing Centre,Care Establishment,2 - Commissioning - Older people Pool,Older People - City & South,Nursing Independent Sector
Cambridgeshire County Council,28-Apr-16,20557983-13256777,-644.61,The Cambridge Nursing Centre,Care Establishment,2 - Commissioning - Older people Pool,Older People - City & South,Nursing Independent Sector
Cambridgeshire County Council,28-Apr-16,20557988-13256782,-644.61,The Cambridge Nursing Centre,Care Establishment,2 - Commissioning - Older people Pool,Older People - City & South,Nursing Independent Sector
Cambridgeshire County Council,28-Apr-16,20557989-13256783,-644.61,The Cambridge Nursing Centre,Care Establishment,2 - Commissioning - Older people Pool,Older People - City & South,Nursing Independent Sector
Cambridgeshire County Council,28-Apr-16,20557992-13256786,-644.61,The Cambridge Nursing Centre,Care Establishment,2 - Commissioning - Older people Pool,Older People - City & South,Nursing Independent Sector
Cambridgeshire County Council,28-Apr-16,20058342-13242704,-642.86,Cedar Court Care Ltd,Care Establishment,2 - Commissioning - Older people Pool,Older People Mental Health Fenland,Nursing Independent Sector
Cambridgeshire County Council,28-Apr-16,20548605-13245870,-642.86,Abbey Healthcare (Huntingdon) Ltd,Care Establishment,2 - Commissioning - Older people Pool,Hunts O P  Team,Nursing Independent Sector
Cambridgeshire County Council,28-Apr-16,20549098-13244222,-642.86,Rose Lodge,Care Establishment,2 - Commissioning - Older people Pool,Older People Mental Health Fenland,Nursing Independent Sector
Cambridgeshire County Council,28-Apr-16,20550483-13247776,-642.86,Barchester Healthcare Homes Ltd,Care Establishment,2 - Commissioning - Older people Pool,Older People - City & South,Nursing Independent Sector
Cambridgeshire County Council,28-Apr-16,20560962-13256685,-642.86,The Cambridge Nursing Centre,Care Establishment,2 - Commissioning - Older people Pool,Older People Mental Health E Cambs,Nursing Independent Sector
Cambridgeshire County Council,28-Apr-16,20564634-13251418,-642.86,The Cambridge Housing Society Ltd,Care Establishment,2 - Commissioning - Older people Pool,Older People - City & South,Residential Independent Sector
Cambridgeshire County Council,28-Apr-16,20565419-13246196,-642.86,St Georges Nursing Home,Care Establishment,2 - Commissioning - Older people Pool,Older People - City & South,Nursing Independent Sector
Cambridgeshire County Council,04-Apr-16,19455131-13099262,-639.18,Espo,Trade Supplier,LRNG,"Workforce Development Team	",Educational equipment
Cambridgeshire County Council,28-Apr-16,20550313-13256830,-632.22,The Cambridge Nursing Centre,Care Establishment,2 - Commissioning - Older people Pool,Older People Mental Health City & South,Nursing Independent Sector
Cambridgeshire County Council,28-Apr-16,20550317-13256834,-632.22,The Cambridge Nursing Centre,Care Establishment,2 - Commissioning - Older people Pool,Older People Mental Health City & South,Nursing Independent Sector
Cambridgeshire County Council,28-Apr-16,20550324-13256841,-632.22,The Cambridge Nursing Centre,Care Establishment,2 - Commissioning - Older people Pool,Older People Mental Health City & South,Nursing Independent Sector
Cambridgeshire County Council,28-Apr-16,20550329-13256846,-632.22,The Cambridge Nursing Centre,Care Establishment,2 - Commissioning - Older people Pool,Older People Mental Health City & South,Nursing Independent Sector
Cambridgeshire County Council,28-Apr-16,20550333-13256850,-632.22,The Cambridge Nursing Centre,Care Establishment,2 - Commissioning - Older people Pool,Older People Mental Health City & South,Nursing Independent Sector
Cambridgeshire County Council,15-Apr-16,20464880-13178426,-630,Randstad Education Limited,Trade Supplier,E&P,SEND Specialist Services - Access & Inclusion,Pay - Supply Cover - Long-term supply
Cambridgeshire County Council,28-Apr-16,20450501-13245832,-625,Laburnum Lodge,Care Establishment,2 - Commissioning - Older people Pool,East Cambs - O P Team,Residential Independent Sector
Cambridgeshire County Council,28-Apr-16,20548718-13253272,-624.1,Midfield Lodge Care Centre,Care Establishment,2 - Commissioning - Older people Pool,Hunts O P  Team,Nursing Independent Sector
Cambridgeshire County Council,28-Apr-16,20550315-13256832,-622.9,The Cambridge Nursing Centre,Care Establishment,2 - Commissioning - Older people Pool,Older People - City & South,Nursing Independent Sector
Cambridgeshire County Council,28-Apr-16,20550326-13256843,-622.9,The Cambridge Nursing Centre,Care Establishment,2 - Commissioning - Older people Pool,Older People - City & South,Nursing Independent Sector
Cambridgeshire County Council,28-Apr-16,20550327-13256844,-622.9,The Cambridge Nursing Centre,Care Establishment,2 - Commissioning - Older people Pool,Older People - City & South,Nursing Independent Sector
Cambridgeshire County Council,28-Apr-16,20550336-13256853,-622.9,The Cambridge Nursing Centre,Care Establishment,2 - Commissioning - Older people Pool,Older People - City & South,Nursing Independent Sector
Cambridgeshire County Council,28-Apr-16,20550339-13256856,-622.9,The Cambridge Nursing Centre,Care Establishment,2 - Commissioning - Older people Pool,Older People - City & South,Nursing Independent Sector
Cambridgeshire County Council,28-Apr-16,20567855-13257345,-621.43,Maycroft Care Home Ltd,Care Establishment,2 - Commissioning - Older people Pool,Older People - City & South,Residential Independent Sector
Cambridgeshire County Council,06-Apr-16,20389529-13125685,-615.09,The Cambridge Housing Society Ltd,Care Establishment,2 - Commissioning - Older people Pool,Older People - City & South,Residential Independent Sector
Cambridgeshire County Council,28-Apr-16,20551018-13247076,-611.14,Bramley Court,Care Establishment,2 - Commissioning - Older people Pool,Older People Mental Health City & South,Nursing Independent Sector
Cambridgeshire County Council,28-Apr-16,20561269-13257273,-606.94,Boxtree Cottage Cambridge Limited T/A Boxtree Cottage Residential Home,Care Establishment,2 - Commissioning - Older people Pool,Older People Mental Health City & South,Residential Independent Sector
Cambridgeshire County Council,28-Apr-16,20561276-13257274,-606.94,Boxtree Cottage Cambridge Limited T/A Boxtree Cottage Residential Home,Care Establishment,2 - Commissioning - Older people Pool,Older People Mental Health City & South,Residential Independent Sector
Cambridgeshire County Council,28-Apr-16,20561290-13257277,-606.94,Boxtree Cottage Cambridge Limited T/A Boxtree Cottage Residential Home,Care Establishment,2 - Commissioning - Older people Pool,Older People Mental Health City & South,Residential Independent Sector
Cambridgeshire County Council,28-Apr-16,20561296-13257281,-606.94,Boxtree Cottage Cambridge Limited T/A Boxtree Cottage Residential Home,Care Establishment,2 - Commissioning - Older people Pool,Older People Mental Health City & South,Residential Independent Sector
Cambridgeshire County Council,28-Apr-16,20561298-13257282,-606.94,Boxtree Cottage Cambridge Limited T/A Boxtree Cottage Residential Home,Care Establishment,2 - Commissioning - Older people Pool,Older People Mental Health City & South,Residential Independent Sector
Cambridgeshire County Council,18-Apr-16,19347629-13190380,-600,Kershaw Contracting Services,Company,LGSS,Processing Operations,Contributions
Cambridgeshire County Council,21-Apr-16,20526727-13208182,-600,Barchester Healthcare Homes Ltd,Care Establishment,2 - Commissioning - Older people Pool,East Cambs - O P Team,Nursing Independent Sector
Cambridgeshire County Council,28-Apr-16,20550499-13238401,-600,Manor House Residential And Nursing,Care Establishment,2 - Commissioning - Older people Pool,Hunts O P  Team,Nursing Independent Sector
Cambridgeshire County Council,28-Apr-16,20551266-13244881,-600,Hardwick Dene,Care Establishment,2 - Commissioning - Older people Pool,Older People Mental Health Hunts,Residential Independent Sector
Cambridgeshire County Council,28-Apr-16,20553002-13247666,-600,Barchester Healthcare Homes Ltd,Care Establishment,2 - Commissioning - Older people Pool,East Cambs - O P Team,Nursing Independent Sector
Cambridgeshire County Council,28-Apr-16,20553194-13253373,-600,Midfield Lodge Care Centre,Care Establishment,2 - Commissioning - Older people Pool,East Cambs - O P Team,Nursing Independent Sector
Cambridgeshire County Council,28-Apr-16,20556235-13244352,-600,Rose Lodge,Care Establishment,2 - Commissioning - Older people Pool,Older People Mental Health Fenland,Nursing Independent Sector
Cambridgeshire County Council,28-Apr-16,20557276-13245976,-600,Abbey Healthcare (Huntingdon) Ltd,Care Establishment,2 - Commissioning - Older people Pool,Hunts O P  Team,Nursing Independent Sector
Cambridgeshire County Council,28-Apr-16,20561146-13245891,-600,Abbey Healthcare (Huntingdon) Ltd,Care Establishment,2 - Commissioning - Older people Pool,Older People Mental Health Hunts,Nursing Independent Sector
Cambridgeshire County Council,28-Apr-16,20567334-13247625,-600,Barchester Healthcare Homes Ltd,Care Establishment,2 - Commissioning - Older people Pool,East Cambs - O P Team,Nursing Independent Sector
Cambridgeshire County Council,28-Apr-16,20567335-13247626,-600,Barchester Healthcare Homes Ltd,Care Establishment,2 - Commissioning - Older people Pool,East Cambs - O P Team,Nursing Independent Sector
Cambridgeshire County Council,28-Apr-16,20567337-13247628,-600,Barchester Healthcare Homes Ltd,Care Establishment,2 - Commissioning - Older people Pool,East Cambs - O P Team,Nursing Independent Sector
Cambridgeshire County Council,28-Apr-16,20567341-13247632,-600,Barchester Healthcare Homes Ltd,Care Establishment,2 - Commissioning - Older people Pool,East Cambs - O P Team,Nursing Independent Sector
Cambridgeshire County Council,28-Apr-16,20567344-13247635,-600,Barchester Healthcare Homes Ltd,Care Establishment,2 - Commissioning - Older people Pool,East Cambs - O P Team,Nursing Independent Sector
Cambridgeshire County Council,28-Apr-16,20569040-13246204,-600,St Georges Nursing Home,Care Establishment,2 - Commissioning - Older people Pool,Older People - City & South,Nursing Independent Sector
Cambridgeshire County Council,21-Apr-16,20522371-13207275,-596.63,Redacted Personal Data,Individual,2 - Commissioning - Older people Pool,Older People - City & South,Direct Payments - Social Services
Cambridgeshire County Council,28-Apr-16,20562884-13251067,-594.39,Kelam Health Care Ltd T/A Paxton Hall Care Home,Care Establishment,2 - Commissioning - Older people Pool,Hunts O P  Team,Residential Independent Sector
Cambridgeshire County Council,28-Apr-16,20572074-13246374,-589.29,Woodlands Care Centre,Care Establishment,2 - Commissioning - Older people Pool,Older People Mental Health E Cambs,Residential Independent Sector
Cambridgeshire County Council,06-Apr-16,20443640-13130720,-588.5,Westminster Homecare Limited,Care Establishment,2 - Operations - Learning Disability,LDP E Cambs Locality - Care,Day and Domicillary Care Independent Sector
Cambridgeshire County Council,06-Apr-16,20445028-13123333,-587.31,Conquest Care Homes (Soham) Ltd,Care Establishment,2 - Operations - Learning Disability,LDP E Cambs Special Needs,SDS - Care and support Services
Cambridgeshire County Council,21-Apr-16,20482638-13205739,-587.31,Conquest Care Homes (Soham) Ltd,Care Establishment,2 - Operations - Learning Disability,LDP E Cambs Locality - Care,SDS - Care and support Services
Cambridgeshire County Council,21-Apr-16,20518818-13205703,-587.31,Conquest Care Homes (Soham) Ltd,Care Establishment,2 - Operations - Learning Disability,LDP E Cambs Locality - Care,SDS - Care and support Services
Cambridgeshire County Council,28-Apr-16,20571258-13254340,-585.77,Gracefield Nursing And Residential Home,Care Establishment,2 - Commissioning - Older people Pool,Older People Mental Health City & South,Nursing Independent Sector
Cambridgeshire County Council,28-Apr-16,20559546-13242995,-582.86,Cherry Hinton Nursing Home,Care Establishment,2 - Commissioning - Older people Pool,Older People - City & South,Nursing Independent Sector
Cambridgeshire County Council,28-Apr-16,20547219-13256663,-581.85,The Cambridge Nursing Centre,Care Establishment,2 - Commissioning - Older people Pool,Older People Mental Health City & South,Nursing Independent Sector
Cambridgeshire County Council,28-Apr-16,20547223-13256665,-581.85,The Cambridge Nursing Centre,Care Establishment,2 - Commissioning - Older people Pool,Older People Mental Health City & South,Nursing Independent Sector
Cambridgeshire County Council,28-Apr-16,20552371-13256738,-581.85,The Cambridge Nursing Centre,Care Establishment,2 - Commissioning - Older people Pool,Older People Mental Health City & South,Nursing Independent Sector
Cambridgeshire County Council,28-Apr-16,20552381-13256744,-581.85,The Cambridge Nursing Centre,Care Establishment,2 - Commissioning - Older people Pool,Older People Mental Health City & South,Nursing Independent Sector
Cambridgeshire County Council,28-Apr-16,20552387-13256746,-581.85,The Cambridge Nursing Centre,Care Establishment,2 - Commissioning - Older people Pool,Older People Mental Health City & South,Nursing Independent Sector
Cambridgeshire County Council,28-Apr-16,20552649-13256737,-581.85,The Cambridge Nursing Centre,Care Establishment,2 - Commissioning - Older people Pool,Older People Mental Health City & South,Nursing Independent Sector
Cambridgeshire County Council,28-Apr-16,20553103-13256710,-581.85,The Cambridge Nursing Centre,Care Establishment,2 - Commissioning - Older people Pool,Older People Mental Health E Cambs,Nursing Independent Sector
Cambridgeshire County Council,28-Apr-16,20553107-13256714,-581.85,The Cambridge Nursing Centre,Care Establishment,2 - Commissioning - Older people Pool,Older People Mental Health E Cambs,Nursing Independent Sector
Cambridgeshire County Council,28-Apr-16,20553110-13256717,-581.85,The Cambridge Nursing Centre,Care Establishment,2 - Commissioning - Older people Pool,Older People Mental Health E Cambs,Nursing Independent Sector
Cambridgeshire County Council,28-Apr-16,20553115-13256722,-581.85,The Cambridge Nursing Centre,Care Establishment,2 - Commissioning - Older people Pool,Older People Mental Health E Cambs,Nursing Independent Sector
Cambridgeshire County Council,28-Apr-16,20553116-13256723,-581.85,The Cambridge Nursing Centre,Care Establishment,2 - Commissioning - Older people Pool,Older People Mental Health E Cambs,Nursing Independent Sector
Cambridgeshire County Council,28-Apr-16,20558285-13256760,-581.85,The Cambridge Nursing Centre,Care Establishment,2 - Commissioning - Older people Pool,Older People Mental Health City & South,Nursing Independent Sector
Cambridgeshire County Council,28-Apr-16,20558291-13256763,-581.85,The Cambridge Nursing Centre,Care Establishment,2 - Commissioning - Older people Pool,Older People Mental Health City & South,Nursing Independent Sector
Cambridgeshire County Council,28-Apr-16,20558651-13256749,-581.85,The Cambridge Nursing Centre,Care Establishment,2 - Commissioning - Older people Pool,Older People Mental Health City & South,Nursing Independent Sector
Cambridgeshire County Council,28-Apr-16,20558658-13256752,-581.85,The Cambridge Nursing Centre,Care Establishment,2 - Commissioning - Older people Pool,Older People Mental Health City & South,Nursing Independent Sector
Cambridgeshire County Council,28-Apr-16,20558667-13256754,-581.85,The Cambridge Nursing Centre,Care Establishment,2 - Commissioning - Older people Pool,Older People Mental Health City & South,Nursing Independent Sector
Cambridgeshire County Council,28-Apr-16,20558675-13256757,-581.85,The Cambridge Nursing Centre,Care Establishment,2 - Commissioning - Older people Pool,Older People Mental Health City & South,Nursing Independent Sector
Cambridgeshire County Council,28-Apr-16,20560675-13256697,-581.85,The Cambridge Nursing Centre,Care Establishment,2 - Commissioning - Older people Pool,Older People Mental Health City & South,Nursing Independent Sector
Cambridgeshire County Council,28-Apr-16,20561273-13256651,-581.85,The Cambridge Nursing Centre,Care Establishment,2 - Commissioning - Older people Pool,Older People Mental Health City & South,Nursing Independent Sector
Cambridgeshire County Council,28-Apr-16,20561274-13256652,-581.85,The Cambridge Nursing Centre,Care Establishment,2 - Commissioning - Older people Pool,Older People Mental Health City & South,Nursing Independent Sector
Cambridgeshire County Council,28-Apr-16,20561279-13256654,-581.85,The Cambridge Nursing Centre,Care Establishment,2 - Commissioning - Older people Pool,Older People Mental Health City & South,Nursing Independent Sector
Cambridgeshire County Council,28-Apr-16,20561306-13256659,-581.85,The Cambridge Nursing Centre,Care Establishment,2 - Commissioning - Older people Pool,Older People Mental Health City & South,Nursing Independent Sector
Cambridgeshire County Council,28-Apr-16,20561307-13256660,-581.85,The Cambridge Nursing Centre,Care Establishment,2 - Commissioning - Older people Pool,Older People Mental Health City & South,Nursing Independent Sector
Cambridgeshire County Council,28-Apr-16,20561373-13256632,-581.85,The Cambridge Nursing Centre,Care Establishment,2 - Commissioning - Older people Pool,Older People Mental Health City & South,Nursing Independent Sector
Cambridgeshire County Council,28-Apr-16,20561376-13256634,-581.85,The Cambridge Nursing Centre,Care Establishment,2 - Commissioning - Older people Pool,Older People Mental Health City & South,Nursing Independent Sector
Cambridgeshire County Council,28-Apr-16,20563543-13256816,-581.85,The Cambridge Nursing Centre,Care Establishment,2 - Commissioning - Older people Pool,Older People Mental Health City & South,Nursing Independent Sector
Cambridgeshire County Council,28-Apr-16,20563545-13256818,-581.85,The Cambridge Nursing Centre,Care Establishment,2 - Commissioning - Older people Pool,Older People Mental Health City & South,Nursing Independent Sector
Cambridgeshire County Council,28-Apr-16,20563546-13256819,-581.85,The Cambridge Nursing Centre,Care Establishment,2 - Commissioning - Older people Pool,Older People Mental Health City & South,Nursing Independent Sector
Cambridgeshire County Council,28-Apr-16,20563548-13256821,-581.85,The Cambridge Nursing Centre,Care Establishment,2 - Commissioning - Older people Pool,Older People Mental Health City & South,Nursing Independent Sector
Cambridgeshire County Council,28-Apr-16,20563556-13256829,-581.85,The Cambridge Nursing Centre,Care Establishment,2 - Commissioning - Older people Pool,Older People Mental Health City & South,Nursing Independent Sector
Cambridgeshire County Council,28-Apr-16,20568559-13256626,-581.85,The Cambridge Nursing Centre,Care Establishment,2 - Commissioning - Older people Pool,Older People Mental Health Hunts,Nursing Independent Sector
Cambridgeshire County Council,28-Apr-16,20568563-13256615,-581.85,The Cambridge Nursing Centre,Care Establishment,2 - Commissioning - Older people Pool,Older People Mental Health Hunts,Nursing Independent Sector
Cambridgeshire County Council,28-Apr-16,20568565-13256617,-581.85,The Cambridge Nursing Centre,Care Establishment,2 - Commissioning - Older people Pool,Older People Mental Health Hunts,Nursing Independent Sector
Cambridgeshire County Council,28-Apr-16,20568566-13256618,-581.85,The Cambridge Nursing Centre,Care Establishment,2 - Commissioning - Older people Pool,Older People Mental Health Hunts,Nursing Independent Sector
Cambridgeshire County Council,28-Apr-16,20568572-13256622,-581.85,The Cambridge Nursing Centre,Care Establishment,2 - Commissioning - Older people Pool,Older People Mental Health Hunts,Nursing Independent Sector
Cambridgeshire County Council,15-Apr-16,20482393-13178103,-577.52,Atlas Home Support,Care Establishment,2 - Operations - Learning Disability,LDP City Locality - Care,Supported Living
Cambridgeshire County Council,28-Apr-16,20555847-13253212,-576.64,Midfield Lodge Care Centre,Care Establishment,2 - Commissioning - Older people Pool,Older People - City & South,Nursing Independent Sector
Cambridgeshire County Council,28-Apr-16,20563767-13256798,-575,The Cambridge Nursing Centre,Care Establishment,2 - Commissioning - Older people Pool,Older People - City & South,Residential Independent Sector
Cambridgeshire County Council,28-Apr-16,20563768-13256799,-575,The Cambridge Nursing Centre,Care Establishment,2 - Commissioning - Older people Pool,Older People - City & South,Residential Independent Sector
Cambridgeshire County Council,28-Apr-16,20563774-13256804,-575,The Cambridge Nursing Centre,Care Establishment,2 - Commissioning - Older people Pool,Older People - City & South,Residential Independent Sector
Cambridgeshire County Council,28-Apr-16,20563775-13256805,-575,The Cambridge Nursing Centre,Care Establishment,2 - Commissioning - Older people Pool,Older People - City & South,Residential Independent Sector
Cambridgeshire County Council,28-Apr-16,20563779-13256809,-575,The Cambridge Nursing Centre,Care Establishment,2 - Commissioning - Older people Pool,Older People - City & South,Residential Independent Sector
Cambridgeshire County Council,28-Apr-16,20548969-13256628,-572.53,The Cambridge Nursing Centre,Care Establishment,2 - Commissioning - Older people Pool,Older People - City & South,Nursing Independent Sector
Cambridgeshire County Council,28-Apr-16,20548975-13256631,-572.53,The Cambridge Nursing Centre,Care Establishment,2 - Commissioning - Older people Pool,Older People - City & South,Nursing Independent Sector
Cambridgeshire County Council,28-Apr-16,20553688-13256709,-572.53,The Cambridge Nursing Centre,Care Establishment,2 - Commissioning - Older people Pool,Older People - City & South,Nursing Independent Sector
Cambridgeshire County Council,28-Apr-16,20555945-13256605,-572.53,The Cambridge Nursing Centre,Care Establishment,2 - Commissioning - Older people Pool,Older People - City & South,Nursing Independent Sector
Cambridgeshire County Council,28-Apr-16,20555955-13256610,-572.53,The Cambridge Nursing Centre,Care Establishment,2 - Commissioning - Older people Pool,Older People - City & South,Nursing Independent Sector
Cambridgeshire County Council,28-Apr-16,20555957-13256612,-572.53,The Cambridge Nursing Centre,Care Establishment,2 - Commissioning - Older people Pool,Older People - City & South,Nursing Independent Sector
Cambridgeshire County Council,28-Apr-16,20560750-13256690,-572.53,The Cambridge Nursing Centre,Care Establishment,2 - Commissioning - Older people Pool,Older People - City & South,Nursing Independent Sector
Cambridgeshire County Council,28-Apr-16,20560752-13256692,-572.53,The Cambridge Nursing Centre,Care Establishment,2 - Commissioning - Older people Pool,Older People - City & South,Nursing Independent Sector
Cambridgeshire County Council,28-Apr-16,20560756-13256672,-572.53,The Cambridge Nursing Centre,Care Establishment,2 - Commissioning - Older people Pool,Older People - City & South,Nursing Independent Sector
Cambridgeshire County Council,28-Apr-16,20560758-13256674,-572.53,The Cambridge Nursing Centre,Care Establishment,2 - Commissioning - Older people Pool,Older People - City & South,Nursing Independent Sector
Cambridgeshire County Council,28-Apr-16,20563375-13256811,-572.53,The Cambridge Nursing Centre,Care Establishment,2 - Commissioning - Older people Pool,Older People - City & South,Nursing Independent Sector
Cambridgeshire County Council,28-Apr-16,20563424-13256815,-572.53,The Cambridge Nursing Centre,Care Establishment,2 - Commissioning - Older people Pool,Older People - City & South,Nursing Independent Sector
Cambridgeshire County Council,28-Apr-16,20563694-13256788,-572.53,The Cambridge Nursing Centre,Care Establishment,2 - Commissioning - Older people Pool,Older People - City & South,Nursing Independent Sector
Cambridgeshire County Council,28-Apr-16,20563723-13256791,-572.53,The Cambridge Nursing Centre,Care Establishment,2 - Commissioning - Older people Pool,Older People - City & South,Nursing Independent Sector
Cambridgeshire County Council,28-Apr-16,20563757-13256796,-572.53,The Cambridge Nursing Centre,Care Establishment,2 - Commissioning - Older people Pool,Older People - City & South,Nursing Independent Sector
